Transaction Date,Local Authority Department,Beneficiary,Purpose of Expenditure,Amount (excluding VAT),Non Recoverable VAT,Merchant Category
 01-09-2022,Adults,Marlow,Residential Placements - Private Contractors Payment,6360.56,0.00,COMMERCIAL SUPPLIER 
 01-09-2022,Adults,Marlow,Residential Placements - Private Contractors Payment,2018.48,0.00,COMMERCIAL SUPPLIER 
 01-09-2022,Adults,London Care Plc_a,Home Care - Private Contractors Payment,836.40,0.00,COMMERCIAL SUPPLIER 
 01-09-2022,Adults,London Care Plc_a,Home Care - Private Contractors Payment,1407.45,0.00,COMMERCIAL SUPPLIER 
 01-09-2022,Adults,London Care Plc_a,Home Care - Private Contractors Payment,1413.35,0.00,COMMERCIAL SUPPLIER 
 01-09-2022,Adults,London Care Plc_a,Home Care - Private Contractors Payment,1342.18,0.00,COMMERCIAL SUPPLIER 
 01-09-2022,Adults,London Care Plc_a,Home Care - Private Contractors Payment,1346.11,0.00,COMMERCIAL SUPPLIER 
 01-09-2022,Adults,London Care Plc_a,Home Care - Private Contractors Payment,1206.06,0.00,COMMERCIAL SUPPLIER 
 01-09-2022,Adults,London Care Plc_a,Home Care - Private Contractors Payment,1181.13,0.00,COMMERCIAL SUPPLIER 
 01-09-2022,Adults,London Care Plc_a,Home Care - Private Contractors Payment,585.81,0.00,COMMERCIAL SUPPLIER 
 01-09-2022,Adults,London Care Plc_a,Home Care - Private Contractors Payment,926.93,0.00,COMMERCIAL SUPPLIER 
 01-09-2022,Adults,London Care Plc_a,Home Care - Private Contractors Payment,1340.86,0.00,COMMERCIAL SUPPLIER 
 01-09-2022,Adults,Harrich Builders Ltd,"Maintenance - Equipment, Furniture And Materials",500.00,0.00,CIS 
 01-09-2022,Adults,Home Sweet Home Care Ltd,Home Care - Private Contractors Payment,1007.94,0.00,COMMERCIAL SUPPLIER 
 01-09-2022,Adults,Home Sweet Home Care Ltd,Home Care - Private Contractors Payment,1125.04,0.00,COMMERCIAL SUPPLIER 
 01-09-2022,Adults,Home Sweet Home Care Ltd,Home Care - Private Contractors Payment,551.04,0.00,COMMERCIAL SUPPLIER 
 01-09-2022,Adults,Home Sweet Home Care Ltd,Home Care - Private Contractors Payment,551.04,0.00,COMMERCIAL SUPPLIER 
 01-09-2022,Adults,Home Sweet Home Care Ltd,Home Care - Private Contractors Payment,669.12,0.00,COMMERCIAL SUPPLIER 
 01-09-2022,Adults,Home Sweet Home Care Ltd,Home Care - Private Contractors Payment,669.12,0.00,COMMERCIAL SUPPLIER 
 01-09-2022,Adults,Home Sweet Home Care Ltd,Home Care - Private Contractors Payment,1087.32,0.00,COMMERCIAL SUPPLIER 
 01-09-2022,Adults,Home Sweet Home Care Ltd,Home Care - Private Contractors Payment,817.38,0.00,COMMERCIAL SUPPLIER 
 01-09-2022,Adults,Home Sweet Home Care Ltd,Home Care - Private Contractors Payment,830.82,0.00,COMMERCIAL SUPPLIER 
 01-09-2022,Adults,Home Sweet Home Care Ltd,Home Care - Private Contractors Payment,866.25,0.00,COMMERCIAL SUPPLIER 
 01-09-2022,Adults,Home Sweet Home Care Ltd,Home Care - Private Contractors Payment,840.66,0.00,COMMERCIAL SUPPLIER 
 01-09-2022,Adults,Home Sweet Home Care Ltd,Home Care - Private Contractors Payment,552.68,0.00,COMMERCIAL SUPPLIER 
 01-09-2022,Adults,Home Sweet Home Care Ltd,Home Care - Private Contractors Payment,1113.23,0.00,COMMERCIAL SUPPLIER 
 01-09-2022,Adults,Home Sweet Home Care Ltd,Home Care - Private Contractors Payment,1117.50,0.00,COMMERCIAL SUPPLIER 
 01-09-2022,Adults,Home Sweet Home Care Ltd,Home Care - Private Contractors Payment,1020.08,0.00,COMMERCIAL SUPPLIER 
 01-09-2022,Adults,Home Sweet Home Care Ltd,Home Care - Private Contractors Payment,556.29,0.00,COMMERCIAL SUPPLIER 
 01-09-2022,Adults,Home Sweet Home Care Ltd,Home Care - Private Contractors Payment,1132.91,0.00,COMMERCIAL SUPPLIER 
 01-09-2022,Adults,Home Sweet Home Care Ltd,Home Care - Private Contractors Payment,782.28,0.00,COMMERCIAL SUPPLIER 
 01-09-2022,Adults,Home Sweet Home Care Ltd,Home Care - Private Contractors Payment,806.88,0.00,COMMERCIAL SUPPLIER 
 01-09-2022,Adults,Home Sweet Home Care Ltd,Home Care - Private Contractors Payment,578.59,0.00,COMMERCIAL SUPPLIER 
 01-09-2022,Adults,Home Sweet Home Care Ltd,Home Care - Private Contractors Payment,598.27,0.00,COMMERCIAL SUPPLIER 
 01-09-2022,Adults,Home Sweet Home Care Ltd,Home Care - Private Contractors Payment,978.10,0.00,COMMERCIAL SUPPLIER 
 01-09-2022,Adults,Home Sweet Home Care Ltd,Home Care - Private Contractors Payment,978.10,0.00,COMMERCIAL SUPPLIER 
 01-09-2022,Adults,Home Sweet Home Care Ltd,Home Care - Private Contractors Payment,1006.30,0.00,COMMERCIAL SUPPLIER 
 01-09-2022,Adults,Home Sweet Home Care Ltd,Home Care - Private Contractors Payment,560.88,0.00,COMMERCIAL SUPPLIER 
 01-09-2022,Adults,Home Sweet Home Care Ltd,Home Care - Private Contractors Payment,836.40,0.00,COMMERCIAL SUPPLIER 
 01-09-2022,Adults,Home Sweet Home Care Ltd,Home Care - Private Contractors Payment,881.99,0.00,COMMERCIAL SUPPLIER 
 01-09-2022,Adults,Home Sweet Home Care Ltd,Home Care - Private Contractors Payment,1077.15,0.00,COMMERCIAL SUPPLIER 
 01-09-2022,Adults,Home Sweet Home Care Ltd,Home Care - Private Contractors Payment,924.96,0.00,COMMERCIAL SUPPLIER 
 01-09-2022,Adults,Home Sweet Home Care Ltd,Home Care - Private Contractors Payment,1111.26,0.00,COMMERCIAL SUPPLIER 
 01-09-2022,Adults,Home Sweet Home Care Ltd,Home Care - Private Contractors Payment,1111.59,0.00,COMMERCIAL SUPPLIER 
 01-09-2022,Adults,Home Sweet Home Care Ltd,Home Care - Private Contractors Payment,1199.50,0.00,COMMERCIAL SUPPLIER 
 01-09-2022,Adults,Home Sweet Home Care Ltd,Home Care - Private Contractors Payment,1254.93,0.00,COMMERCIAL SUPPLIER 
 01-09-2022,Adults,Home Sweet Home Care Ltd,Home Care - Private Contractors Payment,954.48,0.00,COMMERCIAL SUPPLIER 
 01-09-2022,Adults,Home Sweet Home Care Ltd,Home Care - Private Contractors Payment,1111.92,0.00,COMMERCIAL SUPPLIER 
 01-09-2022,Adults,Home Sweet Home Care Ltd,Home Care - Private Contractors Payment,542.84,0.00,COMMERCIAL SUPPLIER 
 01-09-2022,Adults,Home Sweet Home Care Ltd,Home Care - Private Contractors Payment,572.69,0.00,COMMERCIAL SUPPLIER 
 01-09-2022,Adults,Home Sweet Home Care Ltd,Home Care - Private Contractors Payment,848.54,0.00,COMMERCIAL SUPPLIER 
 01-09-2022,Adults,Home Sweet Home Care Ltd,Home Care - Private Contractors Payment,600.24,0.00,COMMERCIAL SUPPLIER 
 01-09-2022,Adults,Home Sweet Home Care Ltd,Home Care - Private Contractors Payment,811.80,0.00,COMMERCIAL SUPPLIER 
 01-09-2022,Adults,Home Sweet Home Care Ltd,Home Care - Private Contractors Payment,551.04,0.00,COMMERCIAL SUPPLIER 
 01-09-2022,Adults,Home Sweet Home Care Ltd,Home Care - Private Contractors Payment,551.04,0.00,COMMERCIAL SUPPLIER 
 01-09-2022,Adults,Home Sweet Home Care Ltd,Home Care - Private Contractors Payment,501.84,0.00,COMMERCIAL SUPPLIER 
 01-09-2022,Adults,Home Sweet Home Care Ltd,Home Care - Private Contractors Payment,826.23,0.00,COMMERCIAL SUPPLIER 
 01-09-2022,Adults,Home Sweet Home Care Ltd,Home Care - Private Contractors Payment,718.65,0.00,COMMERCIAL SUPPLIER 
 01-09-2022,Adults,Home Sweet Home Care Ltd,Home Care - Private Contractors Payment,836.40,0.00,COMMERCIAL SUPPLIER 
 01-09-2022,Adults,Home Sweet Home Care Ltd,Home Care - Private Contractors Payment,1111.92,0.00,COMMERCIAL SUPPLIER 
 01-09-2022,Adults,Home Sweet Home Care Ltd,Home Care - Private Contractors Payment,1111.92,0.00,COMMERCIAL SUPPLIER 
 01-09-2022,Adults,Home Sweet Home Care Ltd,Home Care - Private Contractors Payment,959.07,0.00,COMMERCIAL SUPPLIER 
 01-09-2022,Adults,Home Sweet Home Care Ltd,Home Care - Private Contractors Payment,1092.90,0.00,COMMERCIAL SUPPLIER 
 01-09-2022,Adults,Home Sweet Home Care Ltd,Home Care - Private Contractors Payment,1102.74,0.00,COMMERCIAL SUPPLIER 
 01-09-2022,Adults,Home Sweet Home Care Ltd,Home Care - Private Contractors Payment,1102.41,0.00,COMMERCIAL SUPPLIER 
 01-09-2022,Adults,Home Sweet Home Care Ltd,Home Care - Private Contractors Payment,1102.41,0.00,COMMERCIAL SUPPLIER 
 01-09-2022,Adults,Home Sweet Home Care Ltd,Home Care - Private Contractors Payment,1086.99,0.00,COMMERCIAL SUPPLIER 
 01-09-2022,Adults,Home Sweet Home Care Ltd,Home Care - Private Contractors Payment,666.50,0.00,COMMERCIAL SUPPLIER 
 01-09-2022,Adults,Home Sweet Home Care Ltd,Home Care - Private Contractors Payment,770.80,0.00,COMMERCIAL SUPPLIER 
 01-09-2022,Adults,Home Sweet Home Care Ltd,Home Care - Private Contractors Payment,1154.56,0.00,COMMERCIAL SUPPLIER 
 01-09-2022,Adults,Home Sweet Home Care Ltd,Home Care - Private Contractors Payment,797.04,0.00,COMMERCIAL SUPPLIER 
 01-09-2022,Adults,Home Sweet Home Care Ltd,Home Care - Private Contractors Payment,806.88,0.00,COMMERCIAL SUPPLIER 
 01-09-2022,Adults,Home Sweet Home Care Ltd,Home Care - Private Contractors Payment,566.13,0.00,COMMERCIAL SUPPLIER 
 01-09-2022,Adults,Home Sweet Home Care Ltd,Home Care - Private Contractors Payment,941.69,0.00,COMMERCIAL SUPPLIER 
 01-09-2022,Adults,Home Sweet Home Care Ltd,Home Care - Private Contractors Payment,1110.61,0.00,COMMERCIAL SUPPLIER 
 01-09-2022,Adults,Home Sweet Home Care Ltd,Home Care - Private Contractors Payment,1102.08,0.00,COMMERCIAL SUPPLIER 
 01-09-2022,Adults,Home Sweet Home Care Ltd,Home Care - Private Contractors Payment,840.34,0.00,COMMERCIAL SUPPLIER 
 01-09-2022,Adults,Home Sweet Home Care Ltd,Home Care - Private Contractors Payment,669.12,0.00,COMMERCIAL SUPPLIER 
 01-09-2022,Adults,Home Sweet Home Care Ltd,Home Care - Private Contractors Payment,1348.08,0.00,COMMERCIAL SUPPLIER 
 01-09-2022,Adults,Home Sweet Home Care Ltd,Home Care - Private Contractors Payment,1361.20,0.00,COMMERCIAL SUPPLIER 
 01-09-2022,Adults,Home Sweet Home Care Ltd,Home Care - Private Contractors Payment,1072.23,0.00,COMMERCIAL SUPPLIER 
 01-09-2022,Adults,Home Sweet Home Care Ltd,Home Care - Private Contractors Payment,554.32,0.00,COMMERCIAL SUPPLIER 
 01-09-2022,Adults,Home Sweet Home Care Ltd,Home Care - Private Contractors Payment,836.73,0.00,COMMERCIAL SUPPLIER 
 01-09-2022,Adults,Home Sweet Home Care Ltd,Home Care - Private Contractors Payment,545.46,0.00,COMMERCIAL SUPPLIER 
 01-09-2022,Adults,Home Sweet Home Care Ltd,Home Care - Private Contractors Payment,973.50,0.00,COMMERCIAL SUPPLIER 
 01-09-2022,Adults,Home Sweet Home Care Ltd,Home Care - Private Contractors Payment,885.60,0.00,COMMERCIAL SUPPLIER 
 01-09-2022,Adults,Home Sweet Home Care Ltd,Home Care - Private Contractors Payment,708.48,0.00,COMMERCIAL SUPPLIER 
 01-09-2022,Adults,Home Sweet Home Care Ltd,Home Care - Private Contractors Payment,708.48,0.00,COMMERCIAL SUPPLIER 
 01-09-2022,Adults,Home Sweet Home Care Ltd,Home Care - Private Contractors Payment,603.52,0.00,COMMERCIAL SUPPLIER 
 01-09-2022,Adults,Home Sweet Home Care Ltd,Home Care - Private Contractors Payment,905.28,0.00,COMMERCIAL SUPPLIER 
 01-09-2022,Adults,Home Sweet Home Care Ltd,Home Care - Private Contractors Payment,563.18,0.00,COMMERCIAL SUPPLIER 
 01-09-2022,Adults,Home Sweet Home Care Ltd,Home Care - Private Contractors Payment,1101.75,0.00,COMMERCIAL SUPPLIER 
 01-09-2022,Adults,Home Sweet Home Care Ltd,Home Care - Private Contractors Payment,1113.23,0.00,COMMERCIAL SUPPLIER 
 01-09-2022,Adults,Home Sweet Home Care Ltd,Home Care - Private Contractors Payment,578.26,0.00,COMMERCIAL SUPPLIER 
 01-09-2022,Adults,Home Sweet Home Care Ltd,Home Care - Private Contractors Payment,531.36,0.00,COMMERCIAL SUPPLIER 
 01-09-2022,Adults,Home Sweet Home Care Ltd,Home Care - Private Contractors Payment,551.04,0.00,COMMERCIAL SUPPLIER 
 01-09-2022,Adults,Home Sweet Home Care Ltd,Home Care - Private Contractors Payment,1105.03,0.00,COMMERCIAL SUPPLIER 
 01-09-2022,Adults,Home Sweet Home Care Ltd,Home Care - Private Contractors Payment,763.58,0.00,COMMERCIAL SUPPLIER 
 01-09-2022,Adults,Home Sweet Home Care Ltd,Home Care - Private Contractors Payment,1082.73,0.00,COMMERCIAL SUPPLIER 
 01-09-2022,Adults,Home Sweet Home Care Ltd,Home Care - Private Contractors Payment,1102.41,0.00,COMMERCIAL SUPPLIER 
 01-09-2022,Adults,Home Sweet Home Care Ltd,Home Care - Private Contractors Payment,531.36,0.00,COMMERCIAL SUPPLIER 
 01-09-2022,Adults,Home Sweet Home Care Ltd,Home Care - Private Contractors Payment,561.21,0.00,COMMERCIAL SUPPLIER 
 01-09-2022,Adults,Home Sweet Home Care Ltd,Home Care - Private Contractors Payment,571.05,0.00,COMMERCIAL SUPPLIER 
 01-09-2022,Adults,Home Sweet Home Care Ltd,Home Care - Private Contractors Payment,1065.02,0.00,COMMERCIAL SUPPLIER 
 01-09-2022,Adults,Home Sweet Home Care Ltd,Home Care - Private Contractors Payment,541.53,0.00,COMMERCIAL SUPPLIER 
 01-09-2022,Adults,Home Sweet Home Care Ltd,Home Care - Private Contractors Payment,1085.68,0.00,COMMERCIAL SUPPLIER 
 01-09-2022,Adults,Home Sweet Home Care Ltd,Home Care - Private Contractors Payment,623.20,0.00,COMMERCIAL SUPPLIER 
 01-09-2022,Adults,Home Sweet Home Care Ltd,Home Care - Private Contractors Payment,1082.40,0.00,COMMERCIAL SUPPLIER 
 01-09-2022,Adults,Home Sweet Home Care Ltd,Home Care - Private Contractors Payment,1133.24,0.00,COMMERCIAL SUPPLIER 
 01-09-2022,Adults,Home Sweet Home Care Ltd,Home Care - Private Contractors Payment,1190.97,0.00,COMMERCIAL SUPPLIER 
 01-09-2022,Adults,Home Sweet Home Care Ltd,Home Care - Private Contractors Payment,530.05,0.00,COMMERCIAL SUPPLIER 
 01-09-2022,Adults,Home Sweet Home Care Ltd,Home Care - Private Contractors Payment,514.96,0.00,COMMERCIAL SUPPLIER 
 01-09-2022,Adults,Home Sweet Home Care Ltd,Home Care - Private Contractors Payment,1102.41,0.00,COMMERCIAL SUPPLIER 
 01-09-2022,Adults,Home Sweet Home Care Ltd,Home Care - Private Contractors Payment,1103.39,0.00,COMMERCIAL SUPPLIER 
 01-09-2022,Adults,Home Sweet Home Care Ltd,Home Care - Private Contractors Payment,1073.22,0.00,COMMERCIAL SUPPLIER 
 01-09-2022,Adults,Home Sweet Home Care Ltd,Home Care - Private Contractors Payment,1105.36,0.00,COMMERCIAL SUPPLIER 
 01-09-2022,Adults,Home Sweet Home Care Ltd,Home Care - Private Contractors Payment,1003.68,0.00,COMMERCIAL SUPPLIER 
 01-09-2022,Adults,Home Sweet Home Care Ltd,Home Care - Private Contractors Payment,3017.60,0.00,COMMERCIAL SUPPLIER 
 01-09-2022,Adults,Home Sweet Home Care Ltd,Home Care - Private Contractors Payment,1749.55,0.00,COMMERCIAL SUPPLIER 
 01-09-2022,Adults,Home Sweet Home Care Ltd,Home Care - Private Contractors Payment,1087.32,0.00,COMMERCIAL SUPPLIER 
 01-09-2022,Adults,Home Sweet Home Care Ltd,Home Care - Private Contractors Payment,817.05,0.00,COMMERCIAL SUPPLIER 
 01-09-2022,Adults,Home Sweet Home Care Ltd,Home Care - Private Contractors Payment,927.91,0.00,COMMERCIAL SUPPLIER 
 01-09-2022,Adults,Home Sweet Home Care Ltd,Home Care - Private Contractors Payment,928.24,0.00,COMMERCIAL SUPPLIER 
 01-09-2022,Adults,Home Sweet Home Care Ltd,Home Care - Private Contractors Payment,551.04,0.00,COMMERCIAL SUPPLIER 
 01-09-2022,Adults,Home Sweet Home Care Ltd,Home Care - Private Contractors Payment,562.19,0.00,COMMERCIAL SUPPLIER 
 01-09-2022,Adults,Home Sweet Home Care Ltd,Home Care - Private Contractors Payment,797.37,0.00,COMMERCIAL SUPPLIER 
 01-09-2022,Adults,Home Sweet Home Care Ltd,Home Care - Private Contractors Payment,541.20,0.00,COMMERCIAL SUPPLIER 
 01-09-2022,Adults,Home Sweet Home Care Ltd,Home Care - Private Contractors Payment,1253.29,0.00,COMMERCIAL SUPPLIER 
 01-09-2022,Adults,Home Sweet Home Care Ltd,Home Care - Private Contractors Payment,1256.57,0.00,COMMERCIAL SUPPLIER 
 01-09-2022,Adults,Home Sweet Home Care Ltd,Home Care - Private Contractors Payment,1113.89,0.00,COMMERCIAL SUPPLIER 
 01-09-2022,Adults,Home Sweet Home Care Ltd,Home Care - Private Contractors Payment,1092.24,0.00,COMMERCIAL SUPPLIER 
 01-09-2022,Adults,Home Sweet Home Care Ltd,Home Care - Private Contractors Payment,1092.24,0.00,COMMERCIAL SUPPLIER 
 01-09-2022,Adults,Field Court Chambers,Legal Fees,650.00,0.00,LEGAL SERVICES 
 01-09-2022,Adults,Inclusive Care Support Limited,Supported Other Accommodation - Private Contractors Payment,700.84,0.00,COMMERCIAL SUPPLIER 
 01-09-2022,Adults,Inclusive Care Support Limited,Supported Other Accommodation - Private Contractors Payment,700.84,0.00,COMMERCIAL SUPPLIER 
 01-09-2022,Adults,Inclusive Care Support Limited,Supported Other Accommodation - Private Contractors Payment,700.84,0.00,COMMERCIAL SUPPLIER 
 01-09-2022,Adults,Inclusive Care Support Limited,Supported Other Accommodation - Private Contractors Payment,700.84,0.00,COMMERCIAL SUPPLIER 
 01-09-2022,Adults,Inclusive Care Support Limited,Long Term Support - Community: Supported Living,700.84,0.00,COMMERCIAL SUPPLIER 
 01-09-2022,Adults,Home Sweet Home Care Ltd,Home Care - Private Contractors Payment,780.19,0.00,COMMERCIAL SUPPLIER 
 01-09-2022,Adults,Home Sweet Home Care Ltd,Home Care - Private Contractors Payment,721.37,0.00,COMMERCIAL SUPPLIER 
 01-09-2022,Adults,Home Sweet Home Care Ltd,Home Care - Private Contractors Payment,950.16,0.00,COMMERCIAL SUPPLIER 
 01-09-2022,Adults,Home Sweet Home Care Ltd,Home Care - Private Contractors Payment,957.90,0.00,COMMERCIAL SUPPLIER 
 01-09-2022,Adults,Home Sweet Home Care Ltd,Home Care - Private Contractors Payment,1040.26,0.00,COMMERCIAL SUPPLIER 
 01-09-2022,Adults,Home Sweet Home Care Ltd,Home Care - Private Contractors Payment,2319.74,0.00,COMMERCIAL SUPPLIER 
 01-09-2022,Adults,Home Sweet Home Care Ltd,Home Care - Private Contractors Payment,1040.26,0.00,COMMERCIAL SUPPLIER 
 01-09-2022,Adults,Home Sweet Home Care Ltd,Home Care - Private Contractors Payment,1040.26,0.00,COMMERCIAL SUPPLIER 
 01-09-2022,Adults,Home Sweet Home Care Ltd,Home Care - Private Contractors Payment,1040.26,0.00,COMMERCIAL SUPPLIER 
 01-09-2022,Adults,Home Sweet Home Care Ltd,Home Care - Private Contractors Payment,1040.26,0.00,COMMERCIAL SUPPLIER 
 02-09-2022,Adults,Trinity London Care Ltd,Daycare - Private Contractors Payment,2050.00,0.00,COMMERCIAL SUPPLIER 
 02-09-2022,Adults,Trinity London Care Ltd,Daycare - Private Contractors Payment,2050.00,0.00,COMMERCIAL SUPPLIER 
 02-09-2022,Adults,Trinity London Care Ltd,Daycare - Private Contractors Payment,2050.00,0.00,COMMERCIAL SUPPLIER 
 02-09-2022,Adults,Trinity London Care Ltd,Daycare - Private Contractors Payment,1025.20,0.00,COMMERCIAL SUPPLIER 
 02-09-2022,Adults,Trinity London Care Ltd,Daycare - Private Contractors Payment,1025.20,0.00,COMMERCIAL SUPPLIER 
 02-09-2022,Adults,Trinity London Care Ltd,Daycare - Private Contractors Payment,1025.20,0.00,COMMERCIAL SUPPLIER 
 02-09-2022,Adults,Lorablooms Care Services Ltd,Home Care - Private Contractors Payment,2365.44,0.00,NON COMMERCIAL SUPPLIER 
 02-09-2022,Adults,Lorablooms Care Services Ltd,Home Care - Private Contractors Payment,2365.44,0.00,NON COMMERCIAL SUPPLIER 
 05-09-2022,Adults,Cera Care Operations Ltd,Home Care - Private Contractors Payment,2833.92,0.00,COMMERCIAL SUPPLIER 
 05-09-2022,Adults,Protecthand Care Ltd ,Supported Other Accommodation - Private Contractors Payment,15190.00,0.00,COMMERCIAL SUPPLIER 
 06-09-2022,Adults,Flex360 Limited,Private Contractors Payment - Other,700.00,0.00,8g
 06-09-2022,Adults,Flex360 Limited,Private Contractors Payment - Other,1050.00,0.00,COMMERCIAL SUPPLIER 
 06-09-2022,Adults,Treal Care Limited,Home Care - Private Contractors Payment,1155.00,0.00,COMMERCIAL SUPPLIER 
 06-09-2022,Adults,Mind in Tower Hamlets And Newham,Private Contractors Payment - Other,33942.75,0.00,COMMERCIAL SUPPLIER 
 06-09-2022,Adults,Personal Information � Redacted,Direct Payments Income,693.80,0.00,INDIVIDUALS 
 06-09-2022,Adults,Personal Information � Redacted,Direct Payments Income,1387.60,0.00,INDIVIDUALS 
 06-09-2022,Adults,Personal Information � Redacted,Direct Payments Income,1387.60,0.00,INDIVIDUALS 
 06-09-2022,Adults,Personal Information � Redacted,Direct Payments Income,1538.04,0.00,INDIVIDUALS 
 06-09-2022,Adults,Personal Information � Redacted,Direct Payments Income,2050.72,0.00,INDIVIDUALS 
 06-09-2022,Adults,Rosemont Care Limited,Home Care - Private Contractors Payment,826.56,0.00,COMMERCIAL SUPPLIER 
 06-09-2022,Adults,Rosemont Care Limited,Home Care - Private Contractors Payment,1102.08,0.00,COMMERCIAL SUPPLIER 
 06-09-2022,Adults,Rosemont Care Limited,Home Care - Private Contractors Payment,1102.08,0.00,COMMERCIAL SUPPLIER 
 06-09-2022,Adults,Rosemont Care Limited,Home Care - Private Contractors Payment,826.56,0.00,COMMERCIAL SUPPLIER 
 06-09-2022,Adults,Rosemont Care Limited,Home Care - Private Contractors Payment,1102.08,0.00,COMMERCIAL SUPPLIER 
 06-09-2022,Adults,Rosemont Care Limited,Home Care - Private Contractors Payment,1102.08,0.00,COMMERCIAL SUPPLIER 
 06-09-2022,Adults,Rosemont Care Limited,Home Care - Private Contractors Payment,826.56,0.00,COMMERCIAL SUPPLIER 
 06-09-2022,Adults,Rosemont Care Limited,Home Care - Private Contractors Payment,826.56,0.00,COMMERCIAL SUPPLIER 
 06-09-2022,Adults,Rosemont Care Limited,Home Care - Private Contractors Payment,590.40,0.00,COMMERCIAL SUPPLIER 
 06-09-2022,Adults,Rosemont Care Limited,Home Care - Private Contractors Payment,590.40,0.00,COMMERCIAL SUPPLIER 
 06-09-2022,Adults,Rosemont Care Limited,Home Care - Private Contractors Payment,1102.08,0.00,COMMERCIAL SUPPLIER 
 06-09-2022,Adults,Rosemont Care Limited,Home Care - Private Contractors Payment,1102.08,0.00,COMMERCIAL SUPPLIER 
 06-09-2022,Adults,Rosemont Care Limited,Home Care - Private Contractors Payment,1102.08,0.00,COMMERCIAL SUPPLIER 
 06-09-2022,Adults,Rosemont Care Limited,Home Care - Private Contractors Payment,1102.08,0.00,COMMERCIAL SUPPLIER 
 06-09-2022,Adults,Rosemont Care Limited,Home Care - Private Contractors Payment,1102.08,0.00,COMMERCIAL SUPPLIER 
 06-09-2022,Adults,Rosemont Care Limited,Home Care - Private Contractors Payment,1102.08,0.00,COMMERCIAL SUPPLIER 
 06-09-2022,Adults,Rosemont Care Limited,Home Care - Private Contractors Payment,826.56,0.00,COMMERCIAL SUPPLIER 
 06-09-2022,Adults,Wealden Rehab Ltd,"Purchase - Equipment, Furniture And Materials",10117.07,0.00,COMMERCIAL SUPPLIER 
 07-09-2022,Adults,Matrix SCM Ltd,Agency Staff,520.66,0.00,COMMERCIAL SUPPLIER 
 07-09-2022,Adults,Matrix SCM Ltd,Agency Staff,1404.20,0.00,COMMERCIAL SUPPLIER 
 07-09-2022,Adults,Matrix SCM Ltd,Agency Staff,1068.32,0.00,COMMERCIAL SUPPLIER 
 07-09-2022,Adults,Matrix SCM Ltd,Agency Staff,1169.28,0.00,COMMERCIAL SUPPLIER 
 07-09-2022,Adults,Matrix SCM Ltd,Agency Staff,1295.70,0.00,COMMERCIAL SUPPLIER 
 07-09-2022,Adults,Matrix SCM Ltd,Agency Staff,777.42,0.00,COMMERCIAL SUPPLIER 
 07-09-2022,Adults,Matrix SCM Ltd,Agency Staff,1282.32,0.00,COMMERCIAL SUPPLIER 
 07-09-2022,Adults,Matrix SCM Ltd,Agency Staff,909.44,0.00,COMMERCIAL SUPPLIER 
 07-09-2022,Adults,Matrix SCM Ltd,Agency Staff,1030.40,0.00,COMMERCIAL SUPPLIER 
 07-09-2022,Adults,Matrix SCM Ltd,Agency Staff,537.75,0.00,COMMERCIAL SUPPLIER 
 07-09-2022,Adults,Matrix SCM Ltd,Agency Staff,1290.24,0.00,COMMERCIAL SUPPLIER 
 07-09-2022,Adults,Matrix SCM Ltd,Agency Staff,999.92,0.00,COMMERCIAL SUPPLIER 
 07-09-2022,Adults,Matrix SCM Ltd,Agency Staff,777.42,0.00,COMMERCIAL SUPPLIER 
 07-09-2022,Adults,Matrix SCM Ltd,Agency Staff,1207.46,0.00,COMMERCIAL SUPPLIER 
 07-09-2022,Adults,Matrix SCM Ltd,Agency Staff,982.68,0.00,COMMERCIAL SUPPLIER 
 07-09-2022,Adults,Matrix SCM Ltd,Agency Staff,1093.60,0.00,COMMERCIAL SUPPLIER 
 07-09-2022,Adults,Matrix SCM Ltd,Agency Staff,1128.40,0.00,COMMERCIAL SUPPLIER 
 07-09-2022,Adults,Matrix SCM Ltd,Agency Staff,1037.92,0.00,COMMERCIAL SUPPLIER 
 07-09-2022,Adults,Matrix SCM Ltd,Agency Staff,1002.52,0.00,COMMERCIAL SUPPLIER 
 07-09-2022,Adults,Matrix SCM Ltd,Agency Staff,972.68,0.00,COMMERCIAL SUPPLIER 
 07-09-2022,Adults,Matrix SCM Ltd,Agency Staff,592.76,0.00,COMMERCIAL SUPPLIER 
 07-09-2022,Adults,Matrix SCM Ltd,Agency Staff,999.92,0.00,COMMERCIAL SUPPLIER 
 07-09-2022,Adults,Matrix SCM Ltd,Agency Staff,965.44,0.00,COMMERCIAL SUPPLIER 
 07-09-2022,Adults,Matrix SCM Ltd,Agency Staff,999.92,0.00,COMMERCIAL SUPPLIER 
 07-09-2022,Adults,Matrix SCM Ltd,Agency Staff,991.30,0.00,COMMERCIAL SUPPLIER 
 07-09-2022,Adults,Matrix SCM Ltd,Agency Staff,626.72,0.00,COMMERCIAL SUPPLIER 
 07-09-2022,Adults,Matrix SCM Ltd,Agency Staff,680.36,0.00,COMMERCIAL SUPPLIER 
 07-09-2022,Adults,Matrix SCM Ltd,Agency Staff,602.88,0.00,COMMERCIAL SUPPLIER 
 07-09-2022,Adults,Matrix SCM Ltd,Agency Staff,1034.44,0.00,COMMERCIAL SUPPLIER 
 07-09-2022,Adults,Matrix SCM Ltd,Agency Staff,1035.88,0.00,COMMERCIAL SUPPLIER 
 07-09-2022,Adults,Matrix SCM Ltd,Agency Staff,584.92,0.00,COMMERCIAL SUPPLIER 
 07-09-2022,Adults,Matrix SCM Ltd,Agency Staff,912.36,0.00,COMMERCIAL SUPPLIER 
 07-09-2022,Adults,Matrix SCM Ltd,Agency Staff,667.20,0.00,COMMERCIAL SUPPLIER 
 07-09-2022,Adults,Matrix SCM Ltd,Agency Staff,529.84,0.00,COMMERCIAL SUPPLIER 
 07-09-2022,Adults,Matrix SCM Ltd,Agency Staff,1177.90,0.00,COMMERCIAL SUPPLIER 
 07-09-2022,Adults,Matrix SCM Ltd,Agency Staff,946.56,0.00,COMMERCIAL SUPPLIER 
 07-09-2022,Adults,Matrix SCM Ltd,Agency Staff,1024.08,0.00,COMMERCIAL SUPPLIER 
 07-09-2022,Adults,Matrix SCM Ltd,Agency Staff,943.28,0.00,COMMERCIAL SUPPLIER 
 07-09-2022,Adults,Matrix SCM Ltd,Agency Staff,943.28,0.00,COMMERCIAL SUPPLIER 
 07-09-2022,Adults,Matrix SCM Ltd,Agency Staff,847.36,0.00,COMMERCIAL SUPPLIER 
 07-09-2022,Adults,Matrix SCM Ltd,Agency Staff,1024.09,0.00,COMMERCIAL SUPPLIER 
 07-09-2022,Adults,Matrix SCM Ltd,Agency Staff,1207.46,0.00,COMMERCIAL SUPPLIER 
 07-09-2022,Adults,Matrix SCM Ltd,Agency Staff,1034.44,0.00,COMMERCIAL SUPPLIER 
 07-09-2022,Adults,Matrix SCM Ltd,Agency Staff,1176.45,0.00,COMMERCIAL SUPPLIER 
 07-09-2022,Adults,Matrix SCM Ltd,Agency Staff,593.40,0.00,COMMERCIAL SUPPLIER 
 07-09-2022,Adults,Matrix SCM Ltd,Agency Staff,1123.48,0.00,COMMERCIAL SUPPLIER 
 07-09-2022,Adults,Matrix SCM Ltd,Agency Staff,501.12,0.00,COMMERCIAL SUPPLIER 
 07-09-2022,Adults,Passion Tree Care Services Ltd,Home Care - Private Contractors Payment,1239.84,0.00,COMMERCIAL SUPPLIER 
 07-09-2022,Adults,Passion Tree Care Services Ltd,Home Care - Private Contractors Payment,944.64,0.00,COMMERCIAL SUPPLIER 
 07-09-2022,Adults,Passion Tree Care Services Ltd,Home Care - Private Contractors Payment,688.80,0.00,COMMERCIAL SUPPLIER 
 07-09-2022,Adults,Passion Tree Care Services Ltd,Home Care - Private Contractors Payment,1239.84,0.00,COMMERCIAL SUPPLIER 
 07-09-2022,Adults,Passion Tree Care Services Ltd,Home Care - Private Contractors Payment,1377.60,0.00,COMMERCIAL SUPPLIER 
 07-09-2022,Adults,Passion Tree Care Services Ltd,Home Care - Private Contractors Payment,551.04,0.00,COMMERCIAL SUPPLIER 
 07-09-2022,Adults,Passion Tree Care Services Ltd,Home Care - Private Contractors Payment,551.04,0.00,COMMERCIAL SUPPLIER 
 07-09-2022,Adults,Passion Tree Care Services Ltd,Home Care - Private Contractors Payment,551.04,0.00,COMMERCIAL SUPPLIER 
 07-09-2022,Adults,Passion Tree Care Services Ltd,Home Care - Private Contractors Payment,1554.72,0.00,COMMERCIAL SUPPLIER 
 07-09-2022,Adults,Passion Tree Care Services Ltd,Home Care - Private Contractors Payment,1102.08,0.00,COMMERCIAL SUPPLIER 
 07-09-2022,Adults,Passion Tree Care Services Ltd,Home Care - Private Contractors Payment,1121.76,0.00,COMMERCIAL SUPPLIER 
 07-09-2022,Adults,Passion Tree Care Services Ltd,Home Care - Private Contractors Payment,826.56,0.00,COMMERCIAL SUPPLIER 
 07-09-2022,Adults,Passion Tree Care Services Ltd,Home Care - Private Contractors Payment,1102.08,0.00,COMMERCIAL SUPPLIER 
 07-09-2022,Adults,Passion Tree Care Services Ltd,Home Care - Private Contractors Payment,551.04,0.00,COMMERCIAL SUPPLIER 
 07-09-2022,Adults,Passion Tree Care Services Ltd,Home Care - Private Contractors Payment,1102.08,0.00,COMMERCIAL SUPPLIER 
 07-09-2022,Adults,Passion Tree Care Services Ltd,Home Care - Private Contractors Payment,551.04,0.00,COMMERCIAL SUPPLIER 
 07-09-2022,Adults,Passion Tree Care Services Ltd,Home Care - Private Contractors Payment,1239.84,0.00,COMMERCIAL SUPPLIER 
 07-09-2022,Adults,Passion Tree Care Services Ltd,Home Care - Private Contractors Payment,551.04,0.00,COMMERCIAL SUPPLIER 
 07-09-2022,Adults,Pristine Care London Ltd ,Daycare - Private Contractors Payment,1155.00,0.00,COMMERCIAL SUPPLIER 
 07-09-2022,Adults,Pristine Care London Ltd ,Daycare - Private Contractors Payment,660.00,0.00,COMMERCIAL SUPPLIER 
 08-09-2022,Adults,Gims Care Solution Ltd_a,Home Care - Private Contractors Payment,2204.16,0.00,NON COMMERCIAL SUPPLIER 
 08-09-2022,Adults,Gims Care Solution Ltd_a,Home Care - Private Contractors Payment,1062.72,0.00,NON COMMERCIAL SUPPLIER 
 08-09-2022,Adults,Gims Care Solution Ltd_a,Home Care - Private Contractors Payment,3306.24,0.00,NON COMMERCIAL SUPPLIER 
 08-09-2022,Adults,Gims Care Solution Ltd_a,Home Care - Private Contractors Payment,7440.00,0.00,NON COMMERCIAL SUPPLIER 
 08-09-2022,Adults,Harrich Builders Ltd,"Maintenance - Equipment, Furniture And Materials",1512.00,0.00,CIS 
 08-09-2022,Adults,Prosperity Hope ,Supported Other Accommodation - Private Contractors Payment,1155.00,0.00,COMMERCIAL SUPPLIER 
 09-09-2022,Adults,Black Swan International Ltd - Drummonds,Residential Placements - Private Contractors Payment,1207.50,0.00,COMMERCIAL SUPPLIER 
 09-09-2022,Adults,Black Swan International Ltd - Drummonds,Residential Placements - Private Contractors Payment,2409.91,0.00,COMMERCIAL SUPPLIER 
 09-09-2022,Adults,Black Swan International Ltd - Drummonds,Residential Placements - Private Contractors Payment,2933.80,0.00,COMMERCIAL SUPPLIER 
 09-09-2022,Adults,Black Swan International Ltd - Drummonds,Residential Placements - Private Contractors Payment,2933.80,0.00,COMMERCIAL SUPPLIER 
 09-09-2022,Adults,Black Swan International Ltd - Drummonds,Residential Placements - Private Contractors Payment,1470.00,0.00,COMMERCIAL SUPPLIER 
 09-09-2022,Adults,Black Swan International Ltd - Drummonds,Residential Placements - Private Contractors Payment,1470.00,0.00,COMMERCIAL SUPPLIER 
 09-09-2022,Adults,Rosemont Care Limited,Home Care - Private Contractors Payment,806.88,0.00,COMMERCIAL SUPPLIER 
 09-09-2022,Adults,Rosemont Care Limited,Home Care - Private Contractors Payment,1102.08,0.00,COMMERCIAL SUPPLIER 
 09-09-2022,Adults,Rosemont Care Limited,Home Care - Private Contractors Payment,1102.08,0.00,COMMERCIAL SUPPLIER 
 09-09-2022,Adults,Rosemont Care Limited,Home Care - Private Contractors Payment,1102.08,0.00,COMMERCIAL SUPPLIER 
 09-09-2022,Adults,Rosemont Care Limited,Home Care - Private Contractors Payment,1102.08,0.00,COMMERCIAL SUPPLIER 
 09-09-2022,Adults,Rosemont Care Limited,Home Care - Private Contractors Payment,1102.08,0.00,COMMERCIAL SUPPLIER 
 09-09-2022,Adults,Rosemont Care Limited,Home Care - Private Contractors Payment,1102.08,0.00,COMMERCIAL SUPPLIER 
 09-09-2022,Adults,Rosemont Care Limited,Home Care - Private Contractors Payment,1102.08,0.00,COMMERCIAL SUPPLIER 
 09-09-2022,Adults,Rosemont Care Limited,Home Care - Private Contractors Payment,560.88,0.00,COMMERCIAL SUPPLIER 
 09-09-2022,Adults,Rosemont Care Limited,Home Care - Private Contractors Payment,826.56,0.00,COMMERCIAL SUPPLIER 
 09-09-2022,Adults,Rosemont Care Limited,Home Care - Private Contractors Payment,826.56,0.00,COMMERCIAL SUPPLIER 
 09-09-2022,Adults,Rosemont Care Limited,Home Care - Private Contractors Payment,1102.08,0.00,COMMERCIAL SUPPLIER 
 09-09-2022,Adults,Rosemont Care Limited,Home Care - Private Contractors Payment,1102.08,0.00,COMMERCIAL SUPPLIER 
 09-09-2022,Adults,Rosemont Care Limited,Home Care - Private Contractors Payment,551.04,0.00,COMMERCIAL SUPPLIER 
 09-09-2022,Adults,Rosemont Care Limited,Home Care - Private Contractors Payment,1102.08,0.00,COMMERCIAL SUPPLIER 
 11-09-2022,Adults,Homestead Care Service,Home Care - Private Contractors Payment,550.38,0.00,COMMERCIAL SUPPLIER 
 11-09-2022,Adults,Homestead Care Service,Home Care - Private Contractors Payment,847.88,0.00,COMMERCIAL SUPPLIER 
 11-09-2022,Adults,Homestead Care Service,Home Care - Private Contractors Payment,922.34,0.00,COMMERCIAL SUPPLIER 
 11-09-2022,Adults,Homestead Care Service,Home Care - Private Contractors Payment,942.34,0.00,COMMERCIAL SUPPLIER 
 11-09-2022,Adults,Homestead Care Service,Home Care - Private Contractors Payment,565.47,0.00,COMMERCIAL SUPPLIER 
 11-09-2022,Adults,Homestead Care Service,Home Care - Private Contractors Payment,1002.70,0.00,COMMERCIAL SUPPLIER 
 11-09-2022,Adults,Homestead Care Service,Home Care - Private Contractors Payment,595.32,0.00,COMMERCIAL SUPPLIER 
 11-09-2022,Adults,Homestead Care Service,Home Care - Private Contractors Payment,1173.91,0.00,COMMERCIAL SUPPLIER 
 11-09-2022,Adults,Homestead Care Service,Home Care - Private Contractors Payment,1196.22,0.00,COMMERCIAL SUPPLIER 
 11-09-2022,Adults,Homestead Care Service,Home Care - Private Contractors Payment,756.04,0.00,COMMERCIAL SUPPLIER 
 11-09-2022,Adults,Homestead Care Service,Home Care - Private Contractors Payment,749.15,0.00,COMMERCIAL SUPPLIER 
 11-09-2022,Adults,Homestead Care Service,Home Care - Private Contractors Payment,758.34,0.00,COMMERCIAL SUPPLIER 
 11-09-2022,Adults,Homestead Care Service,Home Care - Private Contractors Payment,835.09,0.00,COMMERCIAL SUPPLIER 
 11-09-2022,Adults,Homestead Care Service,Home Care - Private Contractors Payment,635.99,0.00,COMMERCIAL SUPPLIER 
 11-09-2022,Adults,Homestead Care Service,Home Care - Private Contractors Payment,667.48,0.00,COMMERCIAL SUPPLIER 
 11-09-2022,Adults,Homestead Care Service,Home Care - Private Contractors Payment,867.56,0.00,COMMERCIAL SUPPLIER 
 11-09-2022,Adults,Homestead Care Service,Home Care - Private Contractors Payment,867.89,0.00,COMMERCIAL SUPPLIER 
 11-09-2022,Adults,Homestead Care Service,Home Care - Private Contractors Payment,1135.54,0.00,COMMERCIAL SUPPLIER 
 11-09-2022,Adults,Homestead Care Service,Home Care - Private Contractors Payment,1003.68,0.00,COMMERCIAL SUPPLIER 
 11-09-2022,Adults,Homestead Care Service,Home Care - Private Contractors Payment,1003.68,0.00,COMMERCIAL SUPPLIER 
 11-09-2022,Adults,Homestead Care Service,Home Care - Private Contractors Payment,931.52,0.00,COMMERCIAL SUPPLIER 
 11-09-2022,Adults,Homestead Care Service,Home Care - Private Contractors Payment,966.94,0.00,COMMERCIAL SUPPLIER 
 11-09-2022,Adults,Homestead Care Service,Home Care - Private Contractors Payment,1094.54,0.00,COMMERCIAL SUPPLIER 
 11-09-2022,Adults,Homestead Care Service,Home Care - Private Contractors Payment,1104.70,0.00,COMMERCIAL SUPPLIER 
 11-09-2022,Adults,Homestead Care Service,Home Care - Private Contractors Payment,1131.93,0.00,COMMERCIAL SUPPLIER 
 11-09-2022,Adults,Homestead Care Service,Home Care - Private Contractors Payment,1117.17,0.00,COMMERCIAL SUPPLIER 
 11-09-2022,Adults,Homestead Care Service,Home Care - Private Contractors Payment,1144.72,0.00,COMMERCIAL SUPPLIER 
 11-09-2022,Adults,Homestead Care Service,Home Care - Private Contractors Payment,840.34,0.00,COMMERCIAL SUPPLIER 
 11-09-2022,Adults,Homestead Care Service,Home Care - Private Contractors Payment,800.98,0.00,COMMERCIAL SUPPLIER 
 11-09-2022,Adults,Homestead Care Service,Home Care - Private Contractors Payment,831.15,0.00,COMMERCIAL SUPPLIER 
 11-09-2022,Adults,Homestead Care Service,Home Care - Private Contractors Payment,999.74,0.00,COMMERCIAL SUPPLIER 
 11-09-2022,Adults,Homestead Care Service,Home Care - Private Contractors Payment,1009.91,0.00,COMMERCIAL SUPPLIER 
 11-09-2022,Adults,Homestead Care Service,Home Care - Private Contractors Payment,502.17,0.00,COMMERCIAL SUPPLIER 
 11-09-2022,Adults,Homestead Care Service,Home Care - Private Contractors Payment,1183.10,0.00,COMMERCIAL SUPPLIER 
 11-09-2022,Adults,Homestead Care Service,Home Care - Private Contractors Payment,971.54,0.00,COMMERCIAL SUPPLIER 
 11-09-2022,Adults,Homestead Care Service,Home Care - Private Contractors Payment,1113.56,0.00,COMMERCIAL SUPPLIER 
 11-09-2022,Adults,Homestead Care Service,Home Care - Private Contractors Payment,977.44,0.00,COMMERCIAL SUPPLIER 
 11-09-2022,Adults,Homestead Care Service,Home Care - Private Contractors Payment,1001.71,0.00,COMMERCIAL SUPPLIER 
 11-09-2022,Adults,Homestead Care Service,Home Care - Private Contractors Payment,1212.29,0.00,COMMERCIAL SUPPLIER 
 11-09-2022,Adults,Homestead Care Service,Home Care - Private Contractors Payment,629.76,0.00,COMMERCIAL SUPPLIER 
 11-09-2022,Adults,Homestead Care Service,Home Care - Private Contractors Payment,1098.47,0.00,COMMERCIAL SUPPLIER 
 11-09-2022,Adults,Homestead Care Service,Home Care - Private Contractors Payment,1276.25,0.00,COMMERCIAL SUPPLIER 
 11-09-2022,Adults,Homestead Care Service,Home Care - Private Contractors Payment,1295.93,0.00,COMMERCIAL SUPPLIER 
 11-09-2022,Adults,Homestead Care Service,Home Care - Private Contractors Payment,960.06,0.00,COMMERCIAL SUPPLIER 
 11-09-2022,Adults,Homestead Care Service,Home Care - Private Contractors Payment,551.04,0.00,COMMERCIAL SUPPLIER 
 11-09-2022,Adults,Homestead Care Service,Home Care - Private Contractors Payment,1170.96,0.00,COMMERCIAL SUPPLIER 
 11-09-2022,Adults,Homestead Care Service,Home Care - Private Contractors Payment,1180.47,0.00,COMMERCIAL SUPPLIER 
 11-09-2022,Adults,Homestead Care Service,Home Care - Private Contractors Payment,1089.29,0.00,COMMERCIAL SUPPLIER 
 11-09-2022,Adults,Homestead Care Service,Home Care - Private Contractors Payment,1098.14,0.00,COMMERCIAL SUPPLIER 
 11-09-2022,Adults,Homestead Care Service,Home Care - Private Contractors Payment,1108.97,0.00,COMMERCIAL SUPPLIER 
 11-09-2022,Adults,Homestead Care Service,Home Care - Private Contractors Payment,1004.34,0.00,COMMERCIAL SUPPLIER 
 11-09-2022,Adults,Homestead Care Service,Home Care - Private Contractors Payment,1098.47,0.00,COMMERCIAL SUPPLIER 
 11-09-2022,Adults,Homestead Care Service,Home Care - Private Contractors Payment,531.36,0.00,COMMERCIAL SUPPLIER 
 11-09-2022,Adults,Homestead Care Service,Home Care - Private Contractors Payment,1004.66,0.00,COMMERCIAL SUPPLIER 
 11-09-2022,Adults,Homestead Care Service,Home Care - Private Contractors Payment,735.70,0.00,COMMERCIAL SUPPLIER 
 11-09-2022,Adults,Homestead Care Service,Home Care - Private Contractors Payment,741.61,0.00,COMMERCIAL SUPPLIER 
 11-09-2022,Adults,Homestead Care Service,Home Care - Private Contractors Payment,534.97,0.00,COMMERCIAL SUPPLIER 
 11-09-2022,Adults,Homestead Care Service,Home Care - Private Contractors Payment,967.93,0.00,COMMERCIAL SUPPLIER 
 11-09-2022,Adults,Homestead Care Service,Home Care - Private Contractors Payment,1032.22,0.00,COMMERCIAL SUPPLIER 
 11-09-2022,Adults,Homestead Care Service,Home Care - Private Contractors Payment,767.52,0.00,COMMERCIAL SUPPLIER 
 11-09-2022,Adults,Homestead Care Service,Home Care - Private Contractors Payment,552.02,0.00,COMMERCIAL SUPPLIER 
 11-09-2022,Adults,Homestead Care Service,Home Care - Private Contractors Payment,822.30,0.00,COMMERCIAL SUPPLIER 
 11-09-2022,Adults,Homestead Care Service,Home Care - Private Contractors Payment,1257.55,0.00,COMMERCIAL SUPPLIER 
 11-09-2022,Adults,Homestead Care Service,Home Care - Private Contractors Payment,678.96,0.00,COMMERCIAL SUPPLIER 
 11-09-2022,Adults,Homestead Care Service,Home Care - Private Contractors Payment,590.40,0.00,COMMERCIAL SUPPLIER 
 11-09-2022,Adults,Homestead Care Service,Home Care - Private Contractors Payment,1026.97,0.00,COMMERCIAL SUPPLIER 
 11-09-2022,Adults,Homestead Care Service,Home Care - Private Contractors Payment,1100.44,0.00,COMMERCIAL SUPPLIER 
 11-09-2022,Adults,Homestead Care Service,Home Care - Private Contractors Payment,992.86,0.00,COMMERCIAL SUPPLIER 
 11-09-2022,Adults,Homestead Care Service,Home Care - Private Contractors Payment,1151.28,0.00,COMMERCIAL SUPPLIER 
 11-09-2022,Adults,Homestead Care Service,Home Care - Private Contractors Payment,1171.29,0.00,COMMERCIAL SUPPLIER 
 11-09-2022,Adults,Homestead Care Service,Home Care - Private Contractors Payment,1157.51,0.00,COMMERCIAL SUPPLIER 
 11-09-2022,Adults,Homestead Care Service,Home Care - Private Contractors Payment,1177.85,0.00,COMMERCIAL SUPPLIER 
 11-09-2022,Adults,Homestead Care Service,Home Care - Private Contractors Payment,877.73,0.00,COMMERCIAL SUPPLIER 
 11-09-2022,Adults,Homestead Care Service,Home Care - Private Contractors Payment,510.70,0.00,COMMERCIAL SUPPLIER 
 11-09-2022,Adults,Homestead Care Service,Home Care - Private Contractors Payment,659.28,0.00,COMMERCIAL SUPPLIER 
 11-09-2022,Adults,Homestead Care Service,Home Care - Private Contractors Payment,1062.72,0.00,COMMERCIAL SUPPLIER 
 11-09-2022,Adults,Homestead Care Service,Home Care - Private Contractors Payment,1155.87,0.00,COMMERCIAL SUPPLIER 
 11-09-2022,Adults,Homestead Care Service,Home Care - Private Contractors Payment,1149.97,0.00,COMMERCIAL SUPPLIER 
 11-09-2022,Adults,Homestead Care Service,Home Care - Private Contractors Payment,1104.05,0.00,COMMERCIAL SUPPLIER 
 11-09-2022,Adults,Homestead Care Service,Home Care - Private Contractors Payment,630.74,0.00,COMMERCIAL SUPPLIER 
 11-09-2022,Adults,Homestead Care Service,Home Care - Private Contractors Payment,966.29,0.00,COMMERCIAL SUPPLIER 
 11-09-2022,Adults,Homestead Care Service,Home Care - Private Contractors Payment,1017.78,0.00,COMMERCIAL SUPPLIER 
 11-09-2022,Adults,Homestead Care Service,Home Care - Private Contractors Payment,963.99,0.00,COMMERCIAL SUPPLIER 
 11-09-2022,Adults,Homestead Care Service,Home Care - Private Contractors Payment,524.47,0.00,COMMERCIAL SUPPLIER 
 11-09-2022,Adults,Homestead Care Service,Home Care - Private Contractors Payment,1033.20,0.00,COMMERCIAL SUPPLIER 
 11-09-2022,Adults,Homestead Care Service,Home Care - Private Contractors Payment,1033.20,0.00,COMMERCIAL SUPPLIER 
 11-09-2022,Adults,Homestead Care Service,Home Care - Private Contractors Payment,1562.92,0.00,COMMERCIAL SUPPLIER 
 11-09-2022,Adults,Homestead Care Service,Home Care - Private Contractors Payment,2774.22,0.00,COMMERCIAL SUPPLIER 
 11-09-2022,Adults,Homestead Care Service,Home Care - Private Contractors Payment,693.06,0.00,COMMERCIAL SUPPLIER 
 11-09-2022,Adults,Homestead Care Service,Home Care - Private Contractors Payment,693.72,0.00,COMMERCIAL SUPPLIER 
 11-09-2022,Adults,Homestead Care Service,Home Care - Private Contractors Payment,1155.87,0.00,COMMERCIAL SUPPLIER 
 11-09-2022,Adults,Homestead Care Service,Home Care - Private Contractors Payment,1157.18,0.00,COMMERCIAL SUPPLIER 
 11-09-2022,Adults,Homestead Care Service,Home Care - Private Contractors Payment,608.77,0.00,COMMERCIAL SUPPLIER 
 11-09-2022,Adults,Homestead Care Service,Home Care - Private Contractors Payment,744.89,0.00,COMMERCIAL SUPPLIER 
 11-09-2022,Adults,Homestead Care Service,Home Care - Private Contractors Payment,593.68,0.00,COMMERCIAL SUPPLIER 
 11-09-2022,Adults,Homestead Care Service,Home Care - Private Contractors Payment,1104.38,0.00,COMMERCIAL SUPPLIER 
 11-09-2022,Adults,Homestead Care Service,Home Care - Private Contractors Payment,835.42,0.00,COMMERCIAL SUPPLIER 
 11-09-2022,Adults,Homestead Care Service,Home Care - Private Contractors Payment,747.84,0.00,COMMERCIAL SUPPLIER 
 11-09-2022,Adults,Homestead Care Service,Home Care - Private Contractors Payment,1073.87,0.00,COMMERCIAL SUPPLIER 
 11-09-2022,Adults,Homestead Care Service,Home Care - Private Contractors Payment,983.67,0.00,COMMERCIAL SUPPLIER 
 11-09-2022,Adults,Homestead Care Service,Home Care - Private Contractors Payment,1306.75,0.00,COMMERCIAL SUPPLIER 
 11-09-2022,Adults,Homestead Care Service,Home Care - Private Contractors Payment,1023.36,0.00,COMMERCIAL SUPPLIER 
 11-09-2022,Adults,Homestead Care Service,Home Care - Private Contractors Payment,1083.71,0.00,COMMERCIAL SUPPLIER 
 11-09-2022,Adults,Homestead Care Service,Home Care - Private Contractors Payment,1083.71,0.00,COMMERCIAL SUPPLIER 
 11-09-2022,Adults,Homestead Care Service,Home Care - Private Contractors Payment,1030.90,0.00,COMMERCIAL SUPPLIER 
 11-09-2022,Adults,Homestead Care Service,Home Care - Private Contractors Payment,954.48,0.00,COMMERCIAL SUPPLIER 
 11-09-2022,Adults,Homestead Care Service,Home Care - Private Contractors Payment,501.84,0.00,COMMERCIAL SUPPLIER 
 11-09-2022,Adults,Homestead Care Service,Home Care - Private Contractors Payment,887.57,0.00,COMMERCIAL SUPPLIER 
 11-09-2022,Adults,Homestead Care Service,Home Care - Private Contractors Payment,608.77,0.00,COMMERCIAL SUPPLIER 
 11-09-2022,Adults,Homestead Care Service,Home Care - Private Contractors Payment,1048.29,0.00,COMMERCIAL SUPPLIER 
 11-09-2022,Adults,Homestead Care Service,Home Care - Private Contractors Payment,729.14,0.00,COMMERCIAL SUPPLIER 
 11-09-2022,Adults,Homestead Care Service,Home Care - Private Contractors Payment,1095.52,0.00,COMMERCIAL SUPPLIER 
 11-09-2022,Adults,Homestead Care Service,Home Care - Private Contractors Payment,1232.95,0.00,COMMERCIAL SUPPLIER 
 11-09-2022,Adults,Homestead Care Service,Home Care - Private Contractors Payment,779.00,0.00,COMMERCIAL SUPPLIER 
 11-09-2022,Adults,Homestead Care Service,Home Care - Private Contractors Payment,570.72,0.00,COMMERCIAL SUPPLIER 
 11-09-2022,Adults,Homestead Care Service,Home Care - Private Contractors Payment,826.56,0.00,COMMERCIAL SUPPLIER 
 11-09-2022,Adults,Homestead Care Service,Home Care - Private Contractors Payment,1423.19,0.00,COMMERCIAL SUPPLIER 
 11-09-2022,Adults,Homestead Care Service,Home Care - Private Contractors Payment,1111.59,0.00,COMMERCIAL SUPPLIER 
 11-09-2022,Adults,Optimal Care Services Ltd,Supported Other Accommodation - Private Contractors Payment,7532.48,0.00,COMMERCIAL SUPPLIER 
 11-09-2022,Adults,Optimal Care Services Ltd,Supported Other Accommodation - Private Contractors Payment,3853.28,0.00,COMMERCIAL SUPPLIER 
 11-09-2022,Adults,Optimal Care Services Ltd,Supported Other Accommodation - Private Contractors Payment,6191.84,0.00,COMMERCIAL SUPPLIER 
 11-09-2022,Adults,Westminster Homecare Ltd_a,Home Care - Private Contractors Payment,1582.27,0.00,COMMERCIAL SUPPLIER 
 11-09-2022,Adults,Westminster Homecare Ltd_a,Home Care - Private Contractors Payment,531.36,0.00,COMMERCIAL SUPPLIER 
 11-09-2022,Adults,Westminster Homecare Ltd_a,Home Care - Private Contractors Payment,901.34,0.00,COMMERCIAL SUPPLIER 
 11-09-2022,Adults,Westminster Homecare Ltd_a,Home Care - Private Contractors Payment,1423.19,0.00,COMMERCIAL SUPPLIER 
 11-09-2022,Adults,Westminster Homecare Ltd_a,Home Care - Private Contractors Payment,1242.14,0.00,COMMERCIAL SUPPLIER 
 11-09-2022,Adults,Westminster Homecare Ltd_a,Home Care - Private Contractors Payment,622.22,0.00,COMMERCIAL SUPPLIER 
 11-09-2022,Adults,Westminster Homecare Ltd_a,Home Care - Private Contractors Payment,515.29,0.00,COMMERCIAL SUPPLIER 
 11-09-2022,Adults,Westminster Homecare Ltd_a,Home Care - Private Contractors Payment,1573.09,0.00,COMMERCIAL SUPPLIER 
 12-09-2022,Adults,Gims Care Solution Ltd_a,Home Care - Private Contractors Payment,708.48,0.00,NON COMMERCIAL SUPPLIER 
 12-09-2022,Adults,Gims Care Solution Ltd_a,Home Care - Private Contractors Payment,531.36,0.00,NON COMMERCIAL SUPPLIER 
 12-09-2022,Adults,Independent People Homecare Services,Home Care - Private Contractors Payment,4743.00,0.00,NON COMMERCIAL SUPPLIER 
 12-09-2022,Adults,Tapestry_a.,Daycare - Private Contractors Payment,969.00,0.00,COMMERCIAL SUPPLIER 
 12-09-2022,Adults,Tapestry_a.,Daycare - Private Contractors Payment,684.00,0.00,COMMERCIAL SUPPLIER 
 12-09-2022,Adults,Tapestry_a.,Daycare - Private Contractors Payment,1140.00,0.00,COMMERCIAL SUPPLIER 
 12-09-2022,Adults,Tapestry_a.,Daycare - Private Contractors Payment,684.00,0.00,COMMERCIAL SUPPLIER 
 12-09-2022,Adults,Tapestry_a.,Daycare - Private Contractors Payment,912.00,0.00,COMMERCIAL SUPPLIER 
 12-09-2022,Adults,Tapestry_a.,Daycare - Private Contractors Payment,1140.00,0.00,COMMERCIAL SUPPLIER 
 12-09-2022,Adults,Tapestry_a.,Daycare - Private Contractors Payment,684.00,0.00,COMMERCIAL SUPPLIER 
 12-09-2022,Adults,Tapestry_a.,Daycare - Private Contractors Payment,1140.00,0.00,COMMERCIAL SUPPLIER 
 12-09-2022,Adults,Tapestry_a.,Daycare - Private Contractors Payment,684.00,0.00,COMMERCIAL SUPPLIER 
 12-09-2022,Adults,Tapestry_a.,Daycare - Private Contractors Payment,912.00,0.00,COMMERCIAL SUPPLIER 
 12-09-2022,Adults,Tapestry_a.,Daycare - Private Contractors Payment,684.00,0.00,COMMERCIAL SUPPLIER 
 12-09-2022,Adults,Tapestry_a.,Daycare - Private Contractors Payment,855.00,0.00,COMMERCIAL SUPPLIER 
 12-09-2022,Adults,Tapestry_a.,Daycare - Private Contractors Payment,1140.00,0.00,COMMERCIAL SUPPLIER 
 12-09-2022,Adults,Tapestry_a.,Daycare - Private Contractors Payment,912.00,0.00,COMMERCIAL SUPPLIER 
 12-09-2022,Adults,Tapestry_a.,Daycare - Private Contractors Payment,684.00,0.00,COMMERCIAL SUPPLIER 
 12-09-2022,Adults,Tapestry_a.,Daycare - Private Contractors Payment,513.00,0.00,COMMERCIAL SUPPLIER 
 12-09-2022,Adults,Tapestry_a.,Daycare - Private Contractors Payment,1140.00,0.00,COMMERCIAL SUPPLIER 
 12-09-2022,Adults,Bluebird Care Havering,Home Care - Private Contractors Payment,2450.00,0.00,COMMERCIAL SUPPLIER 
 12-09-2022,Adults,Bluebird Care Havering,Home Care - Private Contractors Payment,2450.00,0.00,COMMERCIAL SUPPLIER 
 12-09-2022,Adults,Bluebird Care Havering,Home Care - Private Contractors Payment,816.50,0.00,COMMERCIAL SUPPLIER 
 12-09-2022,Adults,Bluebird Care Havering,Home Care - Private Contractors Payment,1333.00,0.00,COMMERCIAL SUPPLIER 
 12-09-2022,Adults,Essex Cares Ltd,Private Contractors Payment - Other,7202.48,0.00,COMMERCIAL SUPPLIER 
 12-09-2022,Adults,Inna Care Ltd,Home Care - Private Contractors Payment,551.04,0.00,COMMERCIAL SUPPLIER 
 12-09-2022,Adults,Inna Care Ltd,Home Care - Private Contractors Payment,826.56,0.00,COMMERCIAL SUPPLIER 
 12-09-2022,Adults,Inna Care Ltd,Home Care - Private Contractors Payment,826.56,0.00,COMMERCIAL SUPPLIER 
 12-09-2022,Adults,Inna Care Ltd,Home Care - Private Contractors Payment,905.28,0.00,COMMERCIAL SUPPLIER 
 12-09-2022,Adults,Inna Care Ltd,Home Care - Private Contractors Payment,1102.08,0.00,COMMERCIAL SUPPLIER 
 12-09-2022,Adults,Inna Care Ltd,Home Care - Private Contractors Payment,649.44,0.00,COMMERCIAL SUPPLIER 
 12-09-2022,Adults,Inna Care Ltd,Home Care - Private Contractors Payment,826.56,0.00,COMMERCIAL SUPPLIER 
 12-09-2022,Adults,Inna Care Ltd,Home Care - Private Contractors Payment,826.56,0.00,COMMERCIAL SUPPLIER 
 12-09-2022,Adults,Inna Care Ltd,Home Care - Private Contractors Payment,1102.08,0.00,COMMERCIAL SUPPLIER 
 12-09-2022,Adults,Inna Care Ltd,Home Care - Private Contractors Payment,1102.08,0.00,COMMERCIAL SUPPLIER 
 12-09-2022,Adults,Inna Care Ltd,Home Care - Private Contractors Payment,1102.08,0.00,COMMERCIAL SUPPLIER 
 12-09-2022,Adults,Inna Care Ltd,Home Care - Private Contractors Payment,826.56,0.00,COMMERCIAL SUPPLIER 
 12-09-2022,Adults,Inna Care Ltd,Home Care - Private Contractors Payment,787.20,0.00,COMMERCIAL SUPPLIER 
 12-09-2022,Adults,Inna Care Ltd,Home Care - Private Contractors Payment,2204.16,0.00,COMMERCIAL SUPPLIER 
 12-09-2022,Adults,Inna Care Ltd,Home Care - Private Contractors Payment,1102.08,0.00,COMMERCIAL SUPPLIER 
 12-09-2022,Adults,Inna Care Ltd,Home Care - Private Contractors Payment,551.04,0.00,COMMERCIAL SUPPLIER 
 12-09-2022,Adults,Inna Care Ltd,Home Care - Private Contractors Payment,1239.84,0.00,COMMERCIAL SUPPLIER 
 12-09-2022,Adults,Inna Care Ltd,Home Care - Private Contractors Payment,1239.84,0.00,COMMERCIAL SUPPLIER 
 12-09-2022,Adults,Inna Care Ltd,Home Care - Private Contractors Payment,826.56,0.00,COMMERCIAL SUPPLIER 
 12-09-2022,Adults,Inna Care Ltd,Home Care - Private Contractors Payment,1928.64,0.00,COMMERCIAL SUPPLIER 
 12-09-2022,Adults,Inna Care Ltd,Home Care - Private Contractors Payment,551.04,0.00,COMMERCIAL SUPPLIER 
 12-09-2022,Adults,Inna Care Ltd,Home Care - Private Contractors Payment,826.56,0.00,COMMERCIAL SUPPLIER 
 12-09-2022,Adults,Inna Care Ltd,Home Care - Private Contractors Payment,2204.16,0.00,COMMERCIAL SUPPLIER 
 12-09-2022,Adults,Inna Care Ltd,Home Care - Private Contractors Payment,1062.72,0.00,COMMERCIAL SUPPLIER 
 12-09-2022,Adults,London Homecare Ltd,Home Care - Private Contractors Payment,1239.84,0.00,COMMERCIAL SUPPLIER 
 12-09-2022,Adults,London Homecare Ltd,Home Care - Private Contractors Payment,1239.84,0.00,COMMERCIAL SUPPLIER 
 12-09-2022,Adults,London Homecare Ltd,Home Care - Private Contractors Payment,669.12,0.00,COMMERCIAL SUPPLIER 
 12-09-2022,Adults,London Homecare Ltd,Home Care - Private Contractors Payment,1377.60,0.00,COMMERCIAL SUPPLIER 
 12-09-2022,Adults,London Homecare Ltd,Home Care - Private Contractors Payment,1397.28,0.00,COMMERCIAL SUPPLIER 
 12-09-2022,Adults,London Homecare Ltd,Home Care - Private Contractors Payment,590.40,0.00,COMMERCIAL SUPPLIER 
 12-09-2022,Adults,London Homecare Ltd,Home Care - Private Contractors Payment,1279.20,0.00,COMMERCIAL SUPPLIER 
 12-09-2022,Adults,London Homecare Ltd,Home Care - Private Contractors Payment,1102.08,0.00,COMMERCIAL SUPPLIER 
 12-09-2022,Adults,London Homecare Ltd,Home Care - Private Contractors Payment,688.80,0.00,COMMERCIAL SUPPLIER 
 12-09-2022,Adults,London Homecare Ltd,Home Care - Private Contractors Payment,2282.88,0.00,COMMERCIAL SUPPLIER 
 12-09-2022,Adults,London Homecare Ltd,Home Care - Private Contractors Payment,1102.08,0.00,COMMERCIAL SUPPLIER 
 12-09-2022,Adults,London Homecare Ltd,Home Care - Private Contractors Payment,1239.84,0.00,COMMERCIAL SUPPLIER 
 12-09-2022,Adults,London Homecare Ltd,Home Care - Private Contractors Payment,1239.84,0.00,COMMERCIAL SUPPLIER 
 12-09-2022,Adults,London Homecare Ltd,Home Care - Private Contractors Payment,1239.84,0.00,COMMERCIAL SUPPLIER 
 12-09-2022,Adults,Premier Carewaiting Ltd,Home Care - Private Contractors Payment,1259.52,0.00,COMMERCIAL SUPPLIER 
 12-09-2022,Adults,Premier Carewaiting Ltd,Home Care - Private Contractors Payment,1968.00,0.00,COMMERCIAL SUPPLIER 
 12-09-2022,Adults,Premier Carewaiting Ltd,Home Care - Private Contractors Payment,1239.84,0.00,COMMERCIAL SUPPLIER 
 12-09-2022,Adults,Premier Carewaiting Ltd,Home Care - Private Contractors Payment,1653.12,0.00,COMMERCIAL SUPPLIER 
 12-09-2022,Adults,Premier Carewaiting Ltd,Home Care - Private Contractors Payment,826.56,0.00,COMMERCIAL SUPPLIER 
 12-09-2022,Adults,Premier Carewaiting Ltd,Home Care - Private Contractors Payment,1298.88,0.00,COMMERCIAL SUPPLIER 
 12-09-2022,Adults,Premier Carewaiting Ltd,Home Care - Private Contractors Payment,1298.88,0.00,COMMERCIAL SUPPLIER 
 12-09-2022,Adults,Premier Carewaiting Ltd,Home Care - Private Contractors Payment,826.56,0.00,COMMERCIAL SUPPLIER 
 12-09-2022,Adults,Premier Carewaiting Ltd,Home Care - Private Contractors Payment,1653.12,0.00,COMMERCIAL SUPPLIER 
 12-09-2022,Adults,Ace Outreach Ltd,Home Care - Private Contractors Payment,7200.00,0.00,COMMERCIAL SUPPLIER 
 12-09-2022,Adults,Ace Outreach Ltd,Home Care - Private Contractors Payment,1260.00,0.00,COMMERCIAL SUPPLIER 
 12-09-2022,Adults,The Camden Society,Daycare - Private Contractors Payment,520.00,0.00,NON COMMERCIAL SUPPLIER 
 13-09-2022,Adults,Flex360 Limited,Private Contractors Payment - Other,700.00,0.00,COMMERCIAL SUPPLIER 
 13-09-2022,Adults,R G Care Ltd ,Daycare - Private Contractors Payment,800.00,0.00,COMMERCIAL SUPPLIER 
 13-09-2022,Adults,Romford Private Hire Ltd,Client Transport,3010.00,0.00,COMMERCIAL SUPPLIER 
 13-09-2022,Adults,Romford Private Hire Ltd,Client Transport,3410.00,0.00,COMMERCIAL SUPPLIER 
 13-09-2022,Adults,Romford Private Hire Ltd,Client Transport,680.00,0.00,COMMERCIAL SUPPLIER 
 13-09-2022,Adults,Eastway Care Ltd_a,Daycare - Private Contractors Payment,860.00,0.00,COMMERCIAL SUPPLIER 
 13-09-2022,Adults,Eastway Care Ltd_a,Daycare - Private Contractors Payment,3440.00,0.00,COMMERCIAL SUPPLIER 
 13-09-2022,Adults,Eastway Care Ltd_a,Daycare - Private Contractors Payment,2580.00,0.00,COMMERCIAL SUPPLIER 
 13-09-2022,Adults,Eastway Care Ltd_a,Daycare - Private Contractors Payment,4300.00,0.00,COMMERCIAL SUPPLIER 
 13-09-2022,Adults,Eastway Care Ltd_a,Daycare - Private Contractors Payment,4300.00,0.00,COMMERCIAL SUPPLIER 
 13-09-2022,Adults,Eastway Care Ltd_a,Daycare - Private Contractors Payment,1380.00,0.00,COMMERCIAL SUPPLIER 
 13-09-2022,Adults,Eastway Care Ltd_a,Daycare - Private Contractors Payment,3850.00,0.00,COMMERCIAL SUPPLIER 
 13-09-2022,Adults,Eastway Care Ltd_a,Daycare - Private Contractors Payment,3440.00,0.00,COMMERCIAL SUPPLIER 
 13-09-2022,Adults,Eastway Care Ltd_a,Daycare - Private Contractors Payment,3100.00,0.00,COMMERCIAL SUPPLIER 
 13-09-2022,Adults,Eastway Care Ltd_a,Daycare - Private Contractors Payment,860.00,0.00,COMMERCIAL SUPPLIER 
 13-09-2022,Adults,Eastway Care Ltd_a,Daycare - Private Contractors Payment,2580.00,0.00,COMMERCIAL SUPPLIER 
 13-09-2022,Adults,Eastway Care Ltd_a,Daycare - Private Contractors Payment,4800.00,0.00,COMMERCIAL SUPPLIER 
 13-09-2022,Adults,Eastway Care Ltd_a,Daycare - Private Contractors Payment,4300.00,0.00,COMMERCIAL SUPPLIER 
 13-09-2022,Adults,Thurrock Lifestyle Solutions CIC,Daycare - Private Contractors Payment,4314.00,0.00,COMMERCIAL SUPPLIER 
 13-09-2022,Adults,Havering Healthwatch C.I.C,Payment To Health Authorities,29339.75,0.00,COMMERCIAL SUPPLIER 
 13-09-2022,Adults,Certified Healthcare Solutions Ltd t/a In Home Care Havering,Home Care - Private Contractors Payment,541.20,0.00,COMMERCIAL SUPPLIER 
 13-09-2022,Adults,Certified Healthcare Solutions Ltd t/a In Home Care Havering,Home Care - Private Contractors Payment,541.20,0.00,COMMERCIAL SUPPLIER 
 13-09-2022,Adults,Personal Information � Redacted,Home Care - Private Contractors Payment,964.32,0.00,INDIVIDUALS 
 13-09-2022,Adults,Personal Information � Redacted,Home Care - Private Contractors Payment,1102.08,0.00,INDIVIDUALS 
 13-09-2022,Adults,Personal Information � Redacted,Home Care - Private Contractors Payment,865.92,0.00,INDIVIDUALS 
 13-09-2022,Adults,Personal Information � Redacted,Home Care - Private Contractors Payment,6061.44,0.00,INDIVIDUALS 
 13-09-2022,Adults,Personal Information � Redacted,Home Care - Private Contractors Payment,929.88,0.00,INDIVIDUALS 
 13-09-2022,Adults,Personal Information � Redacted,Home Care - Private Contractors Payment,5598.32,0.00,INDIVIDUALS 
 13-09-2022,Adults,Personal Information � Redacted,Home Care - Private Contractors Payment,1102.08,0.00,INDIVIDUALS 
 13-09-2022,Adults,Personal Information � Redacted,Home Care - Private Contractors Payment,984.00,0.00,INDIVIDUALS 
 13-09-2022,Adults,Personal Information � Redacted,Home Care - Private Contractors Payment,1102.08,0.00,INDIVIDUALS 
 13-09-2022,Adults,Personal Information � Redacted,Home Care - Private Contractors Payment,1102.08,0.00,INDIVIDUALS 
 13-09-2022,Adults,Personal Information � Redacted,Home Care - Private Contractors Payment,1790.88,0.00,INDIVIDUALS 
 13-09-2022,Adults,Personal Information � Redacted,Home Care - Private Contractors Payment,1790.88,0.00,INDIVIDUALS 
 13-09-2022,Adults,Personal Information � Redacted,Home Care - Private Contractors Payment,708.48,0.00,INDIVIDUALS 
 13-09-2022,Adults,Personal Information � Redacted,Home Care - Private Contractors Payment,1397.28,0.00,INDIVIDUALS 
 13-09-2022,Adults,Personal Information � Redacted,Home Care - Private Contractors Payment,4959.36,0.00,INDIVIDUALS 
 13-09-2022,Adults,Personal Information � Redacted,Home Care - Private Contractors Payment,1023.36,0.00,INDIVIDUALS 
 13-09-2022,Adults,Personal Information � Redacted,Home Care - Private Contractors Payment,668.88,0.00,INDIVIDUALS 
 13-09-2022,Adults,Personal Information � Redacted,Home Care - Private Contractors Payment,3227.52,0.00,INDIVIDUALS 
 13-09-2022,Adults,Personal Information � Redacted,Home Care - Private Contractors Payment,1239.84,0.00,INDIVIDUALS 
 13-09-2022,Adults,Personal Information � Redacted,Home Care - Private Contractors Payment,516.60,0.00,INDIVIDUALS 
 13-09-2022,Adults,North East London NHS Foundation Trust_a,Payment To Health Authorities,43381.06,0.00,NHS BODIES 
 13-09-2022,Adults,Agracare Ltd t/a Home Instead Senior Care,Home Care - Private Contractors Payment,1597.00,0.00,COMMERCIAL SUPPLIER 
 14-09-2022,Adults,IJB Healthcare Ltd,Home Care - Private Contractors Payment,1544.88,0.00,COMMERCIAL SUPPLIER 
 14-09-2022,Adults,IJB Healthcare Ltd,Home Care - Private Contractors Payment,1261.14,0.00,COMMERCIAL SUPPLIER 
 14-09-2022,Adults,IJB Healthcare Ltd,Home Care - Private Contractors Payment,1259.52,0.00,COMMERCIAL SUPPLIER 
 14-09-2022,Adults,IJB Healthcare Ltd,Home Care - Private Contractors Payment,1546.04,0.00,COMMERCIAL SUPPLIER 
 14-09-2022,Adults,IJB Healthcare Ltd,Home Care - Private Contractors Payment,1102.08,0.00,COMMERCIAL SUPPLIER 
 14-09-2022,Adults,IJB Healthcare Ltd,Home Care - Private Contractors Payment,1102.08,0.00,COMMERCIAL SUPPLIER 
 14-09-2022,Adults,Bloomscare Ltd,Home Care - Private Contractors Payment,1574.40,0.00,COMMERCIAL SUPPLIER 
 14-09-2022,Adults,All Therapy Solutions Ltd,Occupational Health,4290.00,0.00,COMMERCIAL SUPPLIER 
 14-09-2022,Adults,Action First Assessments Ltd,Private Contractors Payment - Other,620.00,0.00,COMMERCIAL SUPPLIER 
 14-09-2022,Adults,Action First Assessments Ltd,Private Contractors Payment - Other,620.00,0.00,COMMERCIAL SUPPLIER 
 14-09-2022,Adults,Action First Assessments Ltd,Private Contractors Payment - Other,930.00,0.00,COMMERCIAL SUPPLIER 
 14-09-2022,Adults,Action First Assessments Ltd,Private Contractors Payment - Other,1240.00,0.00,COMMERCIAL SUPPLIER 
 14-09-2022,Adults,Osborne Partnership,Daycare - Private Contractors Payment,1500.00,0.00,COMMERCIAL SUPPLIER 
 14-09-2022,Adults,Mayflower Travel,Client Transport,1032.00,0.00,COMMERCIAL SUPPLIER 
 14-09-2022,Adults,Cera Care Operations Ltd,Home Care - Private Contractors Payment,1134.22,0.00,COMMERCIAL SUPPLIER 
 14-09-2022,Adults,Cera Care Operations Ltd,Home Care - Private Contractors Payment,1150.62,0.00,COMMERCIAL SUPPLIER 
 14-09-2022,Adults,Cera Care Operations Ltd,Home Care - Private Contractors Payment,1153.25,0.00,COMMERCIAL SUPPLIER 
 14-09-2022,Adults,Cera Care Operations Ltd,Home Care - Private Contractors Payment,551.04,0.00,COMMERCIAL SUPPLIER 
 14-09-2022,Adults,Cera Care Operations Ltd,Home Care - Private Contractors Payment,794.74,0.00,COMMERCIAL SUPPLIER 
 14-09-2022,Adults,Cera Care Operations Ltd,Home Care - Private Contractors Payment,1126.35,0.00,COMMERCIAL SUPPLIER 
 14-09-2022,Adults,Cera Care Operations Ltd,Home Care - Private Contractors Payment,553.34,0.00,COMMERCIAL SUPPLIER 
 14-09-2022,Adults,Cera Care Operations Ltd,Home Care - Private Contractors Payment,826.89,0.00,COMMERCIAL SUPPLIER 
 14-09-2022,Adults,Cera Care Operations Ltd,Home Care - Private Contractors Payment,797.04,0.00,COMMERCIAL SUPPLIER 
 14-09-2022,Adults,Cera Care Operations Ltd,Home Care - Private Contractors Payment,797.04,0.00,COMMERCIAL SUPPLIER 
 14-09-2022,Adults,Cera Care Operations Ltd,Home Care - Private Contractors Payment,1159.81,0.00,COMMERCIAL SUPPLIER 
 14-09-2022,Adults,Cera Care Operations Ltd,Home Care - Private Contractors Payment,797.04,0.00,COMMERCIAL SUPPLIER 
 14-09-2022,Adults,Cera Care Operations Ltd,Home Care - Private Contractors Payment,1292.98,0.00,COMMERCIAL SUPPLIER 
 14-09-2022,Adults,Cera Care Operations Ltd,Home Care - Private Contractors Payment,1136.52,0.00,COMMERCIAL SUPPLIER 
 14-09-2022,Adults,Cera Care Operations Ltd,Home Care - Private Contractors Payment,1102.08,0.00,COMMERCIAL SUPPLIER 
 14-09-2022,Adults,Cera Care Operations Ltd,Home Care - Private Contractors Payment,944.64,0.00,COMMERCIAL SUPPLIER 
 14-09-2022,Adults,Cera Care Operations Ltd,Home Care - Private Contractors Payment,559.24,0.00,COMMERCIAL SUPPLIER 
 14-09-2022,Adults,Cera Care Operations Ltd,Home Care - Private Contractors Payment,1234.92,0.00,COMMERCIAL SUPPLIER 
 14-09-2022,Adults,Cera Care Operations Ltd,Home Care - Private Contractors Payment,551.04,0.00,COMMERCIAL SUPPLIER 
 14-09-2022,Adults,Cera Care Operations Ltd,Home Care - Private Contractors Payment,826.56,0.00,COMMERCIAL SUPPLIER 
 14-09-2022,Adults,Cera Care Operations Ltd,Home Care - Private Contractors Payment,833.12,0.00,COMMERCIAL SUPPLIER 
 14-09-2022,Adults,Cera Care Operations Ltd,Home Care - Private Contractors Payment,827.22,0.00,COMMERCIAL SUPPLIER 
 14-09-2022,Adults,Cera Care Operations Ltd,Home Care - Private Contractors Payment,827.22,0.00,COMMERCIAL SUPPLIER 
 14-09-2022,Adults,Cera Care Operations Ltd,Home Care - Private Contractors Payment,964.32,0.00,COMMERCIAL SUPPLIER 
 14-09-2022,Adults,Cera Care Operations Ltd,Home Care - Private Contractors Payment,989.58,0.00,COMMERCIAL SUPPLIER 
 14-09-2022,Adults,Cera Care Operations Ltd,Home Care - Private Contractors Payment,884.62,0.00,COMMERCIAL SUPPLIER 
 14-09-2022,Adults,Cera Care Operations Ltd,Home Care - Private Contractors Payment,1113.56,0.00,COMMERCIAL SUPPLIER 
 14-09-2022,Adults,Cera Care Operations Ltd,Home Care - Private Contractors Payment,1152.59,0.00,COMMERCIAL SUPPLIER 
 14-09-2022,Adults,Cera Care Operations Ltd,Home Care - Private Contractors Payment,805.24,0.00,COMMERCIAL SUPPLIER 
 14-09-2022,Adults,Cera Care Operations Ltd,Home Care - Private Contractors Payment,1767.26,0.00,COMMERCIAL SUPPLIER 
 14-09-2022,Adults,Cera Care Operations Ltd,Home Care - Private Contractors Payment,562.52,0.00,COMMERCIAL SUPPLIER 
 14-09-2022,Adults,Cera Care Operations Ltd,Home Care - Private Contractors Payment,827.87,0.00,COMMERCIAL SUPPLIER 
 14-09-2022,Adults,Cera Care Operations Ltd,Home Care - Private Contractors Payment,551.70,0.00,COMMERCIAL SUPPLIER 
 14-09-2022,Adults,Cera Care Operations Ltd,Home Care - Private Contractors Payment,1104.70,0.00,COMMERCIAL SUPPLIER 
 14-09-2022,Adults,Cera Care Operations Ltd,Home Care - Private Contractors Payment,1105.36,0.00,COMMERCIAL SUPPLIER 
 14-09-2022,Adults,Cera Care Operations Ltd,Home Care - Private Contractors Payment,551.04,0.00,COMMERCIAL SUPPLIER 
 14-09-2022,Adults,Cera Care Operations Ltd,Home Care - Private Contractors Payment,590.73,0.00,COMMERCIAL SUPPLIER 
 14-09-2022,Adults,Cera Care Operations Ltd,Home Care - Private Contractors Payment,882.98,0.00,COMMERCIAL SUPPLIER 
 14-09-2022,Adults,Cera Care Operations Ltd,Home Care - Private Contractors Payment,641.90,0.00,COMMERCIAL SUPPLIER 
 14-09-2022,Adults,Cera Care Operations Ltd,Home Care - Private Contractors Payment,909.54,0.00,COMMERCIAL SUPPLIER 
 14-09-2022,Adults,Cera Care Operations Ltd,Home Care - Private Contractors Payment,913.15,0.00,COMMERCIAL SUPPLIER 
 14-09-2022,Adults,Cera Care Operations Ltd,Home Care - Private Contractors Payment,911.18,0.00,COMMERCIAL SUPPLIER 
 14-09-2022,Adults,Cera Care Operations Ltd,Home Care - Private Contractors Payment,974.16,0.00,COMMERCIAL SUPPLIER 
 14-09-2022,Adults,Cera Care Operations Ltd,Home Care - Private Contractors Payment,723.90,0.00,COMMERCIAL SUPPLIER 
 14-09-2022,Adults,Cera Care Operations Ltd,Home Care - Private Contractors Payment,501.18,0.00,COMMERCIAL SUPPLIER 
 14-09-2022,Adults,Cera Care Operations Ltd,Home Care - Private Contractors Payment,786.87,0.00,COMMERCIAL SUPPLIER 
 14-09-2022,Adults,Cera Care Operations Ltd,Home Care - Private Contractors Payment,838.70,0.00,COMMERCIAL SUPPLIER 
 14-09-2022,Adults,Cera Care Operations Ltd,Home Care - Private Contractors Payment,827.87,0.00,COMMERCIAL SUPPLIER 
 14-09-2022,Adults,Cera Care Operations Ltd,Home Care - Private Contractors Payment,1160.79,0.00,COMMERCIAL SUPPLIER 
 14-09-2022,Adults,Cera Care Operations Ltd,Home Care - Private Contractors Payment,1161.78,0.00,COMMERCIAL SUPPLIER 
 14-09-2022,Adults,John Stanleys Care Agency Ltd,Home Care - Private Contractors Payment,4180.00,0.00,COMMERCIAL SUPPLIER 
 14-09-2022,Adults,John Stanleys Care Agency Ltd,Home Care - Private Contractors Payment,4460.00,0.00,COMMERCIAL SUPPLIER 
 14-09-2022,Adults,John Stanleys Care Agency Ltd,Home Care - Private Contractors Payment,4960.00,0.00,COMMERCIAL SUPPLIER 
 14-09-2022,Adults,John Stanleys Care Agency Ltd,Home Care - Private Contractors Payment,2168.53,0.00,COMMERCIAL SUPPLIER 
 14-09-2022,Adults,John Stanleys Care Agency Ltd,Home Care - Private Contractors Payment,3351.47,0.00,COMMERCIAL SUPPLIER 
 14-09-2022,Adults,Matrix SCM Ltd,Agency Staff,520.66,0.00,COMMERCIAL SUPPLIER 
 14-09-2022,Adults,Matrix SCM Ltd,Agency Staff,1281.98,0.00,COMMERCIAL SUPPLIER 
 14-09-2022,Adults,Matrix SCM Ltd,Agency Staff,1282.34,0.00,COMMERCIAL SUPPLIER 
 14-09-2022,Adults,Matrix SCM Ltd,Agency Staff,909.44,0.00,COMMERCIAL SUPPLIER 
 14-09-2022,Adults,Matrix SCM Ltd,Agency Staff,1290.24,0.00,COMMERCIAL SUPPLIER 
 14-09-2022,Adults,Matrix SCM Ltd,Agency Staff,1033.00,0.00,COMMERCIAL SUPPLIER 
 14-09-2022,Adults,Matrix SCM Ltd,Agency Staff,1036.56,0.00,COMMERCIAL SUPPLIER 
 14-09-2022,Adults,Matrix SCM Ltd,Agency Staff,788.70,0.00,COMMERCIAL SUPPLIER 
 14-09-2022,Adults,Matrix SCM Ltd,Agency Staff,528.50,0.00,COMMERCIAL SUPPLIER 
 14-09-2022,Adults,Matrix SCM Ltd,Agency Staff,657.73,0.00,COMMERCIAL SUPPLIER 
 14-09-2022,Adults,Matrix SCM Ltd,Agency Staff,622.08,0.00,COMMERCIAL SUPPLIER 
 14-09-2022,Adults,Matrix SCM Ltd,Agency Staff,557.36,0.00,COMMERCIAL SUPPLIER 
 14-09-2022,Adults,Matrix SCM Ltd,Agency Staff,1241.28,0.00,COMMERCIAL SUPPLIER 
 14-09-2022,Adults,Matrix SCM Ltd,Agency Staff,1241.28,0.00,COMMERCIAL SUPPLIER 
 14-09-2022,Adults,Matrix SCM Ltd,Agency Staff,1400.77,0.00,COMMERCIAL SUPPLIER 
 14-09-2022,Adults,Matrix SCM Ltd,Agency Staff,1288.45,0.00,COMMERCIAL SUPPLIER 
 14-09-2022,Adults,Matrix SCM Ltd,Agency Staff,1207.46,0.00,COMMERCIAL SUPPLIER 
 14-09-2022,Adults,Matrix SCM Ltd,Agency Staff,1357.57,0.00,COMMERCIAL SUPPLIER 
 14-09-2022,Adults,Matrix SCM Ltd,Agency Staff,1244.51,0.00,COMMERCIAL SUPPLIER 
 14-09-2022,Adults,Matrix SCM Ltd,Agency Staff,735.84,0.00,COMMERCIAL SUPPLIER 
 14-09-2022,Adults,Matrix SCM Ltd,Agency Staff,1241.28,0.00,COMMERCIAL SUPPLIER 
 14-09-2022,Adults,Matrix SCM Ltd,Agency Staff,1241.28,0.00,COMMERCIAL SUPPLIER 
 14-09-2022,Adults,Matrix SCM Ltd,Agency Staff,1241.28,0.00,COMMERCIAL SUPPLIER 
 14-09-2022,Adults,Matrix SCM Ltd,Agency Staff,1241.28,0.00,COMMERCIAL SUPPLIER 
 14-09-2022,Adults,Matrix SCM Ltd,Agency Staff,1285.92,0.00,COMMERCIAL SUPPLIER 
 14-09-2022,Adults,Matrix SCM Ltd,Agency Staff,1132.56,0.00,COMMERCIAL SUPPLIER 
 14-09-2022,Adults,Matrix SCM Ltd,Agency Staff,754.91,0.00,COMMERCIAL SUPPLIER 
 14-09-2022,Adults,Matrix SCM Ltd,Agency Staff,605.80,0.00,COMMERCIAL SUPPLIER 
 14-09-2022,Adults,Matrix SCM Ltd,Agency Staff,1601.28,0.00,COMMERCIAL SUPPLIER 
 14-09-2022,Adults,Matrix SCM Ltd,Agency Staff,1288.66,0.00,COMMERCIAL SUPPLIER 
 14-09-2022,Adults,Matrix SCM Ltd,Agency Staff,1175.04,0.00,COMMERCIAL SUPPLIER 
 14-09-2022,Adults,Matrix SCM Ltd,Agency Staff,1282.32,0.00,COMMERCIAL SUPPLIER 
 14-09-2022,Adults,Matrix SCM Ltd,Agency Staff,1181.15,0.00,COMMERCIAL SUPPLIER 
 14-09-2022,Adults,Matrix SCM Ltd,Agency Staff,1282.34,0.00,COMMERCIAL SUPPLIER 
 14-09-2022,Adults,Matrix SCM Ltd,Agency Staff,847.36,0.00,COMMERCIAL SUPPLIER 
 14-09-2022,Adults,Matrix SCM Ltd,Agency Staff,1031.37,0.00,COMMERCIAL SUPPLIER 
 14-09-2022,Adults,Matrix SCM Ltd,Agency Staff,1241.28,0.00,COMMERCIAL SUPPLIER 
 14-09-2022,Adults,Matrix SCM Ltd,Agency Staff,999.92,0.00,COMMERCIAL SUPPLIER 
 14-09-2022,Adults,Matrix SCM Ltd,Agency Staff,1473.12,0.00,COMMERCIAL SUPPLIER 
 14-09-2022,Adults,Matrix SCM Ltd,Agency Staff,1394.66,0.00,COMMERCIAL SUPPLIER 
 14-09-2022,Adults,Matrix SCM Ltd,Agency Staff,741.75,0.00,COMMERCIAL SUPPLIER 
 14-09-2022,Adults,Matrix SCM Ltd,Agency Staff,1533.82,0.00,COMMERCIAL SUPPLIER 
 15-09-2022,Adults,Lodge Group Care UK Ltd,Home Care - Private Contractors Payment,3060.00,0.00,COMMERCIAL SUPPLIER 
 15-09-2022,Adults,Lodge Group Care UK Ltd,Home Care - Private Contractors Payment,3060.00,0.00,COMMERCIAL SUPPLIER 
 15-09-2022,Adults,Lodge Group Care UK Ltd,Home Care - Private Contractors Payment,3060.00,0.00,COMMERCIAL SUPPLIER 
 15-09-2022,Adults,Lodge Group Care UK Ltd,Home Care - Private Contractors Payment,3060.00,0.00,COMMERCIAL SUPPLIER 
 15-09-2022,Adults,Lodge Group Care UK Ltd,Home Care - Private Contractors Payment,3060.00,0.00,COMMERCIAL SUPPLIER 
 15-09-2022,Adults,Lodge Group Care UK Ltd,Home Care - Private Contractors Payment,3060.00,0.00,COMMERCIAL SUPPLIER 
 15-09-2022,Adults,Lodge Group Care UK Ltd,Home Care - Private Contractors Payment,3060.00,0.00,COMMERCIAL SUPPLIER 
 15-09-2022,Adults,Lodge Group Care UK Ltd,Home Care - Private Contractors Payment,3060.00,0.00,COMMERCIAL SUPPLIER 
 15-09-2022,Adults,Lodge Group Care UK Ltd,Home Care - Private Contractors Payment,3480.00,0.00,COMMERCIAL SUPPLIER 
 15-09-2022,Adults,Lodge Group Care UK Ltd,Home Care - Private Contractors Payment,3480.00,0.00,COMMERCIAL SUPPLIER 
 15-09-2022,Adults,Lodge Group Care UK Ltd,Home Care - Private Contractors Payment,3480.00,0.00,COMMERCIAL SUPPLIER 
 15-09-2022,Adults,Lodge Group Care UK Ltd,Home Care - Private Contractors Payment,3480.00,0.00,COMMERCIAL SUPPLIER 
 15-09-2022,Adults,Lodge Group Care UK Ltd,Home Care - Private Contractors Payment,3060.00,0.00,COMMERCIAL SUPPLIER 
 15-09-2022,Adults,Lodge Group Care UK Ltd,Home Care - Private Contractors Payment,3060.00,0.00,COMMERCIAL SUPPLIER 
 15-09-2022,Adults,Lodge Group Care UK Ltd,Home Care - Private Contractors Payment,3060.00,0.00,COMMERCIAL SUPPLIER 
 15-09-2022,Adults,Lodge Group Care UK Ltd,Home Care - Private Contractors Payment,3060.00,0.00,COMMERCIAL SUPPLIER 
 15-09-2022,Adults,Hillsview Care Services Ltd,Residential Placements - Private Contractors Payment,1559.25,0.00,COMMERCIAL SUPPLIER 
 15-09-2022,Adults,Hillsview Care Services Ltd,Residential Placements - Private Contractors Payment,3988.00,0.00,COMMERCIAL SUPPLIER 
 15-09-2022,Adults,Hillsview Care Services Ltd,Residential Placements - Private Contractors Payment,2079.00,0.00,COMMERCIAL SUPPLIER 
 15-09-2022,Adults,Hillsview Care Services Ltd,Residential Placements - Private Contractors Payment,2991.00,0.00,COMMERCIAL SUPPLIER 
 15-09-2022,Adults,Outreach Support Services Ltd,Home Care - Private Contractors Payment,1239.84,0.00,COMMERCIAL SUPPLIER 
 15-09-2022,Adults,Outreach Support Services Ltd,Home Care - Private Contractors Payment,1928.64,0.00,COMMERCIAL SUPPLIER 
 15-09-2022,Adults,Outreach Support Services Ltd,Home Care - Private Contractors Payment,1239.84,0.00,COMMERCIAL SUPPLIER 
 15-09-2022,Adults,Outreach Support Services Ltd,Home Care - Private Contractors Payment,1239.84,0.00,COMMERCIAL SUPPLIER 
 15-09-2022,Adults,Outreach Support Services Ltd,Home Care - Private Contractors Payment,1239.84,0.00,COMMERCIAL SUPPLIER 
 15-09-2022,Adults,Outreach Support Services Ltd,Home Care - Private Contractors Payment,551.04,0.00,COMMERCIAL SUPPLIER 
 15-09-2022,Adults,Outreach Support Services Ltd,Home Care - Private Contractors Payment,826.56,0.00,COMMERCIAL SUPPLIER 
 15-09-2022,Adults,Outreach Support Services Ltd,Home Care - Private Contractors Payment,1102.08,0.00,COMMERCIAL SUPPLIER 
 15-09-2022,Adults,Outreach Support Services Ltd,Home Care - Private Contractors Payment,1102.08,0.00,COMMERCIAL SUPPLIER 
 15-09-2022,Adults,Outreach Support Services Ltd,Home Care - Private Contractors Payment,826.56,0.00,COMMERCIAL SUPPLIER 
 15-09-2022,Adults,Outreach Support Services Ltd,Home Care - Private Contractors Payment,1102.08,0.00,COMMERCIAL SUPPLIER 
 15-09-2022,Adults,Outreach Support Services Ltd,Home Care - Private Contractors Payment,1102.08,0.00,COMMERCIAL SUPPLIER 
 15-09-2022,Adults,Outreach Support Services Ltd,Home Care - Private Contractors Payment,708.48,0.00,COMMERCIAL SUPPLIER 
 15-09-2022,Adults,Outreach Support Services Ltd,Home Care - Private Contractors Payment,964.32,0.00,COMMERCIAL SUPPLIER 
 15-09-2022,Adults,Outreach Support Services Ltd,Home Care - Private Contractors Payment,1653.12,0.00,COMMERCIAL SUPPLIER 
 15-09-2022,Adults,Outreach Support Services Ltd,Home Care - Private Contractors Payment,551.04,0.00,COMMERCIAL SUPPLIER 
 15-09-2022,Adults,Outreach Support Services Ltd,Home Care - Private Contractors Payment,531.36,0.00,COMMERCIAL SUPPLIER 
 15-09-2022,Adults,Outreach Support Services Ltd,Home Care - Private Contractors Payment,551.04,0.00,COMMERCIAL SUPPLIER 
 15-09-2022,Adults,Outreach Support Services Ltd,Home Care - Private Contractors Payment,1758.48,0.00,COMMERCIAL SUPPLIER 
 15-09-2022,Adults,Outreach Support Services Ltd,Home Care - Private Contractors Payment,1758.48,0.00,COMMERCIAL SUPPLIER 
 15-09-2022,Adults,Outreach Support Services Ltd,Home Care - Private Contractors Payment,1102.08,0.00,COMMERCIAL SUPPLIER 
 15-09-2022,Adults,Outreach Support Services Ltd,Home Care - Private Contractors Payment,1633.44,0.00,COMMERCIAL SUPPLIER 
 15-09-2022,Adults,Outreach Support Services Ltd,Home Care - Private Contractors Payment,1102.08,0.00,COMMERCIAL SUPPLIER 
 15-09-2022,Adults,Outreach Support Services Ltd,Home Care - Private Contractors Payment,1357.92,0.00,COMMERCIAL SUPPLIER 
 15-09-2022,Adults,Outreach Support Services Ltd,Home Care - Private Contractors Payment,551.04,0.00,COMMERCIAL SUPPLIER 
 15-09-2022,Adults,Outreach Support Services Ltd,Home Care - Private Contractors Payment,2046.72,0.00,COMMERCIAL SUPPLIER 
 15-09-2022,Adults,Outreach Support Services Ltd,Home Care - Private Contractors Payment,2046.72,0.00,COMMERCIAL SUPPLIER 
 15-09-2022,Adults,Outreach Support Services Ltd,Home Care - Private Contractors Payment,2046.72,0.00,COMMERCIAL SUPPLIER 
 15-09-2022,Adults,Outreach Support Services Ltd,Home Care - Private Contractors Payment,2046.72,0.00,COMMERCIAL SUPPLIER 
 15-09-2022,Adults,Outreach Support Services Ltd,Home Care - Private Contractors Payment,1239.84,0.00,COMMERCIAL SUPPLIER 
 16-09-2022,Adults,Quality Healthcare Solutions Ltd t/a Kare Plus Romford,Home Care - Private Contractors Payment,557.60,0.00,COMMERCIAL SUPPLIER 
 16-09-2022,Adults,Quality Healthcare Solutions Ltd t/a Kare Plus Romford,Home Care - Private Contractors Payment,1109.30,0.00,COMMERCIAL SUPPLIER 
 16-09-2022,Adults,Quality Healthcare Solutions Ltd t/a Kare Plus Romford,Home Care - Private Contractors Payment,1121.76,0.00,COMMERCIAL SUPPLIER 
 16-09-2022,Adults,Quality Healthcare Solutions Ltd t/a Kare Plus Romford,Home Care - Private Contractors Payment,1064.69,0.00,COMMERCIAL SUPPLIER 
 16-09-2022,Adults,Quality Healthcare Solutions Ltd t/a Kare Plus Romford,Home Care - Private Contractors Payment,715.04,0.00,COMMERCIAL SUPPLIER 
 16-09-2022,Adults,Quality Healthcare Solutions Ltd t/a Kare Plus Romford,Home Care - Private Contractors Payment,840.99,0.00,COMMERCIAL SUPPLIER 
 16-09-2022,Adults,Quality Healthcare Solutions Ltd t/a Kare Plus Romford,Home Care - Private Contractors Payment,582.53,0.00,COMMERCIAL SUPPLIER 
 16-09-2022,Adults,Quality Healthcare Solutions Ltd t/a Kare Plus Romford,Home Care - Private Contractors Payment,1104.70,0.00,COMMERCIAL SUPPLIER 
 16-09-2022,Adults,Quality Healthcare Solutions Ltd t/a Kare Plus Romford,Home Care - Private Contractors Payment,902.00,0.00,COMMERCIAL SUPPLIER 
 16-09-2022,Adults,Quality Healthcare Solutions Ltd t/a Kare Plus Romford,Home Care - Private Contractors Payment,1318.56,0.00,COMMERCIAL SUPPLIER 
 16-09-2022,Adults,Quality Healthcare Solutions Ltd t/a Kare Plus Romford,Home Care - Private Contractors Payment,776.05,0.00,COMMERCIAL SUPPLIER 
 16-09-2022,Adults,Quality Healthcare Solutions Ltd t/a Kare Plus Romford,Home Care - Private Contractors Payment,1122.09,0.00,COMMERCIAL SUPPLIER 
 16-09-2022,Adults,Quality Healthcare Solutions Ltd t/a Kare Plus Romford,Home Care - Private Contractors Payment,591.38,0.00,COMMERCIAL SUPPLIER 
 16-09-2022,Adults,Quality Healthcare Solutions Ltd t/a Kare Plus Romford,Home Care - Private Contractors Payment,1254.27,0.00,COMMERCIAL SUPPLIER 
 16-09-2022,Adults,Quality Healthcare Solutions Ltd t/a Kare Plus Romford,Home Care - Private Contractors Payment,1254.60,0.00,COMMERCIAL SUPPLIER 
 16-09-2022,Adults,Quality Healthcare Solutions Ltd t/a Kare Plus Romford,Home Care - Private Contractors Payment,886.26,0.00,COMMERCIAL SUPPLIER 
 16-09-2022,Adults,Quality Healthcare Solutions Ltd t/a Kare Plus Romford,Home Care - Private Contractors Payment,749.81,0.00,COMMERCIAL SUPPLIER 
 16-09-2022,Adults,Quality Healthcare Solutions Ltd t/a Kare Plus Romford,Home Care - Private Contractors Payment,779.98,0.00,COMMERCIAL SUPPLIER 
 16-09-2022,Adults,Quality Healthcare Solutions Ltd t/a Kare Plus Romford,Home Care - Private Contractors Payment,552.02,0.00,COMMERCIAL SUPPLIER 
 16-09-2022,Adults,Anytime Care 2020_a,Home Care - Private Contractors Payment,617.62,0.00,COMMERCIAL SUPPLIER 
 16-09-2022,Adults,Anytime Care 2020_a,Home Care - Private Contractors Payment,907.25,0.00,COMMERCIAL SUPPLIER 
 16-09-2022,Adults,Anytime Care 2020_a,Home Care - Private Contractors Payment,1111.92,0.00,COMMERCIAL SUPPLIER 
 16-09-2022,Adults,Anytime Care 2020_a,Home Care - Private Contractors Payment,551.04,0.00,COMMERCIAL SUPPLIER 
 16-09-2022,Adults,Anytime Care 2020_a,Home Care - Private Contractors Payment,601.55,0.00,COMMERCIAL SUPPLIER 
 16-09-2022,Adults,Anytime Care 2020_a,Home Care - Private Contractors Payment,1217.21,0.00,COMMERCIAL SUPPLIER 
 16-09-2022,Adults,Anytime Care 2020_a,Home Care - Private Contractors Payment,770.80,0.00,COMMERCIAL SUPPLIER 
 16-09-2022,Adults,Anytime Care 2020_a,Home Care - Private Contractors Payment,666.82,0.00,COMMERCIAL SUPPLIER 
 16-09-2022,Adults,Anytime Care 2020_a,Home Care - Private Contractors Payment,1116.84,0.00,COMMERCIAL SUPPLIER 
 16-09-2022,Adults,Anytime Care 2020_a,Home Care - Private Contractors Payment,1437.62,0.00,COMMERCIAL SUPPLIER 
 16-09-2022,Adults,Anytime Care 2020_a,Home Care - Private Contractors Payment,763.26,0.00,COMMERCIAL SUPPLIER 
 16-09-2022,Adults,Anytime Care 2020_a,Home Care - Private Contractors Payment,560.88,0.00,COMMERCIAL SUPPLIER 
 16-09-2022,Adults,Anytime Care 2020_a,Home Care - Private Contractors Payment,1110.61,0.00,COMMERCIAL SUPPLIER 
 16-09-2022,Adults,Anytime Care 2020_a,Home Care - Private Contractors Payment,1131.93,0.00,COMMERCIAL SUPPLIER 
 16-09-2022,Adults,Anytime Care 2020_a,Home Care - Private Contractors Payment,556.62,0.00,COMMERCIAL SUPPLIER 
 16-09-2022,Adults,Anytime Care 2020_a,Home Care - Private Contractors Payment,804.58,0.00,COMMERCIAL SUPPLIER 
 16-09-2022,Adults,Anytime Care 2020_a,Home Care - Private Contractors Payment,1093.55,0.00,COMMERCIAL SUPPLIER 
 16-09-2022,Adults,Anytime Care 2020_a,Home Care - Private Contractors Payment,554.98,0.00,COMMERCIAL SUPPLIER 
 16-09-2022,Adults,De Vere Care Partnership Ltd,Home Care - Private Contractors Payment,1653.12,0.00,COMMERCIAL SUPPLIER 
 16-09-2022,Adults,De Vere Care Partnership Ltd,Home Care - Private Contractors Payment,1653.12,0.00,COMMERCIAL SUPPLIER 
 16-09-2022,Adults,Care-Away Ltd T/A Care Support,Home Care - Private Contractors Payment,1713.92,0.00,COMMERCIAL SUPPLIER 
 16-09-2022,Adults,Care-Away Ltd T/A Care Support,Home Care - Private Contractors Payment,815.36,0.00,COMMERCIAL SUPPLIER 
 16-09-2022,Adults,Care-Away Ltd T/A Care Support,Home Care - Private Contractors Payment,2329.60,0.00,COMMERCIAL SUPPLIER 
 16-09-2022,Adults,Care-Away Ltd T/A Care Support,Home Care - Private Contractors Payment,1514.24,0.00,COMMERCIAL SUPPLIER 
 16-09-2022,Adults,Care-Away Ltd T/A Care Support,Home Care - Private Contractors Payment,848.64,0.00,COMMERCIAL SUPPLIER 
 16-09-2022,Adults,Care-Away Ltd T/A Care Support,Home Care - Private Contractors Payment,682.24,0.00,COMMERCIAL SUPPLIER 
 16-09-2022,Adults,Care-Away Ltd T/A Care Support,Private Contractors Payment - Other,20828.31,0.00,COMMERCIAL SUPPLIER 
 16-09-2022,Adults,Prestige Care & Support Ltd,Home Care - Private Contractors Payment,865.92,0.00,COMMERCIAL SUPPLIER 
 16-09-2022,Adults,Prestige Care & Support Ltd,Home Care - Private Contractors Payment,865.92,0.00,COMMERCIAL SUPPLIER 
 16-09-2022,Adults,Prestige Care & Support Ltd,Home Care - Private Contractors Payment,554.65,0.00,COMMERCIAL SUPPLIER 
 16-09-2022,Adults,Prestige Care & Support Ltd,Home Care - Private Contractors Payment,953.82,0.00,COMMERCIAL SUPPLIER 
 16-09-2022,Adults,Prestige Care & Support Ltd,Home Care - Private Contractors Payment,1148.98,0.00,COMMERCIAL SUPPLIER 
 16-09-2022,Adults,Prestige Care & Support Ltd,Home Care - Private Contractors Payment,1129.63,0.00,COMMERCIAL SUPPLIER 
 16-09-2022,Adults,Prestige Care & Support Ltd,Home Care - Private Contractors Payment,587.78,0.00,COMMERCIAL SUPPLIER 
 16-09-2022,Adults,Prestige Care & Support Ltd,Home Care - Private Contractors Payment,588.10,0.00,COMMERCIAL SUPPLIER 
 16-09-2022,Adults,Prestige Care & Support Ltd,Home Care - Private Contractors Payment,863.30,0.00,COMMERCIAL SUPPLIER 
 16-09-2022,Adults,Prestige Care & Support Ltd,Home Care - Private Contractors Payment,826.56,0.00,COMMERCIAL SUPPLIER 
 16-09-2022,Adults,Prestige Care & Support Ltd,Home Care - Private Contractors Payment,1042.38,0.00,COMMERCIAL SUPPLIER 
 16-09-2022,Adults,Prestige Care & Support Ltd,Home Care - Private Contractors Payment,1092.24,0.00,COMMERCIAL SUPPLIER 
 16-09-2022,Adults,Prestige Care & Support Ltd,Home Care - Private Contractors Payment,1102.08,0.00,COMMERCIAL SUPPLIER 
 16-09-2022,Adults,Prestige Care & Support Ltd,Home Care - Private Contractors Payment,888.55,0.00,COMMERCIAL SUPPLIER 
 16-09-2022,Adults,Prestige Care & Support Ltd,Home Care - Private Contractors Payment,922.01,0.00,COMMERCIAL SUPPLIER 
 16-09-2022,Adults,Prestige Care & Support Ltd,Home Care - Private Contractors Payment,1892.89,0.00,COMMERCIAL SUPPLIER 
 16-09-2022,Adults,Prestige Care & Support Ltd,Home Care - Private Contractors Payment,1142.10,0.00,COMMERCIAL SUPPLIER 
 16-09-2022,Adults,Prestige Care & Support Ltd,Home Care - Private Contractors Payment,1174.57,0.00,COMMERCIAL SUPPLIER 
 16-09-2022,Adults,Prestige Care & Support Ltd,Home Care - Private Contractors Payment,1183.10,0.00,COMMERCIAL SUPPLIER 
 16-09-2022,Adults,Prestige Care & Support Ltd,Home Care - Private Contractors Payment,1187.03,0.00,COMMERCIAL SUPPLIER 
 16-09-2022,Adults,Prestige Care & Support Ltd,Home Care - Private Contractors Payment,1023.69,0.00,COMMERCIAL SUPPLIER 
 16-09-2022,Adults,Prestige Care & Support Ltd,Home Care - Private Contractors Payment,1024.02,0.00,COMMERCIAL SUPPLIER 
 16-09-2022,Adults,Prestige Care & Support Ltd,Home Care - Private Contractors Payment,1021.72,0.00,COMMERCIAL SUPPLIER 
 16-09-2022,Adults,Prestige Care & Support Ltd,Home Care - Private Contractors Payment,1044.35,0.00,COMMERCIAL SUPPLIER 
 16-09-2022,Adults,Prestige Care & Support Ltd,Home Care - Private Contractors Payment,1045.99,0.00,COMMERCIAL SUPPLIER 
 16-09-2022,Adults,Prestige Care & Support Ltd,Home Care - Private Contractors Payment,901.02,0.00,COMMERCIAL SUPPLIER 
 16-09-2022,Adults,Prestige Care & Support Ltd,Home Care - Private Contractors Payment,901.67,0.00,COMMERCIAL SUPPLIER 
 16-09-2022,Adults,Prestige Care & Support Ltd,Home Care - Private Contractors Payment,551.04,0.00,COMMERCIAL SUPPLIER 
 16-09-2022,Adults,Prestige Care & Support Ltd,Home Care - Private Contractors Payment,622.22,0.00,COMMERCIAL SUPPLIER 
 16-09-2022,Adults,Prestige Care & Support Ltd,Home Care - Private Contractors Payment,971.86,0.00,COMMERCIAL SUPPLIER 
 16-09-2022,Adults,Prestige Care & Support Ltd,Home Care - Private Contractors Payment,804.58,0.00,COMMERCIAL SUPPLIER 
 16-09-2022,Adults,Prestige Care & Support Ltd,Home Care - Private Contractors Payment,813.77,0.00,COMMERCIAL SUPPLIER 
 16-09-2022,Adults,Prestige Care & Support Ltd,Home Care - Private Contractors Payment,577.94,0.00,COMMERCIAL SUPPLIER 
 16-09-2022,Adults,Prestige Care & Support Ltd,Home Care - Private Contractors Payment,551.04,0.00,COMMERCIAL SUPPLIER 
 16-09-2022,Adults,Prestige Care & Support Ltd,Home Care - Private Contractors Payment,988.26,0.00,COMMERCIAL SUPPLIER 
 16-09-2022,Adults,Prestige Care & Support Ltd,Home Care - Private Contractors Payment,1242.46,0.00,COMMERCIAL SUPPLIER 
 16-09-2022,Adults,Prestige Care & Support Ltd,Home Care - Private Contractors Payment,1245.74,0.00,COMMERCIAL SUPPLIER 
 16-09-2022,Adults,Prestige Care & Support Ltd,Home Care - Private Contractors Payment,729.14,0.00,COMMERCIAL SUPPLIER 
 16-09-2022,Adults,Prestige Care & Support Ltd,Home Care - Private Contractors Payment,710.12,0.00,COMMERCIAL SUPPLIER 
 16-09-2022,Adults,Prestige Care & Support Ltd,Home Care - Private Contractors Payment,873.14,0.00,COMMERCIAL SUPPLIER 
 16-09-2022,Adults,Prestige Care & Support Ltd,Home Care - Private Contractors Payment,1102.08,0.00,COMMERCIAL SUPPLIER 
 16-09-2022,Adults,Prestige Care & Support Ltd,Home Care - Private Contractors Payment,1110.28,0.00,COMMERCIAL SUPPLIER 
 16-09-2022,Adults,Prestige Care & Support Ltd,Home Care - Private Contractors Payment,593.68,0.00,COMMERCIAL SUPPLIER 
 16-09-2022,Adults,Prestige Care & Support Ltd,Home Care - Private Contractors Payment,521.85,0.00,COMMERCIAL SUPPLIER 
 16-09-2022,Adults,Prestige Care & Support Ltd,Home Care - Private Contractors Payment,1109.95,0.00,COMMERCIAL SUPPLIER 
 16-09-2022,Adults,Prestige Care & Support Ltd,Home Care - Private Contractors Payment,1110.28,0.00,COMMERCIAL SUPPLIER 
 16-09-2022,Adults,Prestige Care & Support Ltd,Home Care - Private Contractors Payment,826.89,0.00,COMMERCIAL SUPPLIER 
 16-09-2022,Adults,Prestige Care & Support Ltd,Home Care - Private Contractors Payment,1331.35,0.00,COMMERCIAL SUPPLIER 
 16-09-2022,Adults,Prestige Care & Support Ltd,Home Care - Private Contractors Payment,934.80,0.00,COMMERCIAL SUPPLIER 
 16-09-2022,Adults,Prestige Care & Support Ltd,Home Care - Private Contractors Payment,934.80,0.00,COMMERCIAL SUPPLIER 
 16-09-2022,Adults,Prestige Care & Support Ltd,Home Care - Private Contractors Payment,1109.30,0.00,COMMERCIAL SUPPLIER 
 16-09-2022,Adults,Prestige Care & Support Ltd,Home Care - Private Contractors Payment,525.13,0.00,COMMERCIAL SUPPLIER 
 16-09-2022,Adults,Prestige Care & Support Ltd,Home Care - Private Contractors Payment,557.60,0.00,COMMERCIAL SUPPLIER 
 16-09-2022,Adults,Prestige Care & Support Ltd,Home Care - Private Contractors Payment,783.26,0.00,COMMERCIAL SUPPLIER 
 16-09-2022,Adults,Prestige Care & Support Ltd,Home Care - Private Contractors Payment,857.39,0.00,COMMERCIAL SUPPLIER 
 16-09-2022,Adults,Prestige Care & Support Ltd,Home Care - Private Contractors Payment,541.20,0.00,COMMERCIAL SUPPLIER 
 16-09-2022,Adults,Prestige Care & Support Ltd,Home Care - Private Contractors Payment,1680.34,0.00,COMMERCIAL SUPPLIER 
 16-09-2022,Adults,Prestige Care & Support Ltd,Home Care - Private Contractors Payment,1092.57,0.00,COMMERCIAL SUPPLIER 
 16-09-2022,Adults,Prestige Care & Support Ltd,Home Care - Private Contractors Payment,1102.08,0.00,COMMERCIAL SUPPLIER 
 16-09-2022,Adults,Prestige Care & Support Ltd,Home Care - Private Contractors Payment,839.02,0.00,COMMERCIAL SUPPLIER 
 16-09-2022,Adults,Prestige Care & Support Ltd,Home Care - Private Contractors Payment,1117.82,0.00,COMMERCIAL SUPPLIER 
 16-09-2022,Adults,Cera Care Operations Ltd,Home Care - Private Contractors Payment,2153.64,0.00,COMMERCIAL SUPPLIER 
 17-09-2022,Adults,New Opportunity Groups Havering,Daycare - Private Contractors Payment,780.00,0.00,COMMERCIAL SUPPLIER 
 20-09-2022,Adults,Flex360 Limited,Private Contractors Payment - Other,1050.00,0.00,COMMERCIAL SUPPLIER 
 20-09-2022,Adults,London Borough of Barking & Dagenham_a,Daycare - Private Contractors Payment,2160.00,0.00,LOCAL AUTHORITY SERVICES 
 20-09-2022,Adults,London Borough of Barking & Dagenham_a,Daycare - Private Contractors Payment,3600.00,0.00,LOCAL AUTHORITY SERVICES 
 20-09-2022,Adults,London Borough of Barking & Dagenham_a,Daycare - Private Contractors Payment,1440.00,0.00,LOCAL AUTHORITY SERVICES 
 20-09-2022,Adults,London Borough of Barking & Dagenham_a,Daycare - Private Contractors Payment,3600.00,0.00,LOCAL AUTHORITY SERVICES 
 20-09-2022,Adults,London Borough of Barking & Dagenham_a,Daycare - Private Contractors Payment,1440.00,0.00,LOCAL AUTHORITY SERVICES 
 20-09-2022,Adults,London Borough of Barking & Dagenham_a,Daycare - Private Contractors Payment,2160.00,0.00,LOCAL AUTHORITY SERVICES 
 20-09-2022,Adults,London Borough of Barking & Dagenham_a,Daycare - Private Contractors Payment,1080.00,0.00,LOCAL AUTHORITY SERVICES 
 20-09-2022,Adults,London Borough of Barking & Dagenham_a,Daycare - Private Contractors Payment,3600.00,0.00,LOCAL AUTHORITY SERVICES 
 20-09-2022,Adults,London Borough of Barking & Dagenham_a,Daycare - Private Contractors Payment,3600.00,0.00,LOCAL AUTHORITY SERVICES 
 20-09-2022,Adults,London Borough of Barking & Dagenham_a,Daycare - Private Contractors Payment,1440.00,0.00,LOCAL AUTHORITY SERVICES 
 20-09-2022,Adults,London Borough of Barking & Dagenham_a,Daycare - Private Contractors Payment,3600.00,0.00,LOCAL AUTHORITY SERVICES 
 20-09-2022,Adults,London Borough of Barking & Dagenham_a,Daycare - Private Contractors Payment,3600.00,0.00,LOCAL AUTHORITY SERVICES 
 20-09-2022,Adults,London Borough of Barking & Dagenham_a,Daycare - Private Contractors Payment,2160.00,0.00,LOCAL AUTHORITY SERVICES 
 20-09-2022,Adults,London Borough of Barking & Dagenham_a,Daycare - Private Contractors Payment,3600.00,0.00,LOCAL AUTHORITY SERVICES 
 20-09-2022,Adults,London Borough of Barking & Dagenham_a,Daycare - Private Contractors Payment,1440.00,0.00,LOCAL AUTHORITY SERVICES 
 20-09-2022,Adults,London Borough of Barking & Dagenham_a,Daycare - Private Contractors Payment,1440.00,0.00,LOCAL AUTHORITY SERVICES 
 20-09-2022,Adults,London Borough of Barking & Dagenham_a,Daycare - Private Contractors Payment,2160.00,0.00,LOCAL AUTHORITY SERVICES 
 20-09-2022,Adults,London Borough of Barking & Dagenham_a,Daycare - Private Contractors Payment,3600.00,0.00,LOCAL AUTHORITY SERVICES 
 20-09-2022,Adults,Carers Trust East Midlands,Home Care - Private Contractors Payment,787.20,0.00,COMMERCIAL SUPPLIER 
 20-09-2022,Adults,Carers Trust East Midlands,Home Care - Private Contractors Payment,1180.80,0.00,COMMERCIAL SUPPLIER 
 20-09-2022,Adults,Carers Trust East Midlands,Home Care - Private Contractors Payment,944.64,0.00,COMMERCIAL SUPPLIER 
 20-09-2022,Adults,All Therapy Solutions Ltd,Occupational Health,4680.00,0.00,COMMERCIAL SUPPLIER 
 20-09-2022,Adults,Care-Away Ltd T/A Care Support,Home Care - Private Contractors Payment,1164.80,0.00,COMMERCIAL SUPPLIER 
 20-09-2022,Adults,Care-Away Ltd T/A Care Support,Home Care - Private Contractors Payment,815.36,0.00,COMMERCIAL SUPPLIER 
 20-09-2022,Adults,Care-Away Ltd T/A Care Support,Home Care - Private Contractors Payment,1397.76,0.00,COMMERCIAL SUPPLIER 
 20-09-2022,Adults,Care-Away Ltd T/A Care Support,Home Care - Private Contractors Payment,715.52,0.00,COMMERCIAL SUPPLIER 
 20-09-2022,Adults,Care-Away Ltd T/A Care Support,Home Care - Private Contractors Payment,931.84,0.00,COMMERCIAL SUPPLIER 
 20-09-2022,Adults,Care-Away Ltd T/A Care Support,Home Care - Private Contractors Payment,931.84,0.00,COMMERCIAL SUPPLIER 
 20-09-2022,Adults,Care-Away Ltd T/A Care Support,Home Care - Private Contractors Payment,965.12,0.00,COMMERCIAL SUPPLIER 
 20-09-2022,Adults,Care-Away Ltd T/A Care Support,Home Care - Private Contractors Payment,965.12,0.00,COMMERCIAL SUPPLIER 
 20-09-2022,Adults,Care-Away Ltd T/A Care Support,Home Care - Private Contractors Payment,698.88,0.00,COMMERCIAL SUPPLIER 
 20-09-2022,Adults,Care-Away Ltd T/A Care Support,Home Care - Private Contractors Payment,931.84,0.00,COMMERCIAL SUPPLIER 
 20-09-2022,Adults,Care-Away Ltd T/A Care Support,Home Care - Private Contractors Payment,823.68,0.00,COMMERCIAL SUPPLIER 
 20-09-2022,Adults,Care-Away Ltd T/A Care Support,Home Care - Private Contractors Payment,698.88,0.00,COMMERCIAL SUPPLIER 
 20-09-2022,Adults,Care-Away Ltd T/A Care Support,Home Care - Private Contractors Payment,1231.36,0.00,COMMERCIAL SUPPLIER 
 20-09-2022,Adults,Care-Away Ltd T/A Care Support,Home Care - Private Contractors Payment,931.84,0.00,COMMERCIAL SUPPLIER 
 20-09-2022,Adults,Care-Away Ltd T/A Care Support,Home Care - Private Contractors Payment,698.88,0.00,COMMERCIAL SUPPLIER 
 20-09-2022,Adults,Care-Away Ltd T/A Care Support,Home Care - Private Contractors Payment,1863.68,0.00,COMMERCIAL SUPPLIER 
 20-09-2022,Adults,Care-Away Ltd T/A Care Support,Home Care - Private Contractors Payment,582.40,0.00,COMMERCIAL SUPPLIER 
 20-09-2022,Adults,Care-Away Ltd T/A Care Support,Home Care - Private Contractors Payment,965.12,0.00,COMMERCIAL SUPPLIER 
 20-09-2022,Adults,Care-Away Ltd T/A Care Support,Home Care - Private Contractors Payment,2396.16,0.00,COMMERCIAL SUPPLIER 
 20-09-2022,Adults,Care-Away Ltd T/A Care Support,Home Care - Private Contractors Payment,1547.52,0.00,COMMERCIAL SUPPLIER 
 20-09-2022,Adults,Care-Away Ltd T/A Care Support,Home Care - Private Contractors Payment,698.88,0.00,COMMERCIAL SUPPLIER 
 20-09-2022,Adults,Care-Away Ltd T/A Care Support,Home Care - Private Contractors Payment,948.48,0.00,COMMERCIAL SUPPLIER 
 20-09-2022,Adults,Care-Away Ltd T/A Care Support,Home Care - Private Contractors Payment,698.88,0.00,COMMERCIAL SUPPLIER 
 20-09-2022,Adults,Care-Away Ltd T/A Care Support,Home Care - Private Contractors Payment,582.40,0.00,COMMERCIAL SUPPLIER 
 20-09-2022,Adults,Care-Away Ltd T/A Care Support,Home Care - Private Contractors Payment,1248.00,0.00,COMMERCIAL SUPPLIER 
 20-09-2022,Adults,Care-Away Ltd T/A Care Support,Home Care - Private Contractors Payment,1514.24,0.00,COMMERCIAL SUPPLIER 
 20-09-2022,Adults,Care-Away Ltd T/A Care Support,Home Care - Private Contractors Payment,2795.52,0.00,COMMERCIAL SUPPLIER 
 20-09-2022,Adults,Care-Away Ltd T/A Care Support,Home Care - Private Contractors Payment,2329.60,0.00,COMMERCIAL SUPPLIER 
 20-09-2022,Adults,Care-Away Ltd T/A Care Support,Home Care - Private Contractors Payment,931.84,0.00,COMMERCIAL SUPPLIER 
 20-09-2022,Adults,Care-Away Ltd T/A Care Support,Home Care - Private Contractors Payment,1048.32,0.00,COMMERCIAL SUPPLIER 
 20-09-2022,Adults,Care-Away Ltd T/A Care Support,Home Care - Private Contractors Payment,931.84,0.00,COMMERCIAL SUPPLIER 
 20-09-2022,Adults,Care-Away Ltd T/A Care Support,Home Care - Private Contractors Payment,931.84,0.00,COMMERCIAL SUPPLIER 
 20-09-2022,Adults,Care-Away Ltd T/A Care Support,Home Care - Private Contractors Payment,690.56,0.00,COMMERCIAL SUPPLIER 
 20-09-2022,Adults,Care-Away Ltd T/A Care Support,Home Care - Private Contractors Payment,1863.68,0.00,COMMERCIAL SUPPLIER 
 20-09-2022,Adults,Care-Away Ltd T/A Care Support,Home Care - Private Contractors Payment,2562.56,0.00,COMMERCIAL SUPPLIER 
 20-09-2022,Adults,Care-Away Ltd T/A Care Support,Home Care - Private Contractors Payment,582.40,0.00,COMMERCIAL SUPPLIER 
 20-09-2022,Adults,Care-Away Ltd T/A Care Support,Home Care - Private Contractors Payment,1048.32,0.00,COMMERCIAL SUPPLIER 
 20-09-2022,Adults,Care-Away Ltd T/A Care Support,Home Care - Private Contractors Payment,1164.80,0.00,COMMERCIAL SUPPLIER 
 20-09-2022,Adults,Care-Away Ltd T/A Care Support,Home Care - Private Contractors Payment,2096.64,0.00,COMMERCIAL SUPPLIER 
 20-09-2022,Adults,Care-Away Ltd T/A Care Support,Home Care - Private Contractors Payment,1164.80,0.00,COMMERCIAL SUPPLIER 
 20-09-2022,Adults,Care-Away Ltd T/A Care Support,Home Care - Private Contractors Payment,1164.80,0.00,COMMERCIAL SUPPLIER 
 20-09-2022,Adults,Care-Away Ltd T/A Care Support,Home Care - Private Contractors Payment,632.32,0.00,COMMERCIAL SUPPLIER 
 20-09-2022,Adults,Care-Away Ltd T/A Care Support,Home Care - Private Contractors Payment,931.84,0.00,COMMERCIAL SUPPLIER 
 20-09-2022,Adults,Pleasant Home Healthcare Ltd,Home Care - Private Contractors Payment,1535.04,0.00,COMMERCIAL SUPPLIER 
 21-09-2022,Adults,Havering Mind,Payments To Voluntary Sector,3196.46,0.00,NON COMMERCIAL SUPPLIER 
 21-09-2022,Adults,Havering Mind,Payments To Voluntary Sector,3196.46,0.00,NON COMMERCIAL SUPPLIER 
 21-09-2022,Adults,Certified Healthcare Solutions Ltd t/a In Home Care Havering,Home Care - Private Contractors Payment,1176.00,0.00,COMMERCIAL SUPPLIER 
 21-09-2022,Adults,Certified Healthcare Solutions Ltd t/a In Home Care Havering,Home Care - Private Contractors Payment,1176.00,0.00,COMMERCIAL SUPPLIER 
 21-09-2022,Adults,Certified Healthcare Solutions Ltd t/a In Home Care Havering,Home Care - Private Contractors Payment,1377.60,0.00,COMMERCIAL SUPPLIER 
 21-09-2022,Adults,Certified Healthcare Solutions Ltd t/a In Home Care Havering,Home Care - Private Contractors Payment,1377.60,0.00,COMMERCIAL SUPPLIER 
 21-09-2022,Adults,Matrix SCM Ltd,Agency Staff,520.66,0.00,COMMERCIAL SUPPLIER 
 21-09-2022,Adults,Matrix SCM Ltd,Agency Staff,1281.98,0.00,COMMERCIAL SUPPLIER 
 21-09-2022,Adults,Matrix SCM Ltd,Agency Staff,1033.00,0.00,COMMERCIAL SUPPLIER 
 21-09-2022,Adults,Matrix SCM Ltd,Agency Staff,1290.24,0.00,COMMERCIAL SUPPLIER 
 21-09-2022,Adults,Matrix SCM Ltd,Agency Staff,1295.70,0.00,COMMERCIAL SUPPLIER 
 21-09-2022,Adults,Matrix SCM Ltd,Agency Staff,860.72,0.00,COMMERCIAL SUPPLIER 
 21-09-2022,Adults,Matrix SCM Ltd,Agency Staff,1290.60,0.00,COMMERCIAL SUPPLIER 
 21-09-2022,Adults,Matrix SCM Ltd,Agency Staff,1282.32,0.00,COMMERCIAL SUPPLIER 
 21-09-2022,Adults,Matrix SCM Ltd,Agency Staff,1175.04,0.00,COMMERCIAL SUPPLIER 
 21-09-2022,Adults,Matrix SCM Ltd,Agency Staff,1181.15,0.00,COMMERCIAL SUPPLIER 
 21-09-2022,Adults,Matrix SCM Ltd,Agency Staff,1282.34,0.00,COMMERCIAL SUPPLIER 
 21-09-2022,Adults,Matrix SCM Ltd,Agency Staff,528.50,0.00,COMMERCIAL SUPPLIER 
 21-09-2022,Adults,Matrix SCM Ltd,Agency Staff,657.73,0.00,COMMERCIAL SUPPLIER 
 21-09-2022,Adults,Matrix SCM Ltd,Agency Staff,505.44,0.00,COMMERCIAL SUPPLIER 
 21-09-2022,Adults,Matrix SCM Ltd,Agency Staff,612.35,0.00,COMMERCIAL SUPPLIER 
 21-09-2022,Adults,Matrix SCM Ltd,Agency Staff,649.00,0.00,COMMERCIAL SUPPLIER 
 21-09-2022,Adults,Matrix SCM Ltd,Agency Staff,754.91,0.00,COMMERCIAL SUPPLIER 
 21-09-2022,Adults,Matrix SCM Ltd,Agency Staff,1241.28,0.00,COMMERCIAL SUPPLIER 
 21-09-2022,Adults,Matrix SCM Ltd,Agency Staff,1288.45,0.00,COMMERCIAL SUPPLIER 
 21-09-2022,Adults,Matrix SCM Ltd,Agency Staff,829.63,0.00,COMMERCIAL SUPPLIER 
 21-09-2022,Adults,Matrix SCM Ltd,Agency Staff,1400.77,0.00,COMMERCIAL SUPPLIER 
 21-09-2022,Adults,Matrix SCM Ltd,Agency Staff,1241.28,0.00,COMMERCIAL SUPPLIER 
 21-09-2022,Adults,Matrix SCM Ltd,Agency Staff,1244.51,0.00,COMMERCIAL SUPPLIER 
 21-09-2022,Adults,Matrix SCM Ltd,Agency Staff,1241.28,0.00,COMMERCIAL SUPPLIER 
 21-09-2022,Adults,Matrix SCM Ltd,Agency Staff,1241.28,0.00,COMMERCIAL SUPPLIER 
 21-09-2022,Adults,Matrix SCM Ltd,Agency Staff,1241.28,0.00,COMMERCIAL SUPPLIER 
 21-09-2022,Adults,Matrix SCM Ltd,Agency Staff,1241.28,0.00,COMMERCIAL SUPPLIER 
 21-09-2022,Adults,Matrix SCM Ltd,Agency Staff,735.84,0.00,COMMERCIAL SUPPLIER 
 21-09-2022,Adults,Matrix SCM Ltd,Agency Staff,1265.04,0.00,COMMERCIAL SUPPLIER 
 21-09-2022,Adults,Matrix SCM Ltd,Agency Staff,1601.28,0.00,COMMERCIAL SUPPLIER 
 21-09-2022,Adults,Matrix SCM Ltd,Agency Staff,752.03,0.00,COMMERCIAL SUPPLIER 
 21-09-2022,Adults,Matrix SCM Ltd,Agency Staff,1339.94,0.00,COMMERCIAL SUPPLIER 
 21-09-2022,Adults,Matrix SCM Ltd,Agency Staff,844.58,0.00,COMMERCIAL SUPPLIER 
 21-09-2022,Adults,Matrix SCM Ltd,Agency Staff,741.75,0.00,COMMERCIAL SUPPLIER 
 21-09-2022,Adults,Matrix SCM Ltd,Agency Staff,1215.42,0.00,COMMERCIAL SUPPLIER 
 21-09-2022,Adults,Matrix SCM Ltd,Agency Staff,1186.68,0.00,COMMERCIAL SUPPLIER 
 21-09-2022,Adults,Matrix SCM Ltd,Agency Staff,1394.66,0.00,COMMERCIAL SUPPLIER 
 21-09-2022,Adults,Matrix SCM Ltd,Agency Staff,1034.44,0.00,COMMERCIAL SUPPLIER 
 21-09-2022,Adults,Matrix SCM Ltd,Agency Staff,1207.46,0.00,COMMERCIAL SUPPLIER 
 21-09-2022,Adults,Matrix SCM Ltd,Agency Staff,986.63,0.00,COMMERCIAL SUPPLIER 
 21-09-2022,Adults,North London Community Care Agency,Home Care - Private Contractors Payment,1102.08,0.00,COMMERCIAL SUPPLIER 
 21-09-2022,Adults,North London Community Care Agency,Home Care - Private Contractors Payment,1102.08,0.00,COMMERCIAL SUPPLIER 
 21-09-2022,Adults,Pleasant Home Healthcare Ltd,Home Care - Private Contractors Payment,1790.88,0.00,COMMERCIAL SUPPLIER 
 22-09-2022,Adults,London Care Plc_a,Home Care - Private Contractors Payment,1392.36,0.00,COMMERCIAL SUPPLIER 
 22-09-2022,Adults,London Care Plc_a,Home Care - Private Contractors Payment,1432.38,0.00,COMMERCIAL SUPPLIER 
 22-09-2022,Adults,London Care Plc_a,Home Care - Private Contractors Payment,1431.39,0.00,COMMERCIAL SUPPLIER 
 22-09-2022,Adults,London Care Plc_a,Home Care - Private Contractors Payment,1183.10,0.00,COMMERCIAL SUPPLIER 
 22-09-2022,Adults,London Care Plc_a,Home Care - Private Contractors Payment,1161.45,0.00,COMMERCIAL SUPPLIER 
 22-09-2022,Adults,London Care Plc_a,Home Care - Private Contractors Payment,600.57,0.00,COMMERCIAL SUPPLIER 
 22-09-2022,Adults,London Care Plc_a,Home Care - Private Contractors Payment,1370.38,0.00,COMMERCIAL SUPPLIER 
 22-09-2022,Adults,London Care Plc_a,Home Care - Private Contractors Payment,1364.81,0.00,COMMERCIAL SUPPLIER 
 22-09-2022,Adults,London Care Plc_a,Home Care - Private Contractors Payment,600.57,0.00,COMMERCIAL SUPPLIER 
 22-09-2022,Adults,London Care Plc_a,Home Care - Private Contractors Payment,975.47,0.00,COMMERCIAL SUPPLIER 
 22-09-2022,Adults,Funky Willows Ltd,Daycare - Private Contractors Payment,864.00,0.00,COMMERCIAL SUPPLIER 
 22-09-2022,Adults,Funky Willows Ltd,Daycare - Private Contractors Payment,864.00,0.00,COMMERCIAL SUPPLIER 
 22-09-2022,Adults,Funky Willows Ltd,Daycare - Private Contractors Payment,864.00,0.00,COMMERCIAL SUPPLIER 
 22-09-2022,Adults,Funky Willows Ltd,Daycare - Private Contractors Payment,576.00,0.00,COMMERCIAL SUPPLIER 
 22-09-2022,Adults,Funky Willows Ltd,Daycare - Private Contractors Payment,1440.00,0.00,COMMERCIAL SUPPLIER 
 22-09-2022,Adults,Funky Willows Ltd,Daycare - Private Contractors Payment,1440.00,0.00,COMMERCIAL SUPPLIER 
 22-09-2022,Adults,Virgin Media Payments Ltd,Ict Software,3570.00,0.00,COMMERCIAL SUPPLIER 
 22-09-2022,Adults,Virgin Media Payments Ltd,Private Contractors Payment - Other,4410.00,0.00,COMMERCIAL SUPPLIER 
 22-09-2022,Adults,Virgin Media Payments Ltd,Responsive Repairs - Building,4736.00,0.00,COMMERCIAL SUPPLIER 
 23-09-2022,Adults,Fountains Care Centre - Bondcare,Nursing Homes - Private Contractors Payment,3412.52,0.00,COMMERCIAL SUPPLIER 
 23-09-2022,Adults,Fountains Care Centre - Bondcare,Nursing Homes - Private Contractors Payment,2712.00,0.00,COMMERCIAL SUPPLIER 
 23-09-2022,Adults,Fountains Care Centre - Bondcare,Nursing Homes - Private Contractors Payment,2712.00,0.00,COMMERCIAL SUPPLIER 
 23-09-2022,Adults,Fountains Care Centre - Bondcare,Residential Placements - Private Contractors Payment,2780.00,0.00,COMMERCIAL SUPPLIER 
 23-09-2022,Adults,Fountains Care Centre - Bondcare,Nursing Homes - Private Contractors Payment,2712.00,0.00,COMMERCIAL SUPPLIER 
 23-09-2022,Adults,Fountains Care Centre - Bondcare,Nursing Homes - Private Contractors Payment,2712.00,0.00,COMMERCIAL SUPPLIER 
 23-09-2022,Adults,Fountains Care Centre - Bondcare,Nursing Homes - Private Contractors Payment,1452.86,0.00,COMMERCIAL SUPPLIER 
 23-09-2022,Adults,Fountains Care Centre - Bondcare,Nursing Homes - Private Contractors Payment,2712.00,0.00,COMMERCIAL SUPPLIER 
 23-09-2022,Adults,Fountains Care Centre - Bondcare,Nursing Homes - Private Contractors Payment,2712.00,0.00,COMMERCIAL SUPPLIER 
 23-09-2022,Adults,Fountains Care Centre - Bondcare,Residential Placements - Private Contractors Payment,2780.00,0.00,COMMERCIAL SUPPLIER 
 23-09-2022,Adults,Fountains Care Centre - Bondcare,Nursing Homes - Private Contractors Payment,2712.00,0.00,COMMERCIAL SUPPLIER 
 23-09-2022,Adults,Fountains Care Centre - Bondcare,Nursing Homes - Private Contractors Payment,2712.00,0.00,COMMERCIAL SUPPLIER 
 23-09-2022,Adults,Fountains Care Centre - Bondcare,Nursing Homes - Private Contractors Payment,2712.00,0.00,COMMERCIAL SUPPLIER 
 23-09-2022,Adults,Fountains Care Centre - Bondcare,Residential Placements - Private Contractors Payment,2480.00,0.00,COMMERCIAL SUPPLIER 
 23-09-2022,Adults,Fountains Care Centre - Bondcare,Residential Placements - Private Contractors Payment,2480.00,0.00,COMMERCIAL SUPPLIER 
 23-09-2022,Adults,Fountains Care Centre - Bondcare,Residential Placements - Private Contractors Payment,2314.24,0.00,COMMERCIAL SUPPLIER 
 23-09-2022,Adults,Fountains Care Centre - Bondcare,Nursing Homes - Private Contractors Payment,2528.00,0.00,COMMERCIAL SUPPLIER 
 23-09-2022,Adults,Fountains Care Centre - Bondcare,Nursing Homes - Private Contractors Payment,2712.00,0.00,COMMERCIAL SUPPLIER 
 23-09-2022,Adults,Fountains Care Centre - Bondcare,Nursing Homes - Private Contractors Payment,2324.57,0.00,COMMERCIAL SUPPLIER 
 23-09-2022,Adults,Fountains Care Centre - Bondcare,Nursing Homes - Private Contractors Payment,2712.00,0.00,COMMERCIAL SUPPLIER 
 23-09-2022,Adults,Fountains Care Centre - Bondcare,Nursing Homes - Private Contractors Payment,2712.00,0.00,COMMERCIAL SUPPLIER 
 23-09-2022,Adults,Fountains Care Centre - Bondcare,Residential Placements - Private Contractors Payment,2480.00,0.00,COMMERCIAL SUPPLIER 
 23-09-2022,Adults,Fountains Care Centre - Bondcare,Nursing Homes - Private Contractors Payment,3900.00,0.00,COMMERCIAL SUPPLIER 
 23-09-2022,Adults,Fountains Care Centre - Bondcare,Nursing Homes - Private Contractors Payment,2712.00,0.00,COMMERCIAL SUPPLIER 
 23-09-2022,Adults,Fountains Care Centre - Bondcare,Nursing Homes - Private Contractors Payment,2712.00,0.00,COMMERCIAL SUPPLIER 
 23-09-2022,Adults,Fountains Care Centre - Bondcare,Residential Placements - Private Contractors Payment,2780.00,0.00,COMMERCIAL SUPPLIER 
 23-09-2022,Adults,Fountains Care Centre - Bondcare,Nursing Homes - Private Contractors Payment,2712.00,0.00,COMMERCIAL SUPPLIER 
 23-09-2022,Adults,Fountains Care Centre - Bondcare,Nursing Homes - Private Contractors Payment,2712.00,0.00,COMMERCIAL SUPPLIER 
 23-09-2022,Adults,Fountains Care Centre - Bondcare,Nursing Homes - Private Contractors Payment,2712.00,0.00,COMMERCIAL SUPPLIER 
 23-09-2022,Adults,Fountains Care Centre - Bondcare,Nursing Homes - Private Contractors Payment,2712.00,0.00,COMMERCIAL SUPPLIER 
 23-09-2022,Adults,Black Swan International Ltd - Belamacanda,Residential Placements - Private Contractors Payment,2647.40,0.00,COMMERCIAL SUPPLIER 
 23-09-2022,Adults,Black Swan International Ltd - Belamacanda,Residential Placements - Private Contractors Payment,3659.24,0.00,COMMERCIAL SUPPLIER 
 23-09-2022,Adults,Black Swan International Ltd - Belamacanda,Residential Placements - Private Contractors Payment,2596.48,0.00,COMMERCIAL SUPPLIER 
 23-09-2022,Adults,Black Swan International Ltd - Belamacanda,Residential Placements - Private Contractors Payment,3625.80,0.00,COMMERCIAL SUPPLIER 
 23-09-2022,Adults,Leonard Cheshire Disability_a,Residential Placements - Private Contractors Payment,5868.96,0.00,COMMERCIAL SUPPLIER 
 23-09-2022,Adults,Leonard Cheshire Disability_a,Residential Placements - Private Contractors Payment,6042.60,0.00,COMMERCIAL SUPPLIER 
 23-09-2022,Adults,Voyage Ltd - Solar-Grange Liss,Nursing Homes - Private Contractors Payment,5118.20,0.00,COMMERCIAL SUPPLIER 
 23-09-2022,Adults,One Tree Estates Ltd t/a Ashbrook Nursing Home,Nursing Homes - Private Contractors Payment,2712.00,0.00,COMMERCIAL SUPPLIER 
 23-09-2022,Adults,One Tree Estates Ltd t/a Ashbrook Nursing Home,Nursing Homes - Private Contractors Payment,3485.00,0.00,COMMERCIAL SUPPLIER 
 23-09-2022,Adults,One Tree Estates Ltd t/a Ashbrook Nursing Home,Nursing Homes - Private Contractors Payment,2528.00,0.00,COMMERCIAL SUPPLIER 
 23-09-2022,Adults,One Tree Estates Ltd t/a Ashbrook Nursing Home,Nursing Homes - Private Contractors Payment,3060.24,0.00,COMMERCIAL SUPPLIER 
 23-09-2022,Adults,One Tree Estates Ltd t/a Ashbrook Nursing Home,Nursing Homes - Private Contractors Payment,2208.00,0.00,COMMERCIAL SUPPLIER 
 23-09-2022,Adults,One Tree Estates Ltd t/a Ashbrook Nursing Home,Nursing Homes - Private Contractors Payment,5796.00,0.00,COMMERCIAL SUPPLIER 
 23-09-2022,Adults,One Tree Estates Ltd t/a Ashbrook Nursing Home,Nursing Homes - Private Contractors Payment,2712.00,0.00,COMMERCIAL SUPPLIER 
 23-09-2022,Adults,One Tree Estates Ltd t/a Ashbrook Nursing Home,Nursing Homes - Private Contractors Payment,2712.00,0.00,COMMERCIAL SUPPLIER 
 23-09-2022,Adults,One Tree Estates Ltd t/a Ashbrook Nursing Home,Nursing Homes - Private Contractors Payment,3200.00,0.00,COMMERCIAL SUPPLIER 
 23-09-2022,Adults,One Tree Estates Ltd t/a Ashbrook Nursing Home,Nursing Homes - Private Contractors Payment,3112.00,0.00,COMMERCIAL SUPPLIER 
 23-09-2022,Adults,One Tree Estates Ltd t/a Ashbrook Nursing Home,Nursing Homes - Private Contractors Payment,2712.00,0.00,COMMERCIAL SUPPLIER 
 23-09-2022,Adults,One Tree Estates Ltd t/a Ashbrook Nursing Home,Nursing Homes - Private Contractors Payment,2712.00,0.00,COMMERCIAL SUPPLIER 
 23-09-2022,Adults,One Tree Estates Ltd t/a Ashbrook Nursing Home,Nursing Homes - Private Contractors Payment,5200.00,0.00,COMMERCIAL SUPPLIER 
 23-09-2022,Adults,One Tree Estates Ltd t/a Ashbrook Nursing Home,Nursing Homes - Private Contractors Payment,3400.00,0.00,COMMERCIAL SUPPLIER 
 23-09-2022,Adults,One Tree Estates Ltd t/a Ashbrook Nursing Home,Nursing Homes - Private Contractors Payment,3200.00,0.00,COMMERCIAL SUPPLIER 
 23-09-2022,Adults,One Tree Estates Ltd t/a Ashbrook Nursing Home,Nursing Homes - Private Contractors Payment,5330.00,0.00,COMMERCIAL SUPPLIER 
 23-09-2022,Adults,One Tree Estates Ltd t/a Ashbrook Nursing Home,Nursing Homes - Private Contractors Payment,3075.00,0.00,COMMERCIAL SUPPLIER 
 23-09-2022,Adults,One Tree Estates Ltd t/a Ashbrook Nursing Home,Nursing Homes - Private Contractors Payment,3485.00,0.00,COMMERCIAL SUPPLIER 
 23-09-2022,Adults,One Tree Estates Ltd t/a Ashbrook Nursing Home,Nursing Homes - Private Contractors Payment,2948.24,0.00,COMMERCIAL SUPPLIER 
 23-09-2022,Adults,One Tree Estates Ltd t/a Ashbrook Nursing Home,Nursing Homes - Private Contractors Payment,2712.00,0.00,COMMERCIAL SUPPLIER 
 23-09-2022,Adults,One Tree Estates Ltd t/a Ashbrook Nursing Home,Nursing Homes - Private Contractors Payment,2712.00,0.00,COMMERCIAL SUPPLIER 
 23-09-2022,Adults,One Tree Estates Ltd t/a Ashbrook Nursing Home,Nursing Homes - Private Contractors Payment,728.57,0.00,COMMERCIAL SUPPLIER 
 23-09-2022,Adults,One Tree Estates Ltd t/a Ashbrook Nursing Home,Nursing Homes - Private Contractors Payment,3075.00,0.00,COMMERCIAL SUPPLIER 
 23-09-2022,Adults,One Tree Estates Ltd t/a Ashbrook Nursing Home,Nursing Homes - Private Contractors Payment,12096.00,0.00,COMMERCIAL SUPPLIER 
 23-09-2022,Adults,One Tree Estates Ltd t/a Ashbrook Nursing Home,Nursing Homes - Private Contractors Payment,3485.00,0.00,COMMERCIAL SUPPLIER 
 23-09-2022,Adults,One Tree Estates Ltd t/a Ashbrook Nursing Home,Nursing Homes - Private Contractors Payment,2712.00,0.00,COMMERCIAL SUPPLIER 
 23-09-2022,Adults,Highfield Care Homes Ltd t/a Romford Grange Care Home,Residential Placements - Private Contractors Payment,2530.96,0.00,COMMERCIAL SUPPLIER 
 23-09-2022,Adults,Highfield Care Homes Ltd t/a Romford Grange Care Home,Nursing Homes - Private Contractors Payment,2712.00,0.00,COMMERCIAL SUPPLIER 
 23-09-2022,Adults,Highfield Care Homes Ltd t/a Romford Grange Care Home,Nursing Homes - Private Contractors Payment,2472.84,0.00,COMMERCIAL SUPPLIER 
 23-09-2022,Adults,Highfield Care Homes Ltd t/a Romford Grange Care Home,Nursing Homes - Private Contractors Payment,2712.00,0.00,COMMERCIAL SUPPLIER 
 23-09-2022,Adults,Highfield Care Homes Ltd t/a Romford Grange Care Home,Nursing Homes - Private Contractors Payment,2712.00,0.00,COMMERCIAL SUPPLIER 
 23-09-2022,Adults,Highfield Care Homes Ltd t/a Romford Grange Care Home,Residential Placements - Private Contractors Payment,2528.00,0.00,COMMERCIAL SUPPLIER 
 23-09-2022,Adults,Highfield Care Homes Ltd t/a Romford Grange Care Home,Nursing Homes - Private Contractors Payment,2712.00,0.00,COMMERCIAL SUPPLIER 
 23-09-2022,Adults,Highfield Care Homes Ltd t/a Romford Grange Care Home,Residential Placements - Private Contractors Payment,2780.00,0.00,COMMERCIAL SUPPLIER 
 23-09-2022,Adults,Highfield Care Homes Ltd t/a Romford Grange Care Home,Nursing Homes - Private Contractors Payment,2712.00,0.00,COMMERCIAL SUPPLIER 
 23-09-2022,Adults,Highfield Care Homes Ltd t/a Romford Grange Care Home,Residential Placements - Private Contractors Payment,2480.00,0.00,COMMERCIAL SUPPLIER 
 23-09-2022,Adults,Highfield Care Homes Ltd t/a Romford Grange Care Home,Nursing Homes - Private Contractors Payment,2712.00,0.00,COMMERCIAL SUPPLIER 
 23-09-2022,Adults,Highfield Care Homes Ltd t/a Romford Grange Care Home,Nursing Homes - Private Contractors Payment,2528.00,0.00,COMMERCIAL SUPPLIER 
 23-09-2022,Adults,Highfield Care Homes Ltd t/a Romford Grange Care Home,Nursing Homes - Private Contractors Payment,2528.00,0.00,COMMERCIAL SUPPLIER 
 23-09-2022,Adults,Highfield Care Homes Ltd t/a Romford Grange Care Home,Nursing Homes - Private Contractors Payment,2528.00,0.00,COMMERCIAL SUPPLIER 
 23-09-2022,Adults,Highfield Care Homes Ltd t/a Romford Grange Care Home,Nursing Homes - Private Contractors Payment,2712.00,0.00,COMMERCIAL SUPPLIER 
 23-09-2022,Adults,MNS Care Plc_a,Nursing Homes - Private Contractors Payment,968.57,0.00,COMMERCIAL SUPPLIER 
 23-09-2022,Adults,MNS Care Plc_a,Nursing Homes - Private Contractors Payment,2636.32,0.00,COMMERCIAL SUPPLIER 
 23-09-2022,Adults,MNS Care Plc_a,Nursing Homes - Private Contractors Payment,2712.00,0.00,COMMERCIAL SUPPLIER 
 23-09-2022,Adults,MNS Care Plc_a,Nursing Homes - Private Contractors Payment,2528.00,0.00,COMMERCIAL SUPPLIER 
 23-09-2022,Adults,MNS Care Plc_a,Nursing Homes - Private Contractors Payment,2712.00,0.00,COMMERCIAL SUPPLIER 
 23-09-2022,Adults,MNS Care Plc_a,Residential Placements - Private Contractors Payment,3568.76,0.00,COMMERCIAL SUPPLIER 
 23-09-2022,Adults,Bupa Care Homes (HVC) - Havering Court,Nursing Homes - Private Contractors Payment,5908.20,0.00,COMMERCIAL SUPPLIER 
 23-09-2022,Adults,Bupa Care Homes (HVC) - Havering Court,Nursing Homes - Private Contractors Payment,3465.72,0.00,COMMERCIAL SUPPLIER 
 23-09-2022,Adults,Bupa Care Homes (HVC) - Havering Court,Nursing Homes - Private Contractors Payment,3275.24,0.00,COMMERCIAL SUPPLIER 
 23-09-2022,Adults,Bupa Care Homes (HVC) - Havering Court,Nursing Homes - Private Contractors Payment,4150.84,0.00,COMMERCIAL SUPPLIER 
 23-09-2022,Adults,Bupa Care Homes (HVC) - Havering Court,Nursing Homes - Private Contractors Payment,4214.48,0.00,COMMERCIAL SUPPLIER 
 23-09-2022,Adults,Bupa Care Homes (HVC) - Havering Court,Nursing Homes - Private Contractors Payment,3804.28,0.00,COMMERCIAL SUPPLIER 
 23-09-2022,Adults,Bupa Care Homes (HVC) - Havering Court,Nursing Homes - Private Contractors Payment,3830.08,0.00,COMMERCIAL SUPPLIER 
 23-09-2022,Adults,Bupa Care Homes (HVC) - Havering Court,Nursing Homes - Private Contractors Payment,3493.20,0.00,COMMERCIAL SUPPLIER 
 23-09-2022,Adults,Bupa Care Homes (HVC) - Havering Court,Nursing Homes - Private Contractors Payment,2712.00,0.00,COMMERCIAL SUPPLIER 
 23-09-2022,Adults,Bupa Care Homes (HVC) - Havering Court,Nursing Homes - Private Contractors Payment,4658.08,0.00,COMMERCIAL SUPPLIER 
 23-09-2022,Adults,Bupa Care Homes (HVC) - Havering Court,Nursing Homes - Private Contractors Payment,3811.68,0.00,COMMERCIAL SUPPLIER 
 23-09-2022,Adults,Bupa Care Homes (HVC) - Havering Court,Nursing Homes - Private Contractors Payment,4831.08,0.00,COMMERCIAL SUPPLIER 
 23-09-2022,Adults,2 Peel Way - Outlook Care,Supported Other Accommodation - Private Contractors Payment,3940.04,0.00,NON COMMERCIAL SUPPLIER 
 23-09-2022,Adults,2 Peel Way - Outlook Care,Supported Other Accommodation - Private Contractors Payment,2876.68,0.00,NON COMMERCIAL SUPPLIER 
 23-09-2022,Adults,2 Peel Way - Outlook Care,Supported Other Accommodation - Private Contractors Payment,2344.96,0.00,NON COMMERCIAL SUPPLIER 
 23-09-2022,Adults,2 Peel Way - Outlook Care,Supported Other Accommodation - Private Contractors Payment,1721.00,0.00,NON COMMERCIAL SUPPLIER 
 23-09-2022,Adults,2 Peel Way - Outlook Care,Supported Other Accommodation - Private Contractors Payment,963.92,0.00,NON COMMERCIAL SUPPLIER 
 23-09-2022,Adults,2 Peel Way - Outlook Care,Supported Other Accommodation - Private Contractors Payment,1687.28,0.00,NON COMMERCIAL SUPPLIER 
 23-09-2022,Adults,2 Peel Way - Outlook Care,Supported Other Accommodation - Private Contractors Payment,1349.88,0.00,NON COMMERCIAL SUPPLIER 
 23-09-2022,Adults,2 Peel Way - Outlook Care,Supported Other Accommodation - Private Contractors Payment,3053.92,0.00,NON COMMERCIAL SUPPLIER 
 23-09-2022,Adults,Outlook Care - 4 Peel Way,Supported Other Accommodation - Private Contractors Payment,1796.08,0.00,COMMERCIAL SUPPLIER 
 23-09-2022,Adults,Outlook Care - 4 Peel Way,Supported Other Accommodation - Private Contractors Payment,1570.80,0.00,COMMERCIAL SUPPLIER 
 23-09-2022,Adults,Outlook Care - 4 Peel Way,Supported Other Accommodation - Private Contractors Payment,2861.88,0.00,COMMERCIAL SUPPLIER 
 23-09-2022,Adults,Outlook Care - 4 Peel Way,Supported Other Accommodation - Private Contractors Payment,1719.80,0.00,COMMERCIAL SUPPLIER 
 23-09-2022,Adults,Outlook Care - 4 Peel Way,Supported Other Accommodation - Private Contractors Payment,917.60,0.00,COMMERCIAL SUPPLIER 
 23-09-2022,Adults,Outlook Care - 4 Peel Way,Supported Other Accommodation - Private Contractors Payment,1035.08,0.00,COMMERCIAL SUPPLIER 
 23-09-2022,Adults,Outlook Care - 4 Peel Way,Supported Other Accommodation - Private Contractors Payment,3494.00,0.00,COMMERCIAL SUPPLIER 
 23-09-2022,Adults,Outlook Care - 4 Peel Way,Supported Other Accommodation - Private Contractors Payment,3290.20,0.00,COMMERCIAL SUPPLIER 
 23-09-2022,Adults,Outlook Care - 4 Peel Way,Supported Other Accommodation - Private Contractors Payment,1796.08,0.00,COMMERCIAL SUPPLIER 
 23-09-2022,Adults,The Avenues Trust - 6 Peel Way,Residential Placements - Private Contractors Payment,5890.68,0.00,COMMERCIAL SUPPLIER 
 23-09-2022,Adults,The Avenues Trust - 6 Peel Way,Residential Placements - Private Contractors Payment,5890.68,0.00,COMMERCIAL SUPPLIER 
 23-09-2022,Adults,The Avenues Trust - 6 Peel Way,Residential Placements - Private Contractors Payment,5890.68,0.00,COMMERCIAL SUPPLIER 
 23-09-2022,Adults,The Avenues Trust - 6 Peel Way,Residential Placements - Private Contractors Payment,5890.68,0.00,COMMERCIAL SUPPLIER 
 23-09-2022,Adults,Voyage Ltd - Solar Care Melbreck,Nursing Homes - Private Contractors Payment,4058.20,0.00,COMMERCIAL SUPPLIER 
 23-09-2022,Adults,Fitzroy Support,Residential Placements - Private Contractors Payment,5320.40,0.00,COMMERCIAL SUPPLIER 
 23-09-2022,Adults,Peter House Care Ltd t/a Aldanat Care,Residential Placements - Private Contractors Payment,6243.84,0.00,COMMERCIAL SUPPLIER 
 23-09-2022,Adults,Dudbrook Hall Residential Home,Residential Placements - Private Contractors Payment,2780.00,0.00,COMMERCIAL SUPPLIER 
 23-09-2022,Adults,Essex Care Consortium Ltd_a,Residential Placements - Private Contractors Payment,4406.72,0.00,COMMERCIAL SUPPLIER 
 23-09-2022,Adults,Mundy House,Residential Placements - Private Contractors Payment,2579.84,0.00,COMMERCIAL SUPPLIER 
 23-09-2022,Adults,Mundy House,Residential Placements - Private Contractors Payment,2559.40,0.00,COMMERCIAL SUPPLIER 
 23-09-2022,Adults,Mundy House,Residential Placements - Private Contractors Payment,2780.00,0.00,COMMERCIAL SUPPLIER 
 23-09-2022,Adults,Lukka Care Homes Ltd - Ravenscourt,Nursing Homes - Private Contractors Payment,2948.24,0.00,COMMERCIAL SUPPLIER 
 23-09-2022,Adults,Lukka Care Homes Ltd - Ravenscourt,Nursing Homes - Private Contractors Payment,3900.00,0.00,COMMERCIAL SUPPLIER 
 23-09-2022,Adults,Lukka Care Homes Ltd - Ravenscourt,Nursing Homes - Private Contractors Payment,2712.00,0.00,COMMERCIAL SUPPLIER 
 23-09-2022,Adults,Lukka Care Homes Ltd - Ravenscourt,Nursing Homes - Private Contractors Payment,3049.60,0.00,COMMERCIAL SUPPLIER 
 23-09-2022,Adults,Lukka Care Homes Ltd - Ravenscourt,Nursing Homes - Private Contractors Payment,4000.00,0.00,COMMERCIAL SUPPLIER 
 23-09-2022,Adults,Lukka Care Homes Ltd - Ravenscourt,Nursing Homes - Private Contractors Payment,3377.72,0.00,COMMERCIAL SUPPLIER 
 23-09-2022,Adults,Lukka Care Homes Ltd - Ravenscourt,Nursing Homes - Private Contractors Payment,2948.24,0.00,COMMERCIAL SUPPLIER 
 23-09-2022,Adults,Lukka Care Homes Ltd - Ravenscourt,Nursing Homes - Private Contractors Payment,5018.40,0.00,COMMERCIAL SUPPLIER 
 23-09-2022,Adults,Lukka Care Homes Ltd - Ravenscourt,Nursing Homes - Private Contractors Payment,2712.00,0.00,COMMERCIAL SUPPLIER 
 23-09-2022,Adults,Lukka Care Homes Ltd - Ravenscourt,Nursing Homes - Private Contractors Payment,2528.00,0.00,COMMERCIAL SUPPLIER 
 23-09-2022,Adults,Lukka Care Homes Ltd - Ravenscourt,Nursing Homes - Private Contractors Payment,3800.00,0.00,COMMERCIAL SUPPLIER 
 23-09-2022,Adults,Lukka Care Homes Ltd - Ravenscourt,Nursing Homes - Private Contractors Payment,4150.84,0.00,COMMERCIAL SUPPLIER 
 23-09-2022,Adults,Lukka Care Homes Ltd - Ravenscourt,Nursing Homes - Private Contractors Payment,3330.84,0.00,COMMERCIAL SUPPLIER 
 23-09-2022,Adults,Lukka Care Homes Ltd - Ravenscourt,Nursing Homes - Private Contractors Payment,3900.00,0.00,COMMERCIAL SUPPLIER 
 23-09-2022,Adults,Barchester Healthcare Ltd - Park View Care Home,Nursing Homes - Private Contractors Payment,4192.08,0.00,COMMERCIAL SUPPLIER 
 23-09-2022,Adults,Barchester Healthcare Ltd - Park View Care Home,Residential Placements - Private Contractors Payment,2780.00,0.00,COMMERCIAL SUPPLIER 
 23-09-2022,Adults,Barchester Healthcare Ltd - Park View Care Home,Nursing Homes - Private Contractors Payment,3831.04,0.00,COMMERCIAL SUPPLIER 
 23-09-2022,Adults,Barchester Healthcare Ltd - Park View Care Home,Nursing Homes - Private Contractors Payment,3888.68,0.00,COMMERCIAL SUPPLIER 
 23-09-2022,Adults,Barchester Healthcare Ltd - Park View Care Home,Nursing Homes - Private Contractors Payment,4150.84,0.00,COMMERCIAL SUPPLIER 
 23-09-2022,Adults,Barchester Healthcare Ltd - Park View Care Home,Nursing Homes - Private Contractors Payment,4458.36,0.00,COMMERCIAL SUPPLIER 
 23-09-2022,Adults,Barchester Healthcare Ltd - Park View Care Home,Nursing Homes - Private Contractors Payment,4192.08,0.00,COMMERCIAL SUPPLIER 
 23-09-2022,Adults,Barchester Healthcare Ltd - Park View Care Home,Nursing Homes - Private Contractors Payment,5545.32,0.00,COMMERCIAL SUPPLIER 
 23-09-2022,Adults,Barchester Healthcare Ltd - Park View Care Home,Nursing Homes - Private Contractors Payment,2948.24,0.00,COMMERCIAL SUPPLIER 
 23-09-2022,Adults,Barchester Healthcare Ltd - Park View Care Home,Residential Placements - Private Contractors Payment,4879.92,0.00,COMMERCIAL SUPPLIER 
 23-09-2022,Adults,Barchester Healthcare Ltd - Park View Care Home,Nursing Homes - Private Contractors Payment,5000.00,0.00,COMMERCIAL SUPPLIER 
 23-09-2022,Adults,Barchester Healthcare Ltd - Park View Care Home,Nursing Homes - Private Contractors Payment,2948.24,0.00,COMMERCIAL SUPPLIER 
 23-09-2022,Adults,Barchester Healthcare Ltd - Park View Care Home,Nursing Homes - Private Contractors Payment,3900.00,0.00,COMMERCIAL SUPPLIER 
 23-09-2022,Adults,Westminster Health Care Ltd Derham House,Respite Care - Private Contractors Payment,1259.14,0.00,COMMERCIAL SUPPLIER 
 23-09-2022,Adults,Westminster Health Care Ltd Derham House,Residential Placements - Private Contractors Payment,5813.80,0.00,COMMERCIAL SUPPLIER 
 23-09-2022,Adults,Westminster Health Care Ltd Derham House,Nursing Homes - Private Contractors Payment,5438.24,0.00,COMMERCIAL SUPPLIER 
 23-09-2022,Adults,Westminster Health Care Ltd Derham House,Nursing Homes - Private Contractors Payment,3345.92,0.00,COMMERCIAL SUPPLIER 
 23-09-2022,Adults,Westminster Health Care Ltd Derham House,Residential Placements - Private Contractors Payment,5739.64,0.00,COMMERCIAL SUPPLIER 
 23-09-2022,Adults,Westminster Health Care Ltd Derham House,Nursing Homes - Private Contractors Payment,2606.08,0.00,COMMERCIAL SUPPLIER 
 23-09-2022,Adults,Westminster Health Care Ltd Derham House,Nursing Homes - Private Contractors Payment,2034.00,0.00,COMMERCIAL SUPPLIER 
 23-09-2022,Adults,Westminster Health Care Ltd Derham House,Nursing Homes - Private Contractors Payment,2712.00,0.00,COMMERCIAL SUPPLIER 
 23-09-2022,Adults,Westminster Health Care Ltd Derham House,Nursing Homes - Private Contractors Payment,3960.92,0.00,COMMERCIAL SUPPLIER 
 23-09-2022,Adults,Westminster Health Care Ltd Derham House,Residential Placements - Private Contractors Payment,5645.72,0.00,COMMERCIAL SUPPLIER 
 23-09-2022,Adults,HC-One Oval Ltd - Chaseview,Nursing Homes - Private Contractors Payment,2681.40,0.00,COMMERCIAL SUPPLIER 
 23-09-2022,Adults,HC-One Oval Ltd - Chaseview,Nursing Homes - Private Contractors Payment,2616.00,0.00,COMMERCIAL SUPPLIER 
 23-09-2022,Adults,HC-One Oval Ltd - Chaseview,Residential Placements - Private Contractors Payment,2780.00,0.00,COMMERCIAL SUPPLIER 
 23-09-2022,Adults,HC-One Oval Ltd - Chaseview,Residential Placements - Private Contractors Payment,2643.04,0.00,COMMERCIAL SUPPLIER 
 23-09-2022,Adults,HC-One Oval Ltd - Chaseview,Nursing Homes - Private Contractors Payment,2516.76,0.00,COMMERCIAL SUPPLIER 
 23-09-2022,Adults,HC-One Oval Ltd - Chaseview,Nursing Homes - Private Contractors Payment,2636.32,0.00,COMMERCIAL SUPPLIER 
 23-09-2022,Adults,HC-One Oval Ltd - The Hornchurch Nursing Centre,Nursing Homes - Private Contractors Payment,2528.00,0.00,COMMERCIAL SUPPLIER 
 23-09-2022,Adults,HC-One Oval Ltd - The Hornchurch Nursing Centre,Nursing Homes - Private Contractors Payment,2712.00,0.00,COMMERCIAL SUPPLIER 
 23-09-2022,Adults,HC-One Oval Ltd - The Hornchurch Nursing Centre,Nursing Homes - Private Contractors Payment,3412.52,0.00,COMMERCIAL SUPPLIER 
 23-09-2022,Adults,HC-One Oval Ltd - The Hornchurch Nursing Centre,Nursing Homes - Private Contractors Payment,2996.36,0.00,COMMERCIAL SUPPLIER 
 23-09-2022,Adults,HC-One Oval Ltd - The Hornchurch Nursing Centre,Nursing Homes - Private Contractors Payment,12768.00,0.00,COMMERCIAL SUPPLIER 
 23-09-2022,Adults,HC-One Oval Ltd - The Hornchurch Nursing Centre,Nursing Homes - Private Contractors Payment,2712.00,0.00,COMMERCIAL SUPPLIER 
 23-09-2022,Adults,HC-One Oval Ltd - The Hornchurch Nursing Centre,Residential Placements - Private Contractors Payment,2780.00,0.00,COMMERCIAL SUPPLIER 
 23-09-2022,Adults,HC-One Oval Ltd - The Hornchurch Nursing Centre,Residential Placements - Private Contractors Payment,2780.00,0.00,COMMERCIAL SUPPLIER 
 23-09-2022,Adults,HC-One Oval Ltd - The Hornchurch Nursing Centre,Nursing Homes - Private Contractors Payment,2712.00,0.00,COMMERCIAL SUPPLIER 
 23-09-2022,Adults,HC-One Oval Ltd - The Hornchurch Nursing Centre,Nursing Homes - Private Contractors Payment,2712.00,0.00,COMMERCIAL SUPPLIER 
 23-09-2022,Adults,HC-One Oval Ltd - The Hornchurch Nursing Centre,Nursing Homes - Private Contractors Payment,2712.00,0.00,COMMERCIAL SUPPLIER 
 23-09-2022,Adults,HC-One Oval Ltd - The Hornchurch Nursing Centre,Residential Placements - Private Contractors Payment,3075.00,0.00,COMMERCIAL SUPPLIER 
 23-09-2022,Adults,HC-One Oval Ltd - The Hornchurch Nursing Centre,Nursing Homes - Private Contractors Payment,2712.00,0.00,COMMERCIAL SUPPLIER 
 23-09-2022,Adults,HC-One Oval Ltd - The Hornchurch Nursing Centre,Nursing Homes - Private Contractors Payment,2712.00,0.00,COMMERCIAL SUPPLIER 
 23-09-2022,Adults,HC-One Oval Ltd - The Hornchurch Nursing Centre,Nursing Homes - Private Contractors Payment,2528.00,0.00,COMMERCIAL SUPPLIER 
 23-09-2022,Adults,HC-One Oval Ltd - The Hornchurch Nursing Centre,Nursing Homes - Private Contractors Payment,2712.00,0.00,COMMERCIAL SUPPLIER 
 23-09-2022,Adults,HC-One Oval Ltd - The Hornchurch Nursing Centre,Residential Placements - Private Contractors Payment,2624.00,0.00,COMMERCIAL SUPPLIER 
 23-09-2022,Adults,HC-One Oval Ltd - The Hornchurch Nursing Centre,Nursing Homes - Private Contractors Payment,2528.00,0.00,COMMERCIAL SUPPLIER 
 23-09-2022,Adults,HC-One Oval Ltd - The Hornchurch Nursing Centre,Nursing Homes - Private Contractors Payment,2712.00,0.00,COMMERCIAL SUPPLIER 
 23-09-2022,Adults,HC-One Oval Ltd - The Hornchurch Nursing Centre,Nursing Homes - Private Contractors Payment,2712.00,0.00,COMMERCIAL SUPPLIER 
 23-09-2022,Adults,HC-One Oval Ltd - The Hornchurch Nursing Centre,Nursing Homes - Private Contractors Payment,2712.00,0.00,COMMERCIAL SUPPLIER 
 23-09-2022,Adults,HC-One Oval Ltd - The Hornchurch Nursing Centre,Nursing Homes - Private Contractors Payment,2712.00,0.00,COMMERCIAL SUPPLIER 
 23-09-2022,Adults,HC-One Oval Ltd - The Hornchurch Nursing Centre,Residential Placements - Private Contractors Payment,2780.00,0.00,COMMERCIAL SUPPLIER 
 23-09-2022,Adults,Bramerton Care Home - Community Homes of Intensive Care and Education Ltd,Residential Placements - Private Contractors Payment,7835.96,0.00,COMMERCIAL SUPPLIER 
 23-09-2022,Adults,Stable Family Home Trust BH24 3BN,Supported Other Accommodation - Private Contractors Payment,4067.32,0.00,COMMERCIAL SUPPLIER 
 23-09-2022,Adults,Beechcourt Care Centre - Bondcare,Nursing Homes - Private Contractors Payment,2712.00,0.00,COMMERCIAL SUPPLIER 
 23-09-2022,Adults,Beechcourt Care Centre - Bondcare,Nursing Homes - Private Contractors Payment,2712.00,0.00,COMMERCIAL SUPPLIER 
 23-09-2022,Adults,Beechcourt Care Centre - Bondcare,Nursing Homes - Private Contractors Payment,2712.00,0.00,COMMERCIAL SUPPLIER 
 23-09-2022,Adults,Beechcourt Care Centre - Bondcare,Nursing Homes - Private Contractors Payment,2712.00,0.00,COMMERCIAL SUPPLIER 
 23-09-2022,Adults,Beechcourt Care Centre - Bondcare,Nursing Homes - Private Contractors Payment,2712.00,0.00,COMMERCIAL SUPPLIER 
 23-09-2022,Adults,Beechcourt Care Centre - Bondcare,Nursing Homes - Private Contractors Payment,2712.00,0.00,COMMERCIAL SUPPLIER 
 23-09-2022,Adults,Beechcourt Care Centre - Bondcare,Nursing Homes - Private Contractors Payment,2712.00,0.00,COMMERCIAL SUPPLIER 
 23-09-2022,Adults,Beechcourt Care Centre - Bondcare,Nursing Homes - Private Contractors Payment,2712.00,0.00,COMMERCIAL SUPPLIER 
 23-09-2022,Adults,Beechcourt Care Centre - Bondcare,Nursing Homes - Private Contractors Payment,2528.00,0.00,COMMERCIAL SUPPLIER 
 23-09-2022,Adults,Beechcourt Care Centre - Bondcare,Nursing Homes - Private Contractors Payment,632.00,0.00,COMMERCIAL SUPPLIER 
 23-09-2022,Adults,Beechcourt Care Centre - Bondcare,Nursing Homes - Private Contractors Payment,2528.00,0.00,COMMERCIAL SUPPLIER 
 23-09-2022,Adults,Beechcourt Care Centre - Bondcare,Nursing Homes - Private Contractors Payment,2712.00,0.00,COMMERCIAL SUPPLIER 
 23-09-2022,Adults,Beechcourt Care Centre - Bondcare,Residential Placements - Private Contractors Payment,2674.04,0.00,COMMERCIAL SUPPLIER 
 23-09-2022,Adults,Beechcourt Care Centre - Bondcare,Nursing Homes - Private Contractors Payment,2528.00,0.00,COMMERCIAL SUPPLIER 
 23-09-2022,Adults,Beechcourt Care Centre - Bondcare,Nursing Homes - Private Contractors Payment,2712.00,0.00,COMMERCIAL SUPPLIER 
 23-09-2022,Adults,Beechcourt Care Centre - Bondcare,Nursing Homes - Private Contractors Payment,2712.00,0.00,COMMERCIAL SUPPLIER 
 23-09-2022,Adults,Beechcourt Care Centre - Bondcare,Nursing Homes - Private Contractors Payment,2528.00,0.00,COMMERCIAL SUPPLIER 
 23-09-2022,Adults,Beechcourt Care Centre - Bondcare,Nursing Homes - Private Contractors Payment,2712.00,0.00,COMMERCIAL SUPPLIER 
 23-09-2022,Adults,Beechcourt Care Centre - Bondcare,Nursing Homes - Private Contractors Payment,2712.00,0.00,COMMERCIAL SUPPLIER 
 23-09-2022,Adults,Beechcourt Care Centre - Bondcare,Nursing Homes - Private Contractors Payment,2712.00,0.00,COMMERCIAL SUPPLIER 
 23-09-2022,Adults,Beechcourt Care Centre - Bondcare,Nursing Homes - Private Contractors Payment,2528.00,0.00,COMMERCIAL SUPPLIER 
 23-09-2022,Adults,Beechcourt Care Centre - Bondcare,Residential Placements - Private Contractors Payment,2480.00,0.00,COMMERCIAL SUPPLIER 
 23-09-2022,Adults,Beechcourt Care Centre - Bondcare,Nursing Homes - Private Contractors Payment,2528.00,0.00,COMMERCIAL SUPPLIER 
 23-09-2022,Adults,Beechcourt Care Centre - Bondcare,Nursing Homes - Private Contractors Payment,2712.00,0.00,COMMERCIAL SUPPLIER 
 23-09-2022,Adults,Beechcourt Care Centre - Bondcare,Nursing Homes - Private Contractors Payment,2712.00,0.00,COMMERCIAL SUPPLIER 
 23-09-2022,Adults,Beechcourt Care Centre - Bondcare,Nursing Homes - Private Contractors Payment,2528.00,0.00,COMMERCIAL SUPPLIER 
 23-09-2022,Adults,Beechcourt Care Centre - Bondcare,Nursing Homes - Private Contractors Payment,2712.00,0.00,COMMERCIAL SUPPLIER 
 23-09-2022,Adults,Bondcare (London) Ltd ,Nursing Homes - Private Contractors Payment,2712.00,0.00,COMMERCIAL SUPPLIER 
 23-09-2022,Adults,Bondcare (London) Ltd ,Nursing Homes - Private Contractors Payment,3393.16,0.00,COMMERCIAL SUPPLIER 
 23-09-2022,Adults,Bondcare (London) Ltd ,Nursing Homes - Private Contractors Payment,12432.00,0.00,COMMERCIAL SUPPLIER 
 23-09-2022,Adults,Bondcare (London) Ltd ,Nursing Homes - Private Contractors Payment,2712.00,0.00,COMMERCIAL SUPPLIER 
 23-09-2022,Adults,Alexander Court Care Centre - Bondcare,Nursing Homes - Private Contractors Payment,2712.00,0.00,COMMERCIAL SUPPLIER 
 23-09-2022,Adults,Alexander Court Care Centre - Bondcare,Nursing Homes - Private Contractors Payment,2528.00,0.00,COMMERCIAL SUPPLIER 
 23-09-2022,Adults,Alexander Court Care Centre - Bondcare,Nursing Homes - Private Contractors Payment,2712.00,0.00,COMMERCIAL SUPPLIER 
 23-09-2022,Adults,Alexander Court Care Centre - Bondcare,Nursing Homes - Private Contractors Payment,3732.44,0.00,COMMERCIAL SUPPLIER 
 23-09-2022,Adults,Alexander Court Care Centre - Bondcare,Residential Placements - Private Contractors Payment,2780.00,0.00,COMMERCIAL SUPPLIER 
 23-09-2022,Adults,Alexander Court Care Centre - Bondcare,Nursing Homes - Private Contractors Payment,2627.64,0.00,COMMERCIAL SUPPLIER 
 23-09-2022,Adults,Emerson Court_a,Residential Placements - Private Contractors Payment,1406.43,0.00,COMMERCIAL SUPPLIER 
 23-09-2022,Adults,Emerson Court_a,Residential Placements - Private Contractors Payment,2836.68,0.00,COMMERCIAL SUPPLIER 
 23-09-2022,Adults,Emerson Court_a,Residential Placements - Private Contractors Payment,3580.00,0.00,COMMERCIAL SUPPLIER 
 23-09-2022,Adults,Emerson Court_a,Respite Care - Private Contractors Payment,525.00,0.00,COMMERCIAL SUPPLIER 
 23-09-2022,Adults,Emerson Court_a,Residential Care Income,572.00,0.00,COMMERCIAL SUPPLIER 
 23-09-2022,Adults,Emerson Court_a,Residential Placements - Private Contractors Payment,2780.00,0.00,COMMERCIAL SUPPLIER 
 23-09-2022,Adults,Emerson Court_a,Respite Care - Private Contractors Payment,1312.50,0.00,COMMERCIAL SUPPLIER 
 23-09-2022,Adults,DMP Healthcare (Heatherbrook) Ltd,Nursing Homes - Private Contractors Payment,2528.00,0.00,NON COMMERCIAL SUPPLIER 
 23-09-2022,Adults,DMP Healthcare (Heatherbrook) Ltd,Nursing Homes - Private Contractors Payment,2712.00,0.00,NON COMMERCIAL SUPPLIER 
 23-09-2022,Adults,DMP Healthcare (Heatherbrook) Ltd,Residential Placements - Private Contractors Payment,2780.00,0.00,NON COMMERCIAL SUPPLIER 
 23-09-2022,Adults,DMP Healthcare (Heatherbrook) Ltd,Residential Placements - Private Contractors Payment,2780.00,0.00,NON COMMERCIAL SUPPLIER 
 23-09-2022,Adults,DMP Healthcare (Heatherbrook) Ltd,Nursing Homes - Private Contractors Payment,2712.00,0.00,NON COMMERCIAL SUPPLIER 
 23-09-2022,Adults,DMP Healthcare (Heatherbrook) Ltd,Nursing Homes - Private Contractors Payment,2712.00,0.00,NON COMMERCIAL SUPPLIER 
 23-09-2022,Adults,DMP Healthcare (Heatherbrook) Ltd,Nursing Homes - Private Contractors Payment,5712.00,0.00,NON COMMERCIAL SUPPLIER 
 23-09-2022,Adults,DMP Healthcare (Heatherbrook) Ltd,Nursing Homes - Private Contractors Payment,2040.00,0.00,NON COMMERCIAL SUPPLIER 
 23-09-2022,Adults,DMP Healthcare (Heatherbrook) Ltd,Nursing Homes - Private Contractors Payment,3672.00,0.00,NON COMMERCIAL SUPPLIER 
 23-09-2022,Adults,DMP Healthcare (Heatherbrook) Ltd,Nursing Homes - Private Contractors Payment,5712.00,0.00,NON COMMERCIAL SUPPLIER 
 23-09-2022,Adults,DMP Healthcare (Heatherbrook) Ltd,Nursing Homes - Private Contractors Payment,2040.00,0.00,NON COMMERCIAL SUPPLIER 
 23-09-2022,Adults,DMP Healthcare (Heatherbrook) Ltd,Nursing Homes - Private Contractors Payment,2722.48,0.00,NON COMMERCIAL SUPPLIER 
 23-09-2022,Adults,DMP Healthcare (Heatherbrook) Ltd,Nursing Homes - Private Contractors Payment,2712.00,0.00,NON COMMERCIAL SUPPLIER 
 23-09-2022,Adults,DMP Healthcare (Heatherbrook) Ltd,Nursing Homes - Private Contractors Payment,2034.00,0.00,NON COMMERCIAL SUPPLIER 
 23-09-2022,Adults,DMP Healthcare (Heatherbrook) Ltd,Nursing Homes - Private Contractors Payment,1452.86,0.00,NON COMMERCIAL SUPPLIER 
 23-09-2022,Adults,DMP Healthcare (Heatherbrook) Ltd,Nursing Homes - Private Contractors Payment,2856.00,0.00,NON COMMERCIAL SUPPLIER 
 23-09-2022,Adults,DMP Healthcare (Heatherbrook) Ltd,Nursing Homes - Private Contractors Payment,2712.00,0.00,NON COMMERCIAL SUPPLIER 
 23-09-2022,Adults,DMP Healthcare (Heatherbrook) Ltd,Nursing Homes - Private Contractors Payment,2712.00,0.00,NON COMMERCIAL SUPPLIER 
 23-09-2022,Adults,DMP Healthcare (Heatherbrook) Ltd,Nursing Homes - Private Contractors Payment,2712.00,0.00,NON COMMERCIAL SUPPLIER 
 23-09-2022,Adults,DMP Healthcare (Heatherbrook) Ltd,Nursing Homes - Private Contractors Payment,4692.00,0.00,NON COMMERCIAL SUPPLIER 
 23-09-2022,Adults,DMP Healthcare (Heatherbrook) Ltd,Nursing Homes - Private Contractors Payment,2712.00,0.00,NON COMMERCIAL SUPPLIER 
 23-09-2022,Adults,Sense_a,Residential Placements - Private Contractors Payment,8349.48,0.00,COMMERCIAL SUPPLIER 
 23-09-2022,Adults,Outlook Care - 1A Hulse Avenue,Residential Placements - Private Contractors Payment,8556.16,0.00,COMMERCIAL SUPPLIER 
 23-09-2022,Adults,Outlook Care - 1A Hulse Avenue,Residential Placements - Private Contractors Payment,5561.68,0.00,COMMERCIAL SUPPLIER 
 23-09-2022,Adults,Outlook Care - 1A Hulse Avenue,Residential Placements - Private Contractors Payment,5561.68,0.00,COMMERCIAL SUPPLIER 
 23-09-2022,Adults,Outlook Care - 1A Hulse Avenue,Residential Placements - Private Contractors Payment,5561.68,0.00,COMMERCIAL SUPPLIER 
 23-09-2022,Adults,St Elizabeth's Centre_a,Nursing Homes - Private Contractors Payment,3814.96,0.00,COMMERCIAL SUPPLIER 
 23-09-2022,Adults,St Elizabeth's Centre_a,Residential Placements - Private Contractors Payment,10051.12,0.00,COMMERCIAL SUPPLIER 
 23-09-2022,Adults,Oakley Carehomes Ltd t/a Abbey Care Home,Residential Placements - Private Contractors Payment,2480.00,0.00,COMMERCIAL SUPPLIER 
 23-09-2022,Adults,Masumin Ltd t/s Abbeleigh House,Residential Placements - Private Contractors Payment,3013.52,0.00,COMMERCIAL SUPPLIER 
 23-09-2022,Adults,Masumin Ltd t/s Abbeleigh House,Residential Placements - Private Contractors Payment,2780.00,0.00,COMMERCIAL SUPPLIER 
 23-09-2022,Adults,Masumin Ltd t/s Abbeleigh House,Residential Placements - Private Contractors Payment,2780.00,0.00,COMMERCIAL SUPPLIER 
 23-09-2022,Adults,Masumin Ltd t/s Abbeleigh House,Residential Placements - Private Contractors Payment,3304.00,0.00,COMMERCIAL SUPPLIER 
 23-09-2022,Adults,Masumin Ltd t/s Abbeleigh House,Residential Placements - Private Contractors Payment,2780.00,0.00,COMMERCIAL SUPPLIER 
 23-09-2022,Adults,Masumin Ltd t/s Abbeleigh House,Residential Placements - Private Contractors Payment,2480.00,0.00,COMMERCIAL SUPPLIER 
 23-09-2022,Adults,Masumin Ltd t/s Abbeleigh House,Residential Placements - Private Contractors Payment,2780.00,0.00,COMMERCIAL SUPPLIER 
 23-09-2022,Adults,Masumin Ltd t/s Abbeleigh House,Residential Placements - Private Contractors Payment,2780.00,0.00,COMMERCIAL SUPPLIER 
 23-09-2022,Adults,Masumin Ltd t/s Abbeleigh House,Residential Placements - Private Contractors Payment,2780.00,0.00,COMMERCIAL SUPPLIER 
 23-09-2022,Adults,Masumin Ltd t/s Abbeleigh House,Residential Placements - Private Contractors Payment,2780.00,0.00,COMMERCIAL SUPPLIER 
 23-09-2022,Adults,Masumin Ltd t/s Abbeleigh House,Residential Placements - Private Contractors Payment,3011.04,0.00,COMMERCIAL SUPPLIER 
 23-09-2022,Adults,Masumin Ltd t/s Abbeleigh House,Residential Placements - Private Contractors Payment,2780.00,0.00,COMMERCIAL SUPPLIER 
 23-09-2022,Adults,Masumin Ltd t/s Abbeleigh House,Residential Placements - Private Contractors Payment,2780.00,0.00,COMMERCIAL SUPPLIER 
 23-09-2022,Adults,Masumin Ltd t/s Abbeleigh House,Residential Placements - Private Contractors Payment,2780.00,0.00,COMMERCIAL SUPPLIER 
 23-09-2022,Adults,Masumin Ltd t/s Abbeleigh House,Residential Placements - Private Contractors Payment,2780.00,0.00,COMMERCIAL SUPPLIER 
 23-09-2022,Adults,Masumin Ltd t/s Abbeleigh House,Residential Placements - Private Contractors Payment,2780.00,0.00,COMMERCIAL SUPPLIER 
 23-09-2022,Adults,EC Romford Holdings Ltd,Residential Placements - Private Contractors Payment,3804.80,0.00,COMMERCIAL SUPPLIER 
 23-09-2022,Adults,EC Romford Holdings Ltd,Residential Placements - Private Contractors Payment,571.43,0.00,COMMERCIAL SUPPLIER 
 23-09-2022,Adults,EC Romford Holdings Ltd,Residential Placements - Private Contractors Payment,3428.57,0.00,COMMERCIAL SUPPLIER 
 23-09-2022,Adults,EC Romford Holdings Ltd,Residential Placements - Private Contractors Payment,2780.00,0.00,COMMERCIAL SUPPLIER 
 23-09-2022,Adults,Clover Cottage Ltd,Residential Placements - Private Contractors Payment,2480.00,0.00,COMMERCIAL SUPPLIER 
 23-09-2022,Adults,Clover Cottage Ltd,Residential Placements - Private Contractors Payment,2480.00,0.00,COMMERCIAL SUPPLIER 
 23-09-2022,Adults,Clover Cottage Ltd,Residential Placements - Private Contractors Payment,2480.00,0.00,COMMERCIAL SUPPLIER 
 23-09-2022,Adults,Clover Cottage Ltd,Residential Placements - Private Contractors Payment,2480.00,0.00,COMMERCIAL SUPPLIER 
 23-09-2022,Adults,Clover Cottage Ltd,Residential Placements - Private Contractors Payment,2780.00,0.00,COMMERCIAL SUPPLIER 
 23-09-2022,Adults,Clover Cottage Ltd,Residential Placements - Private Contractors Payment,2780.00,0.00,COMMERCIAL SUPPLIER 
 23-09-2022,Adults,Clover Cottage Ltd,Residential Placements - Private Contractors Payment,2780.00,0.00,COMMERCIAL SUPPLIER 
 23-09-2022,Adults,Ebury Court_a,Residential Placements - Private Contractors Payment,2780.00,0.00,COMMERCIAL SUPPLIER 
 23-09-2022,Adults,Ebury Court_a,Residential Placements - Private Contractors Payment,4536.00,0.00,COMMERCIAL SUPPLIER 
 23-09-2022,Adults,Ebury Court_a,Residential Placements - Private Contractors Payment,2780.00,0.00,COMMERCIAL SUPPLIER 
 23-09-2022,Adults,Ebury Court_a,Residential Placements - Private Contractors Payment,4752.00,0.00,COMMERCIAL SUPPLIER 
 23-09-2022,Adults,Ebury Court_a,Residential Placements - Private Contractors Payment,4536.00,0.00,COMMERCIAL SUPPLIER 
 23-09-2022,Adults,Ebury Court_a,Residential Placements - Private Contractors Payment,2780.00,0.00,COMMERCIAL SUPPLIER 
 23-09-2022,Adults,Ebury Court_a,Residential Placements - Private Contractors Payment,4182.00,0.00,COMMERCIAL SUPPLIER 
 23-09-2022,Adults,Ebury Court_a,Residential Placements - Private Contractors Payment,4536.00,0.00,COMMERCIAL SUPPLIER 
 23-09-2022,Adults,May Residential Homes Ltd,Residential Placements - Private Contractors Payment,3485.00,0.00,COMMERCIAL SUPPLIER 
 23-09-2022,Adults,May Residential Homes Ltd,Residential Placements - Private Contractors Payment,2780.00,0.00,COMMERCIAL SUPPLIER 
 23-09-2022,Adults,May Residential Homes Ltd,Residential Placements - Private Contractors Payment,1985.71,0.00,COMMERCIAL SUPPLIER 
 23-09-2022,Adults,May Residential Homes Ltd,Residential Placements - Private Contractors Payment,3120.00,0.00,COMMERCIAL SUPPLIER 
 23-09-2022,Adults,May Residential Homes Ltd,Residential Placements - Private Contractors Payment,2780.00,0.00,COMMERCIAL SUPPLIER 
 23-09-2022,Adults,May Residential Homes Ltd,Residential Placements - Private Contractors Payment,2780.00,0.00,COMMERCIAL SUPPLIER 
 23-09-2022,Adults,May Residential Homes Ltd,Residential Placements - Private Contractors Payment,2780.00,0.00,COMMERCIAL SUPPLIER 
 23-09-2022,Adults,May Residential Homes Ltd,Residential Placements - Private Contractors Payment,3709.68,0.00,COMMERCIAL SUPPLIER 
 23-09-2022,Adults,EC Romford Holdings Ltd,Residential Placements - Private Contractors Payment,2780.00,0.00,COMMERCIAL SUPPLIER 
 23-09-2022,Adults,EC Romford Holdings Ltd,Residential Placements - Private Contractors Payment,3771.40,0.00,COMMERCIAL SUPPLIER 
 23-09-2022,Adults,EC Romford Holdings Ltd,Residential Placements - Private Contractors Payment,2780.00,0.00,COMMERCIAL SUPPLIER 
 23-09-2022,Adults,Lodge Group Care UK Ltd,Supported Other Accommodation - Private Contractors Payment,8634.48,0.00,COMMERCIAL SUPPLIER 
 23-09-2022,Adults,Lodge Group Care UK Ltd,Supported Other Accommodation - Private Contractors Payment,8907.16,0.00,COMMERCIAL SUPPLIER 
 23-09-2022,Adults,Lodge Group Care UK Ltd,Supported Other Accommodation - Private Contractors Payment,8349.12,0.00,COMMERCIAL SUPPLIER 
 23-09-2022,Adults,Lodge Group Care UK Ltd,Supported Other Accommodation - Private Contractors Payment,8634.48,0.00,COMMERCIAL SUPPLIER 
 23-09-2022,Adults,Langley House,Residential Placements - Private Contractors Payment,2780.00,0.00,COMMERCIAL SUPPLIER 
 23-09-2022,Adults,Langley House,Residential Placements - Private Contractors Payment,2780.00,0.00,COMMERCIAL SUPPLIER 
 23-09-2022,Adults,Langley House,Residential Placements - Private Contractors Payment,2480.00,0.00,COMMERCIAL SUPPLIER 
 23-09-2022,Adults,Langley House,Residential Placements - Private Contractors Payment,2780.00,0.00,COMMERCIAL SUPPLIER 
 23-09-2022,Adults,Langley House,Residential Placements - Private Contractors Payment,2780.00,0.00,COMMERCIAL SUPPLIER 
 23-09-2022,Adults,Langley House,Residential Placements - Private Contractors Payment,1489.29,0.00,COMMERCIAL SUPPLIER 
 23-09-2022,Adults,Langley House,Residential Placements - Private Contractors Payment,2780.00,0.00,COMMERCIAL SUPPLIER 
 23-09-2022,Adults,Langley House,Residential Placements - Private Contractors Payment,2480.00,0.00,COMMERCIAL SUPPLIER 
 23-09-2022,Adults,Langley House,Residential Placements - Private Contractors Payment,2780.00,0.00,COMMERCIAL SUPPLIER 
 23-09-2022,Adults,Langley House,Residential Placements - Private Contractors Payment,2780.00,0.00,COMMERCIAL SUPPLIER 
 23-09-2022,Adults,Langley House,Residential Placements - Private Contractors Payment,2780.00,0.00,COMMERCIAL SUPPLIER 
 23-09-2022,Adults,Langley House,Residential Placements - Private Contractors Payment,2780.00,0.00,COMMERCIAL SUPPLIER 
 23-09-2022,Adults,Langley House,Residential Placements - Private Contractors Payment,2480.00,0.00,COMMERCIAL SUPPLIER 
 23-09-2022,Adults,Langley House,Residential Placements - Private Contractors Payment,2780.00,0.00,COMMERCIAL SUPPLIER 
 23-09-2022,Adults,Little Gaynes,Residential Placements - Private Contractors Payment,2780.00,0.00,COMMERCIAL SUPPLIER 
 23-09-2022,Adults,Little Gaynes,Residential Placements - Private Contractors Payment,1131.43,0.00,COMMERCIAL SUPPLIER 
 23-09-2022,Adults,Little Gaynes,Residential Placements - Private Contractors Payment,3520.00,0.00,COMMERCIAL SUPPLIER 
 23-09-2022,Adults,Little Gaynes,Residential Placements - Private Contractors Payment,2640.00,0.00,COMMERCIAL SUPPLIER 
 23-09-2022,Adults,Little Gaynes,Residential Placements - Private Contractors Payment,3520.00,0.00,COMMERCIAL SUPPLIER 
 23-09-2022,Adults,Little Gaynes,Residential Placements - Private Contractors Payment,3429.24,0.00,COMMERCIAL SUPPLIER 
 23-09-2022,Adults,Moreland House_a,Nursing Homes - Private Contractors Payment,2712.00,0.00,COMMERCIAL SUPPLIER 
 23-09-2022,Adults,Moreland House_a,Nursing Homes - Private Contractors Payment,2712.00,0.00,COMMERCIAL SUPPLIER 
 23-09-2022,Adults,Moreland House_a,Nursing Homes - Private Contractors Payment,2712.00,0.00,COMMERCIAL SUPPLIER 
 23-09-2022,Adults,Moreland House_a,Nursing Homes - Private Contractors Payment,2712.00,0.00,COMMERCIAL SUPPLIER 
 23-09-2022,Adults,Moreland House_a,Nursing Homes - Private Contractors Payment,2712.00,0.00,COMMERCIAL SUPPLIER 
 23-09-2022,Adults,Moreland House_a,Nursing Homes - Private Contractors Payment,2712.00,0.00,COMMERCIAL SUPPLIER 
 23-09-2022,Adults,Moreland House_a,Nursing Homes - Private Contractors Payment,3053.84,0.00,COMMERCIAL SUPPLIER 
 23-09-2022,Adults,Moreland House_a,Nursing Homes - Private Contractors Payment,2712.00,0.00,COMMERCIAL SUPPLIER 
 23-09-2022,Adults,Moreland House_a,Nursing Homes - Private Contractors Payment,2712.00,0.00,COMMERCIAL SUPPLIER 
 23-09-2022,Adults,Moreland House_a,Nursing Homes - Private Contractors Payment,7560.00,0.00,COMMERCIAL SUPPLIER 
 23-09-2022,Adults,Moreland House_a,Nursing Homes - Private Contractors Payment,2306.24,0.00,COMMERCIAL SUPPLIER 
 23-09-2022,Adults,Moreland House_a,Nursing Homes - Private Contractors Payment,3360.00,0.00,COMMERCIAL SUPPLIER 
 23-09-2022,Adults,Moreland House_a,Nursing Homes - Private Contractors Payment,4480.00,0.00,COMMERCIAL SUPPLIER 
 23-09-2022,Adults,Moreland House_a,Nursing Homes - Private Contractors Payment,2712.00,0.00,COMMERCIAL SUPPLIER 
 23-09-2022,Adults,Ladyville Lodge_a,Nursing Homes - Private Contractors Payment,3690.00,0.00,COMMERCIAL SUPPLIER 
 23-09-2022,Adults,Ladyville Lodge_a,Nursing Homes - Private Contractors Payment,2712.00,0.00,COMMERCIAL SUPPLIER 
 23-09-2022,Adults,Ladyville Lodge_a,Residential Placements - Private Contractors Payment,4000.00,0.00,COMMERCIAL SUPPLIER 
 23-09-2022,Adults,Ladyville Lodge_a,Nursing Homes - Private Contractors Payment,2528.00,0.00,COMMERCIAL SUPPLIER 
 23-09-2022,Adults,Ladyville Lodge_a,Residential Placements - Private Contractors Payment,2780.00,0.00,COMMERCIAL SUPPLIER 
 23-09-2022,Adults,Ladyville Lodge_a,Residential Placements - Private Contractors Payment,3457.14,0.00,COMMERCIAL SUPPLIER 
 23-09-2022,Adults,Ladyville Lodge_a,Residential Placements - Private Contractors Payment,942.86,0.00,COMMERCIAL SUPPLIER 
 23-09-2022,Adults,Ladyville Lodge_a,Nursing Homes - Private Contractors Payment,2525.92,0.00,COMMERCIAL SUPPLIER 
 23-09-2022,Adults,Ladyville Lodge_a,Residential Placements - Private Contractors Payment,4431.20,0.00,COMMERCIAL SUPPLIER 
 23-09-2022,Adults,Ladyville Lodge_a,Residential Placements - Private Contractors Payment,3690.00,0.00,COMMERCIAL SUPPLIER 
 23-09-2022,Adults,Ladyville Lodge_a,Residential Placements - Private Contractors Payment,2780.00,0.00,COMMERCIAL SUPPLIER 
 23-09-2022,Adults,Ladyville Lodge_a,Nursing Homes - Private Contractors Payment,3740.84,0.00,COMMERCIAL SUPPLIER 
 23-09-2022,Adults,Nightingale Residential Care Home Ltd,Residential Placements - Private Contractors Payment,2780.00,0.00,COMMERCIAL SUPPLIER 
 23-09-2022,Adults,Nightingale Residential Care Home Ltd,Residential Placements - Private Contractors Payment,2665.00,0.00,COMMERCIAL SUPPLIER 
 23-09-2022,Adults,Nightingale Residential Care Home Ltd,Residential Placements - Private Contractors Payment,2780.00,0.00,COMMERCIAL SUPPLIER 
 23-09-2022,Adults,Nightingale Residential Care Home Ltd,Residential Placements - Private Contractors Payment,2780.00,0.00,COMMERCIAL SUPPLIER 
 23-09-2022,Adults,Nightingale Residential Care Home Ltd,Residential Placements - Private Contractors Payment,2780.00,0.00,COMMERCIAL SUPPLIER 
 23-09-2022,Adults,Nightingale Residential Care Home Ltd,Residential Placements - Private Contractors Payment,2780.00,0.00,COMMERCIAL SUPPLIER 
 23-09-2022,Adults,Nightingale Residential Care Home Ltd,Residential Placements - Private Contractors Payment,2780.00,0.00,COMMERCIAL SUPPLIER 
 23-09-2022,Adults,Nightingale Residential Care Home Ltd,Residential Placements - Private Contractors Payment,2780.00,0.00,COMMERCIAL SUPPLIER 
 23-09-2022,Adults,Nightingale Residential Care Home Ltd,Residential Placements - Private Contractors Payment,2780.00,0.00,COMMERCIAL SUPPLIER 
 23-09-2022,Adults,Nightingale Residential Care Home Ltd,Residential Placements - Private Contractors Payment,2780.00,0.00,COMMERCIAL SUPPLIER 
 23-09-2022,Adults,Oaks Residential Home,Residential Placements - Private Contractors Payment,4600.00,0.00,COMMERCIAL SUPPLIER 
 23-09-2022,Adults,Oaks Residential Home,Residential Placements - Private Contractors Payment,2480.00,0.00,COMMERCIAL SUPPLIER 
 23-09-2022,Adults,Oaks Residential Home,Residential Placements - Private Contractors Payment,3972.92,0.00,COMMERCIAL SUPPLIER 
 23-09-2022,Adults,Oaks Residential Home,Residential Placements - Private Contractors Payment,4600.00,0.00,COMMERCIAL SUPPLIER 
 23-09-2022,Adults,Oaks Residential Home,Residential Placements - Private Contractors Payment,2780.00,0.00,COMMERCIAL SUPPLIER 
 23-09-2022,Adults,Oaks Residential Home,Residential Placements - Private Contractors Payment,2780.00,0.00,COMMERCIAL SUPPLIER 
 23-09-2022,Adults,Oaks Residential Home,Residential Placements - Private Contractors Payment,2780.00,0.00,COMMERCIAL SUPPLIER 
 23-09-2022,Adults,Oaks Residential Home,Residential Placements - Private Contractors Payment,2780.00,0.00,COMMERCIAL SUPPLIER 
 23-09-2022,Adults,Parkside_a,Residential Placements - Private Contractors Payment,1157.14,0.00,COMMERCIAL SUPPLIER 
 23-09-2022,Adults,Parkside_a,Residential Placements - Private Contractors Payment,3600.00,0.00,COMMERCIAL SUPPLIER 
 23-09-2022,Adults,Parkside_a,Residential Placements - Private Contractors Payment,2780.00,0.00,COMMERCIAL SUPPLIER 
 23-09-2022,Adults,Priory Supporting Care Ltd,Residential Placements - Private Contractors Payment,3400.00,0.00,COMMERCIAL SUPPLIER 
 23-09-2022,Adults,Priory Supporting Care Ltd,Residential Placements - Private Contractors Payment,2780.00,0.00,COMMERCIAL SUPPLIER 
 23-09-2022,Adults,Priory Supporting Care Ltd,Residential Placements - Private Contractors Payment,2559.40,0.00,COMMERCIAL SUPPLIER 
 23-09-2022,Adults,Priory Supporting Care Ltd,Residential Placements - Private Contractors Payment,3075.00,0.00,COMMERCIAL SUPPLIER 
 23-09-2022,Adults,Priory Supporting Care Ltd,Respite Care - Private Contractors Payment,1860.00,0.00,COMMERCIAL SUPPLIER 
 23-09-2022,Adults,Priory Supporting Care Ltd,Residential Placements - Private Contractors Payment,2780.00,0.00,COMMERCIAL SUPPLIER 
 23-09-2022,Adults,Priory Supporting Care Ltd,Respite Care - Private Contractors Payment,850.00,0.00,COMMERCIAL SUPPLIER 
 23-09-2022,Adults,Priory Supporting Care Ltd,Respite Care - Private Contractors Payment,3400.00,0.00,COMMERCIAL SUPPLIER 
 23-09-2022,Adults,Priory Supporting Care Ltd,Residential Placements - Private Contractors Payment,2780.00,0.00,COMMERCIAL SUPPLIER 
 23-09-2022,Adults,Priory Supporting Care Ltd,Residential Placements - Private Contractors Payment,2780.00,0.00,COMMERCIAL SUPPLIER 
 23-09-2022,Adults,Priory Supporting Care Ltd,Residential Placements - Private Contractors Payment,2780.00,0.00,COMMERCIAL SUPPLIER 
 23-09-2022,Adults,Priory Supporting Care Ltd,Respite Care - Private Contractors Payment,1500.00,0.00,COMMERCIAL SUPPLIER 
 23-09-2022,Adults,Priory Supporting Care Ltd,Residential Placements - Private Contractors Payment,2780.00,0.00,COMMERCIAL SUPPLIER 
 23-09-2022,Adults,Ash Grove Residential Care Home,Residential Placements - Private Contractors Payment,2480.00,0.00,COMMERCIAL SUPPLIER 
 23-09-2022,Adults,Ash Grove Residential Care Home,Residential Placements - Private Contractors Payment,797.14,0.00,COMMERCIAL SUPPLIER 
 23-09-2022,Adults,Ash Grove Residential Care Home,Residential Placements - Private Contractors Payment,2780.00,0.00,COMMERCIAL SUPPLIER 
 23-09-2022,Adults,Ash Grove Residential Care Home,Residential Placements - Private Contractors Payment,974.29,0.00,COMMERCIAL SUPPLIER 
 23-09-2022,Adults,Ash Grove Residential Care Home,Residential Placements - Private Contractors Payment,2480.00,0.00,COMMERCIAL SUPPLIER 
 23-09-2022,Adults,Ash Grove Residential Care Home,Residential Placements - Private Contractors Payment,2780.00,0.00,COMMERCIAL SUPPLIER 
 23-09-2022,Adults,Ash Grove Residential Care Home,Residential Placements - Private Contractors Payment,1828.57,0.00,COMMERCIAL SUPPLIER 
 23-09-2022,Adults,Ash Grove Residential Care Home,Residential Placements - Private Contractors Payment,3200.00,0.00,COMMERCIAL SUPPLIER 
 23-09-2022,Adults,Ash Grove Residential Care Home,Residential Placements - Private Contractors Payment,3200.00,0.00,COMMERCIAL SUPPLIER 
 23-09-2022,Adults,Ash Grove Residential Care Home,Residential Placements - Private Contractors Payment,2480.00,0.00,COMMERCIAL SUPPLIER 
 23-09-2022,Adults,Ash Grove Residential Care Home,Residential Placements - Private Contractors Payment,3800.00,0.00,COMMERCIAL SUPPLIER 
 23-09-2022,Adults,Ash Grove Residential Care Home,Residential Placements - Private Contractors Payment,974.29,0.00,COMMERCIAL SUPPLIER 
 23-09-2022,Adults,Ash Grove Residential Care Home,Residential Placements - Private Contractors Payment,2480.00,0.00,COMMERCIAL SUPPLIER 
 23-09-2022,Adults,Ash Grove Residential Care Home,Residential Placements - Private Contractors Payment,2780.00,0.00,COMMERCIAL SUPPLIER 
 23-09-2022,Adults,Ash Grove Residential Care Home,Residential Placements - Private Contractors Payment,2780.00,0.00,COMMERCIAL SUPPLIER 
 23-09-2022,Adults,Ash Grove Residential Care Home,Residential Placements - Private Contractors Payment,3200.00,0.00,COMMERCIAL SUPPLIER 
 23-09-2022,Adults,Ash Grove Residential Care Home,Residential Placements - Private Contractors Payment,2780.00,0.00,COMMERCIAL SUPPLIER 
 23-09-2022,Adults,Voyage Ltd - 89 Mawney Road,Residential Placements - Private Contractors Payment,5786.32,0.00,COMMERCIAL SUPPLIER 
 23-09-2022,Adults,Voyage Ltd - 89 Mawney Road,Residential Placements - Private Contractors Payment,5786.32,0.00,COMMERCIAL SUPPLIER 
 23-09-2022,Adults,Voyage Ltd - 89 Mawney Road,Residential Placements - Private Contractors Payment,5786.32,0.00,COMMERCIAL SUPPLIER 
 23-09-2022,Adults,Voyage Ltd - 89 Mawney Road,Residential Placements - Private Contractors Payment,5786.32,0.00,COMMERCIAL SUPPLIER 
 23-09-2022,Adults,Voyage Ltd - 89 Mawney Road,Residential Placements - Private Contractors Payment,5786.32,0.00,COMMERCIAL SUPPLIER 
 23-09-2022,Adults,GCH - Hillside Nursing Home,Nursing Homes - Private Contractors Payment,14784.00,0.00,COMMERCIAL SUPPLIER 
 23-09-2022,Adults,GCH - Hillside Nursing Home,Nursing Homes - Private Contractors Payment,2712.00,0.00,COMMERCIAL SUPPLIER 
 23-09-2022,Adults,GCH - Hillside Nursing Home,Nursing Homes - Private Contractors Payment,1152.00,0.00,COMMERCIAL SUPPLIER 
 23-09-2022,Adults,GCH - Hillside Nursing Home,Nursing Homes - Private Contractors Payment,10368.00,0.00,COMMERCIAL SUPPLIER 
 23-09-2022,Adults,GCH - Hillside Nursing Home,Nursing Homes - Private Contractors Payment,3980.00,0.00,COMMERCIAL SUPPLIER 
 23-09-2022,Adults,GCH - Hillside Nursing Home,Residential Placements - Private Contractors Payment,2780.00,0.00,COMMERCIAL SUPPLIER 
 23-09-2022,Adults,GCH - Hillside Nursing Home,Nursing Homes - Private Contractors Payment,3895.00,0.00,COMMERCIAL SUPPLIER 
 23-09-2022,Adults,GCH - Hillside Nursing Home,Nursing Homes - Private Contractors Payment,3600.00,0.00,COMMERCIAL SUPPLIER 
 23-09-2022,Adults,GCH - Hillside Nursing Home,Nursing Homes - Private Contractors Payment,3800.00,0.00,COMMERCIAL SUPPLIER 
 23-09-2022,Adults,GCH - Hillside Nursing Home,Nursing Homes - Private Contractors Payment,3690.00,0.00,COMMERCIAL SUPPLIER 
 23-09-2022,Adults,GCH - Hillside Nursing Home,Residential Placements - Private Contractors Payment,2780.00,0.00,COMMERCIAL SUPPLIER 
 23-09-2022,Adults,GCH - Hillside Nursing Home,Nursing Homes - Private Contractors Payment,2712.00,0.00,COMMERCIAL SUPPLIER 
 23-09-2022,Adults,GCH - Hillside Nursing Home,Nursing Homes - Private Contractors Payment,2712.00,0.00,COMMERCIAL SUPPLIER 
 23-09-2022,Adults,GCH - Hillside Nursing Home,Residential Placements - Private Contractors Payment,2780.00,0.00,COMMERCIAL SUPPLIER 
 23-09-2022,Adults,GCH - Hillside Nursing Home,Nursing Homes - Private Contractors Payment,3199.24,0.00,COMMERCIAL SUPPLIER 
 23-09-2022,Adults,GCH - Hillside Nursing Home,Residential Placements - Private Contractors Payment,2780.00,0.00,COMMERCIAL SUPPLIER 
 23-09-2022,Adults,GCH - Hillside Nursing Home,Nursing Homes - Private Contractors Payment,3895.00,0.00,COMMERCIAL SUPPLIER 
 23-09-2022,Adults,GCH - Hillside Nursing Home,Nursing Homes - Private Contractors Payment,2712.00,0.00,COMMERCIAL SUPPLIER 
 23-09-2022,Adults,GCH - Hillside Nursing Home,Nursing Homes - Private Contractors Payment,2227.71,0.00,COMMERCIAL SUPPLIER 
 23-09-2022,Adults,GCH - Hillside Nursing Home,Nursing Homes - Private Contractors Payment,2712.00,0.00,COMMERCIAL SUPPLIER 
 23-09-2022,Adults,GCH - Hillside Nursing Home,Nursing Homes - Private Contractors Payment,2712.00,0.00,COMMERCIAL SUPPLIER 
 23-09-2022,Adults,GCH - Hillside Nursing Home,Residential Placements - Private Contractors Payment,3554.72,0.00,COMMERCIAL SUPPLIER 
 23-09-2022,Adults,GCH - Hillside Nursing Home,Residential Placements - Private Contractors Payment,7392.00,0.00,COMMERCIAL SUPPLIER 
 23-09-2022,Adults,GCH - Hillside Nursing Home,Nursing Homes - Private Contractors Payment,2712.00,0.00,COMMERCIAL SUPPLIER 
 23-09-2022,Adults,GCH - Hillside Nursing Home,Residential Placements - Private Contractors Payment,2480.00,0.00,COMMERCIAL SUPPLIER 
 23-09-2022,Adults,GCH - Hillside Nursing Home,Nursing Homes - Private Contractors Payment,3900.00,0.00,COMMERCIAL SUPPLIER 
 23-09-2022,Adults,GCH - Hillside Nursing Home,Nursing Homes - Private Contractors Payment,3900.00,0.00,COMMERCIAL SUPPLIER 
 23-09-2022,Adults,GCH - Hillside Nursing Home,Nursing Homes - Private Contractors Payment,3900.00,0.00,COMMERCIAL SUPPLIER 
 23-09-2022,Adults,GCH - Hillside Nursing Home,Nursing Homes - Private Contractors Payment,3900.00,0.00,COMMERCIAL SUPPLIER 
 23-09-2022,Adults,Outlook Care - 86 Veronica Close,Residential Placements - Private Contractors Payment,4514.36,0.00,COMMERCIAL SUPPLIER 
 23-09-2022,Adults,Outlook Care - 86 Veronica Close,Residential Placements - Private Contractors Payment,4514.36,0.00,COMMERCIAL SUPPLIER 
 23-09-2022,Adults,Outlook Care - 86 Veronica Close,Residential Placements - Private Contractors Payment,4514.36,0.00,COMMERCIAL SUPPLIER 
 23-09-2022,Adults,Outlook Care - 86 Veronica Close,Residential Placements - Private Contractors Payment,4514.36,0.00,COMMERCIAL SUPPLIER 
 23-09-2022,Adults,Outlook Care - 86 Veronica Close,Residential Placements - Private Contractors Payment,1565.56,0.00,COMMERCIAL SUPPLIER 
 23-09-2022,Adults,Outlook Care - 86 Veronica Close,Residential Placements - Private Contractors Payment,4514.36,0.00,COMMERCIAL SUPPLIER 
 23-09-2022,Adults,Outlook Care - 86 Veronica Close,Residential Placements - Private Contractors Payment,4514.36,0.00,COMMERCIAL SUPPLIER 
 23-09-2022,Adults,Outlook Care - 86 Veronica Close,Residential Placements - Private Contractors Payment,4514.36,0.00,COMMERCIAL SUPPLIER 
 23-09-2022,Adults,Outlook Care - 86 Veronica Close,Residential Placements - Private Contractors Payment,4514.36,0.00,COMMERCIAL SUPPLIER 
 23-09-2022,Adults,Outlook Care - 86 Veronica Close,Residential Placements - Private Contractors Payment,4514.36,0.00,COMMERCIAL SUPPLIER 
 23-09-2022,Adults,Outlook Care - 86 Veronica Close,Residential Placements - Private Contractors Payment,4514.36,0.00,COMMERCIAL SUPPLIER 
 23-09-2022,Adults,Lodge Lane Care Home Limited,Residential Placements - Private Contractors Payment,2780.00,0.00,COMMERCIAL SUPPLIER 
 23-09-2022,Adults,Lodge Lane Care Home Limited,Residential Placements - Private Contractors Payment,2780.00,0.00,COMMERCIAL SUPPLIER 
 23-09-2022,Adults,Lodge Lane Care Home Limited,Residential Placements - Private Contractors Payment,992.86,0.00,COMMERCIAL SUPPLIER 
 23-09-2022,Adults,Lodge Lane Care Home Limited,Residential Placements - Private Contractors Payment,2780.00,0.00,COMMERCIAL SUPPLIER 
 23-09-2022,Adults,Lodge Lane Care Home Limited,Residential Placements - Private Contractors Payment,2780.00,0.00,COMMERCIAL SUPPLIER 
 23-09-2022,Adults,Lodge Lane Care Home Limited,Residential Placements - Private Contractors Payment,2780.00,0.00,COMMERCIAL SUPPLIER 
 23-09-2022,Adults,Lodge Lane Care Home Limited,Residential Placements - Private Contractors Payment,2780.00,0.00,COMMERCIAL SUPPLIER 
 23-09-2022,Adults,Lodge Lane Care Home Limited,Residential Placements - Private Contractors Payment,2780.00,0.00,COMMERCIAL SUPPLIER 
 23-09-2022,Adults,Lodge Lane Care Home Limited,Residential Placements - Private Contractors Payment,2780.00,0.00,COMMERCIAL SUPPLIER 
 23-09-2022,Adults,Lodge Lane Care Home Limited,Residential Placements - Private Contractors Payment,2780.00,0.00,COMMERCIAL SUPPLIER 
 23-09-2022,Adults,Lodge Lane Care Home Limited,Residential Placements - Private Contractors Payment,1687.86,0.00,COMMERCIAL SUPPLIER 
 23-09-2022,Adults,Lodge Lane Care Home Limited,Residential Placements - Private Contractors Payment,2780.00,0.00,COMMERCIAL SUPPLIER 
 23-09-2022,Adults,Lodge Lane Care Home Limited,Residential Placements - Private Contractors Payment,1064.00,0.00,COMMERCIAL SUPPLIER 
 23-09-2022,Adults,Lodge Lane Care Home Limited,Residential Placements - Private Contractors Payment,2780.00,0.00,COMMERCIAL SUPPLIER 
 23-09-2022,Adults,Lodge Lane Care Home Limited,Residential Placements - Private Contractors Payment,2780.00,0.00,COMMERCIAL SUPPLIER 
 23-09-2022,Adults,Lodge Lane Care Home Limited,Respite Care - Private Contractors Payment,1092.14,0.00,COMMERCIAL SUPPLIER 
 23-09-2022,Adults,Lodge Lane Care Home Limited,Residential Placements - Private Contractors Payment,794.29,0.00,COMMERCIAL SUPPLIER 
 23-09-2022,Adults,Lodge Lane Care Home Limited,Residential Placements - Private Contractors Payment,2780.00,0.00,COMMERCIAL SUPPLIER 
 23-09-2022,Adults,Lodge Lane Care Home Limited,Residential Placements - Private Contractors Payment,2780.00,0.00,COMMERCIAL SUPPLIER 
 23-09-2022,Adults,Lodge Lane Care Home Limited,Residential Placements - Private Contractors Payment,2780.00,0.00,COMMERCIAL SUPPLIER 
 23-09-2022,Adults,Lodge Lane Care Home Limited,Residential Placements - Private Contractors Payment,2780.00,0.00,COMMERCIAL SUPPLIER 
 23-09-2022,Adults,Lodge Lane Care Home Limited,Residential Placements - Private Contractors Payment,2780.00,0.00,COMMERCIAL SUPPLIER 
 23-09-2022,Adults,Lodge Lane Care Home Limited,Residential Placements - Private Contractors Payment,2780.00,0.00,COMMERCIAL SUPPLIER 
 23-09-2022,Adults,Lodge Lane Care Home Limited,Residential Placements - Private Contractors Payment,2780.00,0.00,COMMERCIAL SUPPLIER 
 23-09-2022,Adults,Lodge Lane Care Home Limited,Residential Placements - Private Contractors Payment,2780.00,0.00,COMMERCIAL SUPPLIER 
 23-09-2022,Adults,Lodge Lane Care Home Limited,Residential Placements - Private Contractors Payment,2780.00,0.00,COMMERCIAL SUPPLIER 
 23-09-2022,Adults,Lodge Lane Care Home Limited,Residential Placements - Private Contractors Payment,2780.00,0.00,COMMERCIAL SUPPLIER 
 23-09-2022,Adults,Lodge Lane Care Home Limited,Residential Placements - Private Contractors Payment,2780.00,0.00,COMMERCIAL SUPPLIER 
 23-09-2022,Adults,Lodge Lane Care Home Limited,Residential Placements - Private Contractors Payment,2780.00,0.00,COMMERCIAL SUPPLIER 
 23-09-2022,Adults,Lodge Lane Care Home Limited,Residential Placements - Private Contractors Payment,2780.00,0.00,COMMERCIAL SUPPLIER 
 23-09-2022,Adults,Lodge Lane Care Home Limited,Residential Placements - Private Contractors Payment,2780.00,0.00,COMMERCIAL SUPPLIER 
 23-09-2022,Adults,Lodge Lane Care Home Limited,Residential Placements - Private Contractors Payment,2780.00,0.00,COMMERCIAL SUPPLIER 
 23-09-2022,Adults,Lodge Lane Care Home Limited,Residential Placements - Private Contractors Payment,2780.00,0.00,COMMERCIAL SUPPLIER 
 23-09-2022,Adults,Lodge Lane Care Home Limited,Residential Placements - Private Contractors Payment,2780.00,0.00,COMMERCIAL SUPPLIER 
 23-09-2022,Adults,Lodge Lane Care Home Limited,Residential Placements - Private Contractors Payment,2780.00,0.00,COMMERCIAL SUPPLIER 
 23-09-2022,Adults,Lodge Lane Care Home Limited,Residential Placements - Private Contractors Payment,2780.00,0.00,COMMERCIAL SUPPLIER 
 23-09-2022,Adults,Lodge Lane Care Home Limited,Residential Placements - Private Contractors Payment,2780.00,0.00,COMMERCIAL SUPPLIER 
 23-09-2022,Adults,Lodge Lane Care Home Limited,Residential Placements - Private Contractors Payment,2780.00,0.00,COMMERCIAL SUPPLIER 
 23-09-2022,Adults,Lodge Lane Care Home Limited,Residential Placements - Private Contractors Payment,2780.00,0.00,COMMERCIAL SUPPLIER 
 23-09-2022,Adults,Lodge Lane Care Home Limited,Residential Placements - Private Contractors Payment,2780.00,0.00,COMMERCIAL SUPPLIER 
 23-09-2022,Adults,Lodge Lane Care Home Limited,Residential Placements - Private Contractors Payment,2780.00,0.00,COMMERCIAL SUPPLIER 
 23-09-2022,Adults,Lodge Lane Care Home Limited,Residential Placements - Private Contractors Payment,2780.00,0.00,COMMERCIAL SUPPLIER 
 23-09-2022,Adults,Lodge Lane Care Home Limited,Residential Placements - Private Contractors Payment,2780.00,0.00,COMMERCIAL SUPPLIER 
 23-09-2022,Adults,Lodge Lane Care Home Limited,Residential Placements - Private Contractors Payment,2780.00,0.00,COMMERCIAL SUPPLIER 
 23-09-2022,Adults,Lodge Lane Care Home Limited,Residential Placements - Private Contractors Payment,2780.00,0.00,COMMERCIAL SUPPLIER 
 23-09-2022,Adults,Lodge Lane Care Home Limited,Residential Placements - Private Contractors Payment,2780.00,0.00,COMMERCIAL SUPPLIER 
 23-09-2022,Adults,Lodge Lane Care Home Limited,Residential Placements - Private Contractors Payment,2780.00,0.00,COMMERCIAL SUPPLIER 
 23-09-2022,Adults,Lodge Lane Care Home Limited,Residential Placements - Private Contractors Payment,2780.00,0.00,COMMERCIAL SUPPLIER 
 23-09-2022,Adults,Lodge Lane Care Home Limited,Residential Placements - Private Contractors Payment,2780.00,0.00,COMMERCIAL SUPPLIER 
 23-09-2022,Adults,Lodge Lane Care Home Limited,Residential Placements - Private Contractors Payment,2780.00,0.00,COMMERCIAL SUPPLIER 
 23-09-2022,Adults,Lodge Lane Care Home Limited,Residential Placements - Private Contractors Payment,2780.00,0.00,COMMERCIAL SUPPLIER 
 23-09-2022,Adults,Lodge Lane Care Home Limited,Residential Placements - Private Contractors Payment,2780.00,0.00,COMMERCIAL SUPPLIER 
 23-09-2022,Adults,Lodge Lane Care Home Limited,Residential Placements - Private Contractors Payment,2780.00,0.00,COMMERCIAL SUPPLIER 
 23-09-2022,Adults,Lodge Lane Care Home Limited,Residential Placements - Private Contractors Payment,2780.00,0.00,COMMERCIAL SUPPLIER 
 23-09-2022,Adults,Lodge Lane Care Home Limited,Residential Placements - Private Contractors Payment,2780.00,0.00,COMMERCIAL SUPPLIER 
 23-09-2022,Adults,Lodge Lane Care Home Limited,Residential Placements - Private Contractors Payment,2780.00,0.00,COMMERCIAL SUPPLIER 
 23-09-2022,Adults,Lodge Lane Care Home Limited,Residential Placements - Private Contractors Payment,2780.00,0.00,COMMERCIAL SUPPLIER 
 23-09-2022,Adults,Lodge Lane Care Home Limited,Residential Care Income,862.64,0.00,COMMERCIAL SUPPLIER 
 23-09-2022,Adults,Lodge Lane Care Home Limited,Residential Placements - Private Contractors Payment,2780.00,0.00,COMMERCIAL SUPPLIER 
 23-09-2022,Adults,Rose House_a,Residential Placements - Private Contractors Payment,6699.20,0.00,COMMERCIAL SUPPLIER 
 23-09-2022,Adults,Melody Lodge_a,Residential Placements - Private Contractors Payment,4692.20,0.00,COMMERCIAL SUPPLIER 
 23-09-2022,Adults,Outlook Care_a,Supported Other Accommodation - Private Contractors Payment,2253.44,0.00,COMMERCIAL SUPPLIER 
 23-09-2022,Adults,Abbottswood Lodge,Residential Placements - Private Contractors Payment,1763.76,0.00,COMMERCIAL SUPPLIER 
 23-09-2022,Adults,Autism Initiatives,Residential Placements - Private Contractors Payment,5565.64,0.00,COMMERCIAL SUPPLIER 
 23-09-2022,Adults,The Cottage Residential Care Home,Residential Placements - Private Contractors Payment,1040.28,0.00,COMMERCIAL SUPPLIER 
 23-09-2022,Adults,The Cottage Residential Care Home,Residential Placements - Private Contractors Payment,2966.96,0.00,COMMERCIAL SUPPLIER 
 23-09-2022,Adults,Ashgate House Ltd_a,Residential Placements - Private Contractors Payment,4765.00,0.00,COMMERCIAL SUPPLIER 
 23-09-2022,Adults,Ashgate House Ltd_a,Residential Placements - Private Contractors Payment,3770.80,0.00,COMMERCIAL SUPPLIER 
 23-09-2022,Adults,Ashgate House Ltd_a,Residential Placements - Private Contractors Payment,1303.80,0.00,COMMERCIAL SUPPLIER 
 23-09-2022,Adults,Ashgate House Ltd_a,Residential Placements - Private Contractors Payment,4704.00,0.00,COMMERCIAL SUPPLIER 
 23-09-2022,Adults,Ashgate House Ltd_a,Residential Placements - Private Contractors Payment,3660.52,0.00,COMMERCIAL SUPPLIER 
 23-09-2022,Adults,Ashgate House Ltd_a,Residential Placements - Private Contractors Payment,746.16,0.00,COMMERCIAL SUPPLIER 
 23-09-2022,Adults,Ashgate House Ltd_a,Residential Placements - Private Contractors Payment,3965.48,0.00,COMMERCIAL SUPPLIER 
 23-09-2022,Adults,Ashgate House Ltd_a,Residential Placements - Private Contractors Payment,4884.12,0.00,COMMERCIAL SUPPLIER 
 23-09-2022,Adults,Ashgate House Ltd_a,Residential Placements - Private Contractors Payment,1932.96,0.00,COMMERCIAL SUPPLIER 
 23-09-2022,Adults,Voyage Ltd - Drakes Place,Residential Placements - Private Contractors Payment,4469.44,0.00,COMMERCIAL SUPPLIER 
 23-09-2022,Adults,Autism Wessex,Residential Placements - Private Contractors Payment,6106.48,0.00,COMMERCIAL SUPPLIER 
 23-09-2022,Adults,Acorn Village_a,Residential Placements - Private Contractors Payment,3462.88,0.00,COMMERCIAL SUPPLIER 
 23-09-2022,Adults,Acorn Village_a,Residential Placements - Private Contractors Payment,774.92,0.00,COMMERCIAL SUPPLIER 
 23-09-2022,Adults,Hilton House,Residential Placements - Private Contractors Payment,4284.08,0.00,COMMERCIAL SUPPLIER 
 23-09-2022,Adults,Churchill House_a,Residential Placements - Private Contractors Payment,4214.48,0.00,COMMERCIAL SUPPLIER 
 23-09-2022,Adults,Churchill House_a,Residential Placements - Private Contractors Payment,2960.92,0.00,COMMERCIAL SUPPLIER 
 23-09-2022,Adults,Churchill House_a,Residential Placements - Private Contractors Payment,4052.36,0.00,COMMERCIAL SUPPLIER 
 23-09-2022,Adults,Ashking House Ltd,Residential Placements - Private Contractors Payment,1616.84,0.00,COMMERCIAL SUPPLIER 
 23-09-2022,Adults,Ashking House Ltd,Residential Placements - Private Contractors Payment,6250.56,0.00,COMMERCIAL SUPPLIER 
 23-09-2022,Adults,Ashking House Ltd,Residential Placements - Private Contractors Payment,4109.76,0.00,COMMERCIAL SUPPLIER 
 23-09-2022,Adults,Community Care Mission 2000 Ltd,Residential Placements - Private Contractors Payment,10853.56,0.00,COMMERCIAL SUPPLIER 
 23-09-2022,Adults,Community Care Mission 2000 Ltd,Residential Placements - Private Contractors Payment,9239.96,0.00,COMMERCIAL SUPPLIER 
 23-09-2022,Adults,Genesis Residential Homes Ltd - Dothan House,Residential Placements - Private Contractors Payment,2780.00,0.00,COMMERCIAL SUPPLIER 
 23-09-2022,Adults,Genesis Residential Homes Ltd - Dothan House,Residential Placements - Private Contractors Payment,2780.00,0.00,COMMERCIAL SUPPLIER 
 23-09-2022,Adults,Genesis Residential Homes Ltd - Dothan House,Residential Placements - Private Contractors Payment,2780.00,0.00,COMMERCIAL SUPPLIER 
 23-09-2022,Adults,Genesis Residential Homes Ltd - Dothan House,Residential Placements - Private Contractors Payment,2780.00,0.00,COMMERCIAL SUPPLIER 
 23-09-2022,Adults,Genesis Residential Homes Ltd - Dothan House,Residential Placements - Private Contractors Payment,2780.00,0.00,COMMERCIAL SUPPLIER 
 23-09-2022,Adults,Genesis Residential Homes Ltd - Dothan House,Residential Placements - Private Contractors Payment,2780.00,0.00,COMMERCIAL SUPPLIER 
 23-09-2022,Adults,Genesis Residential Homes Ltd - Dothan House,Residential Placements - Private Contractors Payment,2780.00,0.00,COMMERCIAL SUPPLIER 
 23-09-2022,Adults,Genesis Residential Homes Ltd - Dothan House,Residential Placements - Private Contractors Payment,2780.00,0.00,COMMERCIAL SUPPLIER 
 23-09-2022,Adults,Genesis Residential Homes Ltd - Dothan House,Residential Placements - Private Contractors Payment,2780.00,0.00,COMMERCIAL SUPPLIER 
 23-09-2022,Adults,Genesis Residential Homes Ltd - Dothan House,Residential Placements - Private Contractors Payment,2780.00,0.00,COMMERCIAL SUPPLIER 
 23-09-2022,Adults,Genesis Residential Homes Ltd - Dothan House,Residential Placements - Private Contractors Payment,2780.00,0.00,COMMERCIAL SUPPLIER 
 23-09-2022,Adults,DMP Healthcare (Cherry Orchard) Ltd,Residential Placements - Private Contractors Payment,2300.12,0.00,COMMERCIAL SUPPLIER 
 23-09-2022,Adults,DMP Healthcare (Cherry Orchard) Ltd,Respite Care - Private Contractors Payment,4400.00,0.00,COMMERCIAL SUPPLIER 
 23-09-2022,Adults,DMP Healthcare (Cherry Orchard) Ltd,Respite Care - Private Contractors Payment,2514.29,0.00,COMMERCIAL SUPPLIER 
 23-09-2022,Adults,DMP Healthcare (Cherry Orchard) Ltd,Nursing Homes - Private Contractors Payment,500.00,0.00,COMMERCIAL SUPPLIER 
 23-09-2022,Adults,DMP Healthcare (Cherry Orchard) Ltd,Nursing Homes - Private Contractors Payment,3049.28,0.00,COMMERCIAL SUPPLIER 
 23-09-2022,Adults,DMP Healthcare (Cherry Orchard) Ltd,Respite Care - Private Contractors Payment,4400.00,0.00,COMMERCIAL SUPPLIER 
 23-09-2022,Adults,DMP Healthcare (Cherry Orchard) Ltd,Nursing Homes - Private Contractors Payment,4473.44,0.00,COMMERCIAL SUPPLIER 
 23-09-2022,Adults,DMP Healthcare (Cherry Orchard) Ltd,Nursing Homes - Private Contractors Payment,3375.20,0.00,COMMERCIAL SUPPLIER 
 23-09-2022,Adults,DMP Healthcare (Cherry Orchard) Ltd,Nursing Homes - Private Contractors Payment,2715.84,0.00,COMMERCIAL SUPPLIER 
 23-09-2022,Adults,DMP Healthcare (Cherry Orchard) Ltd,Nursing Homes - Private Contractors Payment,2712.00,0.00,COMMERCIAL SUPPLIER 
 23-09-2022,Adults,DMP Healthcare (Cherry Orchard) Ltd,Nursing Homes - Private Contractors Payment,3831.04,0.00,COMMERCIAL SUPPLIER 
 23-09-2022,Adults,DMP Healthcare (Cherry Orchard) Ltd,Nursing Homes - Private Contractors Payment,2972.40,0.00,COMMERCIAL SUPPLIER 
 23-09-2022,Adults,DMP Healthcare (Cherry Orchard) Ltd,Nursing Homes - Private Contractors Payment,3075.00,0.00,COMMERCIAL SUPPLIER 
 23-09-2022,Adults,DMP Healthcare (Cherry Orchard) Ltd,Nursing Homes - Private Contractors Payment,8568.00,0.00,COMMERCIAL SUPPLIER 
 23-09-2022,Adults,DMP Healthcare (Cherry Orchard) Ltd,Nursing Homes - Private Contractors Payment,3600.00,0.00,COMMERCIAL SUPPLIER 
 23-09-2022,Adults,DMP Healthcare (Cherry Orchard) Ltd,Nursing Homes - Private Contractors Payment,3518.96,0.00,COMMERCIAL SUPPLIER 
 23-09-2022,Adults,Whiteheather Ltd,Residential Placements - Private Contractors Payment,9631.48,0.00,COMMERCIAL SUPPLIER 
 23-09-2022,Adults,Brook Care Home_a,Residential Placements - Private Contractors Payment,3073.60,0.00,COMMERCIAL SUPPLIER 
 23-09-2022,Adults,Castle Care UK Ltd,Nursing Homes - Private Contractors Payment,2712.00,0.00,COMMERCIAL SUPPLIER 
 23-09-2022,Adults,Castle Care UK Ltd,Nursing Homes - Private Contractors Payment,2823.16,0.00,COMMERCIAL SUPPLIER 
 23-09-2022,Adults,Castle Care UK Ltd,Residential Placements - Private Contractors Payment,5712.00,0.00,COMMERCIAL SUPPLIER 
 23-09-2022,Adults,Barleycroft Care Home Ltd,Residential Placements - Private Contractors Payment,2780.00,0.00,COMMERCIAL SUPPLIER 
 23-09-2022,Adults,Barleycroft Care Home Ltd,Residential Placements - Private Contractors Payment,2780.00,0.00,COMMERCIAL SUPPLIER 
 23-09-2022,Adults,Barleycroft Care Home Ltd,Nursing Homes - Private Contractors Payment,2712.00,0.00,COMMERCIAL SUPPLIER 
 23-09-2022,Adults,Barleycroft Care Home Ltd,Nursing Homes - Private Contractors Payment,2712.00,0.00,COMMERCIAL SUPPLIER 
 23-09-2022,Adults,Barleycroft Care Home Ltd,Nursing Homes - Private Contractors Payment,2712.00,0.00,COMMERCIAL SUPPLIER 
 23-09-2022,Adults,Barleycroft Care Home Ltd,Residential Placements - Private Contractors Payment,2382.86,0.00,COMMERCIAL SUPPLIER 
 23-09-2022,Adults,Barleycroft Care Home Ltd,Residential Placements - Private Contractors Payment,2780.00,0.00,COMMERCIAL SUPPLIER 
 23-09-2022,Adults,Barleycroft Care Home Ltd,Nursing Homes - Private Contractors Payment,2712.00,0.00,COMMERCIAL SUPPLIER 
 23-09-2022,Adults,Barleycroft Care Home Ltd,Nursing Homes - Private Contractors Payment,2712.00,0.00,COMMERCIAL SUPPLIER 
 23-09-2022,Adults,Barleycroft Care Home Ltd,Nursing Homes - Private Contractors Payment,2712.00,0.00,COMMERCIAL SUPPLIER 
 23-09-2022,Adults,Barleycroft Care Home Ltd,Nursing Homes - Private Contractors Payment,2780.00,0.00,COMMERCIAL SUPPLIER 
 23-09-2022,Adults,Barleycroft Care Home Ltd,Residential Placements - Private Contractors Payment,2780.00,0.00,COMMERCIAL SUPPLIER 
 23-09-2022,Adults,Barleycroft Care Home Ltd,Nursing Homes - Private Contractors Payment,3900.00,0.00,COMMERCIAL SUPPLIER 
 23-09-2022,Adults,Barleycroft Care Home Ltd,Residential Placements - Private Contractors Payment,2780.00,0.00,COMMERCIAL SUPPLIER 
 23-09-2022,Adults,Barleycroft Care Home Ltd,Residential Placements - Private Contractors Payment,2780.00,0.00,COMMERCIAL SUPPLIER 
 23-09-2022,Adults,Barleycroft Care Home Ltd,Nursing Homes - Private Contractors Payment,3060.24,0.00,COMMERCIAL SUPPLIER 
 23-09-2022,Adults,Barleycroft Care Home Ltd,Nursing Homes - Private Contractors Payment,2712.00,0.00,COMMERCIAL SUPPLIER 
 23-09-2022,Adults,Barleycroft Care Home Ltd,Residential Placements - Private Contractors Payment,2480.00,0.00,COMMERCIAL SUPPLIER 
 23-09-2022,Adults,Barleycroft Care Home Ltd,Nursing Homes - Private Contractors Payment,2528.00,0.00,COMMERCIAL SUPPLIER 
 23-09-2022,Adults,Barleycroft Care Home Ltd,Residential Placements - Private Contractors Payment,1290.71,0.00,COMMERCIAL SUPPLIER 
 23-09-2022,Adults,Barleycroft Care Home Ltd,Residential Placements - Private Contractors Payment,6240.00,0.00,COMMERCIAL SUPPLIER 
 23-09-2022,Adults,Barleycroft Care Home Ltd,Residential Placements - Private Contractors Payment,2780.00,0.00,COMMERCIAL SUPPLIER 
 23-09-2022,Adults,Barleycroft Care Home Ltd,Residential Placements - Private Contractors Payment,3736.00,0.00,COMMERCIAL SUPPLIER 
 23-09-2022,Adults,Barleycroft Care Home Ltd,Nursing Homes - Private Contractors Payment,2712.00,0.00,COMMERCIAL SUPPLIER 
 23-09-2022,Adults,Barleycroft Care Home Ltd,Residential Placements - Private Contractors Payment,2480.00,0.00,COMMERCIAL SUPPLIER 
 23-09-2022,Adults,Barleycroft Care Home Ltd,Residential Placements - Private Contractors Payment,2780.00,0.00,COMMERCIAL SUPPLIER 
 23-09-2022,Adults,Barleycroft Care Home Ltd,Residential Placements - Private Contractors Payment,695.00,0.00,COMMERCIAL SUPPLIER 
 23-09-2022,Adults,Barleycroft Care Home Ltd,Residential Placements - Private Contractors Payment,2780.00,0.00,COMMERCIAL SUPPLIER 
 23-09-2022,Adults,Barleycroft Care Home Ltd,Nursing Homes - Private Contractors Payment,2712.00,0.00,COMMERCIAL SUPPLIER 
 23-09-2022,Adults,Barleycroft Care Home Ltd,Residential Placements - Private Contractors Payment,2780.00,0.00,COMMERCIAL SUPPLIER 
 23-09-2022,Adults,Barleycroft Care Home Ltd,Respite Care - Private Contractors Payment,595.71,0.00,COMMERCIAL SUPPLIER 
 23-09-2022,Adults,Barleycroft Care Home Ltd,Residential Placements - Private Contractors Payment,2780.00,0.00,COMMERCIAL SUPPLIER 
 23-09-2022,Adults,Barleycroft Care Home Ltd,Residential Placements - Private Contractors Payment,2780.00,0.00,COMMERCIAL SUPPLIER 
 23-09-2022,Adults,Barleycroft Care Home Ltd,Nursing Homes - Private Contractors Payment,2712.00,0.00,COMMERCIAL SUPPLIER 
 23-09-2022,Adults,Barleycroft Care Home Ltd,Nursing Homes - Private Contractors Payment,2160.00,0.00,COMMERCIAL SUPPLIER 
 23-09-2022,Adults,Barleycroft Care Home Ltd,Nursing Homes - Private Contractors Payment,1920.00,0.00,COMMERCIAL SUPPLIER 
 23-09-2022,Adults,Barleycroft Care Home Ltd,Residential Placements - Private Contractors Payment,2780.00,0.00,COMMERCIAL SUPPLIER 
 23-09-2022,Adults,Barleycroft Care Home Ltd,Nursing Homes - Private Contractors Payment,2528.00,0.00,COMMERCIAL SUPPLIER 
 23-09-2022,Adults,Barleycroft Care Home Ltd,Residential Placements - Private Contractors Payment,2780.00,0.00,COMMERCIAL SUPPLIER 
 23-09-2022,Adults,Barleycroft Care Home Ltd,Nursing Homes - Private Contractors Payment,2712.00,0.00,COMMERCIAL SUPPLIER 
 23-09-2022,Adults,Barleycroft Care Home Ltd,Residential Placements - Private Contractors Payment,2780.00,0.00,COMMERCIAL SUPPLIER 
 23-09-2022,Adults,The Avenues Trust - 73A Neave Crescent,Residential Placements - Private Contractors Payment,5957.44,0.00,COMMERCIAL SUPPLIER 
 23-09-2022,Adults,The Avenues Trust - 73A Neave Crescent,Residential Placements - Private Contractors Payment,5935.76,0.00,COMMERCIAL SUPPLIER 
 23-09-2022,Adults,The Avenues Trust - 73A Neave Crescent,Residential Placements - Private Contractors Payment,6198.08,0.00,COMMERCIAL SUPPLIER 
 23-09-2022,Adults,The Avenues Trust - 73A Neave Crescent,Residential Placements - Private Contractors Payment,6073.96,0.00,COMMERCIAL SUPPLIER 
 23-09-2022,Adults,The Avenues Trust - 73A Neave Crescent,Residential Placements - Private Contractors Payment,6076.56,0.00,COMMERCIAL SUPPLIER 
 23-09-2022,Adults,The Avenues Trust_a,Residential Placements - Private Contractors Payment,6076.56,0.00,COMMERCIAL SUPPLIER 
 23-09-2022,Adults,The Avenues Trust_a,Residential Placements - Private Contractors Payment,6076.56,0.00,COMMERCIAL SUPPLIER 
 23-09-2022,Adults,The Avenues Trust_a,Residential Placements - Private Contractors Payment,6076.56,0.00,COMMERCIAL SUPPLIER 
 23-09-2022,Adults,The Avenues Trust - 13A Repton Drive,Residential Placements - Private Contractors Payment,6226.36,0.00,COMMERCIAL SUPPLIER 
 23-09-2022,Adults,The Avenues Trust - 13A Repton Drive,Residential Placements - Private Contractors Payment,6226.36,0.00,COMMERCIAL SUPPLIER 
 23-09-2022,Adults,The Avenues Trust - 13A Repton Drive,Residential Placements - Private Contractors Payment,6226.36,0.00,COMMERCIAL SUPPLIER 
 23-09-2022,Adults,The Avenues Trust - 13A Repton Drive,Residential Placements - Private Contractors Payment,6226.36,0.00,COMMERCIAL SUPPLIER 
 23-09-2022,Adults,The Avenues Trust - 13A Repton Drive,Residential Placements - Private Contractors Payment,6226.36,0.00,COMMERCIAL SUPPLIER 
 23-09-2022,Adults,The Avenues Trust - 13A Repton Drive,Residential Placements - Private Contractors Payment,6226.36,0.00,COMMERCIAL SUPPLIER 
 23-09-2022,Adults,Consensus Support Services Ltd - Southwold House,Residential Placements - Private Contractors Payment,8396.44,0.00,COMMERCIAL SUPPLIER 
 23-09-2022,Adults,Palm Care Ltd,Residential Placements - Private Contractors Payment,5917.00,0.00,COMMERCIAL SUPPLIER 
 23-09-2022,Adults,The Meath,Residential Placements - Private Contractors Payment,5721.32,0.00,COMMERCIAL SUPPLIER 
 23-09-2022,Adults,The Meath,Residential Placements - Private Contractors Payment,5721.32,0.00,COMMERCIAL SUPPLIER 
 23-09-2022,Adults,Runwood Homes Plc - Woodbury Court,Residential Placements - Private Contractors Payment,2132.00,0.00,COMMERCIAL SUPPLIER 
 23-09-2022,Adults,Consensus Support Services Ltd - Rowan House,Residential Placements - Private Contractors Payment,8540.92,0.00,COMMERCIAL SUPPLIER 
 23-09-2022,Adults,Runwood Homes Ltd - Kathryn Court,Residential Placements - Private Contractors Payment,2780.00,0.00,COMMERCIAL SUPPLIER 
 23-09-2022,Adults,Runwood Homes Ltd - Kathryn Court,Residential Placements - Private Contractors Payment,2507.96,0.00,COMMERCIAL SUPPLIER 
 23-09-2022,Adults,Oaks Health Ltd,Residential Placements - Private Contractors Payment,8801.56,0.00,COMMERCIAL SUPPLIER 
 23-09-2022,Adults,Clearwater Care (Hackney) Ltd - Searsons Way,Residential Placements - Private Contractors Payment,6654.40,0.00,COMMERCIAL SUPPLIER 
 23-09-2022,Adults,Clearwater Care (Hackney) Ltd - Searsons Way,Residential Placements - Private Contractors Payment,12157.08,0.00,COMMERCIAL SUPPLIER 
 23-09-2022,Adults,Clearwater Care (Hackney) Ltd - Searsons Way,Residential Placements - Private Contractors Payment,7098.04,0.00,COMMERCIAL SUPPLIER 
 23-09-2022,Adults,Outlook Care - 76 Neave Crescent,Supported Other Accommodation - Private Contractors Payment,543.32,0.00,COMMERCIAL SUPPLIER 
 23-09-2022,Adults,Outlook Care - 76 Neave Crescent,Supported Other Accommodation - Private Contractors Payment,543.32,0.00,COMMERCIAL SUPPLIER 
 23-09-2022,Adults,Outlook Care - 76 Neave Crescent,Supported Other Accommodation - Private Contractors Payment,1597.92,0.00,COMMERCIAL SUPPLIER 
 23-09-2022,Adults,Outlook Care - 76 Neave Crescent,Supported Other Accommodation - Private Contractors Payment,1562.00,0.00,COMMERCIAL SUPPLIER 
 23-09-2022,Adults,Outlook Care - 76 Neave Crescent,Supported Other Accommodation - Private Contractors Payment,1562.00,0.00,COMMERCIAL SUPPLIER 
 23-09-2022,Adults,Outlook Care - 76 Neave Crescent,Supported Other Accommodation - Private Contractors Payment,1597.92,0.00,COMMERCIAL SUPPLIER 
 23-09-2022,Adults,Outlook Care - 76 Neave Crescent,Supported Other Accommodation - Private Contractors Payment,1566.60,0.00,COMMERCIAL SUPPLIER 
 23-09-2022,Adults,Outlook Care - 76 Neave Crescent,Supported Other Accommodation - Private Contractors Payment,1562.00,0.00,COMMERCIAL SUPPLIER 
 23-09-2022,Adults,Outlook Care - 76 Neave Crescent,Supported Other Accommodation - Private Contractors Payment,1562.00,0.00,COMMERCIAL SUPPLIER 
 23-09-2022,Adults,Outlook Care - 76 Neave Crescent,Supported Other Accommodation - Private Contractors Payment,1562.00,0.00,COMMERCIAL SUPPLIER 
 23-09-2022,Adults,Outlook Care - 76 Neave Crescent,Supported Other Accommodation - Private Contractors Payment,1677.92,0.00,COMMERCIAL SUPPLIER 
 23-09-2022,Adults,Outlook Care - 76 Neave Crescent,Supported Other Accommodation - Private Contractors Payment,796.96,0.00,COMMERCIAL SUPPLIER 
 23-09-2022,Adults,Outlook Care - 76 Neave Crescent,Supported Other Accommodation - Private Contractors Payment,1597.92,0.00,COMMERCIAL SUPPLIER 
 23-09-2022,Adults,Outlook Care - 76 Neave Crescent,Supported Other Accommodation - Private Contractors Payment,1562.00,0.00,COMMERCIAL SUPPLIER 
 23-09-2022,Adults,Outlook Care - 76 Neave Crescent,Supported Other Accommodation - Private Contractors Payment,1562.00,0.00,COMMERCIAL SUPPLIER 
 23-09-2022,Adults,Outlook Care - 76 Neave Crescent,Supported Other Accommodation - Private Contractors Payment,1562.00,0.00,COMMERCIAL SUPPLIER 
 23-09-2022,Adults,Outlook Care - 76 Neave Crescent,Supported Other Accommodation - Private Contractors Payment,1562.00,0.00,COMMERCIAL SUPPLIER 
 23-09-2022,Adults,Outlook Care - 76 Neave Crescent,Supported Other Accommodation - Private Contractors Payment,1566.60,0.00,COMMERCIAL SUPPLIER 
 23-09-2022,Adults,Outlook Care - 76 Neave Crescent,Supported Other Accommodation - Private Contractors Payment,1597.92,0.00,COMMERCIAL SUPPLIER 
 23-09-2022,Adults,Outlook Care - 74 Neave Crescent,Respite Care - Private Contractors Payment,21033.60,0.00,COMMERCIAL SUPPLIER 
 23-09-2022,Adults,Outlook Care - 74 Neave Crescent,Residential Placements - Private Contractors Payment,28779.12,0.00,COMMERCIAL SUPPLIER 
 23-09-2022,Adults,Achieve Together  Ltd - Cherrycroft,Residential Placements - Private Contractors Payment,7624.44,0.00,COMMERCIAL SUPPLIER 
 23-09-2022,Adults,Black Swan International Ltd - Mid Meadows,Residential Placements - Private Contractors Payment,3839.08,0.00,COMMERCIAL SUPPLIER 
 23-09-2022,Adults,Ranc Care Homes Ltd - Brentwood Care Centre,Nursing Homes - Private Contractors Payment,4560.84,0.00,COMMERCIAL SUPPLIER 
 23-09-2022,Adults,CAS Learning Disabilities Ltd,Residential Placements - Private Contractors Payment,9404.92,0.00,COMMERCIAL SUPPLIER 
 23-09-2022,Adults,Roselock Ltd_a,Residential Placements - Private Contractors Payment,7235.52,0.00,COMMERCIAL SUPPLIER 
 23-09-2022,Adults,Roselock Ltd_a,Residential Placements - Private Contractors Payment,7235.52,0.00,COMMERCIAL SUPPLIER 
 23-09-2022,Adults,Acer Healthcare Operation Ltd,Nursing Homes - Private Contractors Payment,2516.76,0.00,COMMERCIAL SUPPLIER 
 23-09-2022,Adults,Acer Healthcare Operation Ltd,Nursing Homes - Private Contractors Payment,2681.40,0.00,COMMERCIAL SUPPLIER 
 23-09-2022,Adults,Acer Healthcare Operation Ltd,Nursing Homes - Private Contractors Payment,2636.32,0.00,COMMERCIAL SUPPLIER 
 23-09-2022,Adults,Acer Healthcare Operation Ltd,Nursing Homes - Private Contractors Payment,2636.32,0.00,COMMERCIAL SUPPLIER 
 23-09-2022,Adults,Acer Healthcare Operation Ltd,Nursing Homes - Private Contractors Payment,2627.64,0.00,COMMERCIAL SUPPLIER 
 23-09-2022,Adults,Endsleigh Care Ltd,Residential Placements - Private Contractors Payment,2911.28,0.00,COMMERCIAL SUPPLIER 
 23-09-2022,Adults,Endsleigh Care Ltd,Residential Placements - Private Contractors Payment,3528.60,0.00,COMMERCIAL SUPPLIER 
 23-09-2022,Adults,Endsleigh Care Ltd,Residential Placements - Private Contractors Payment,1940.84,0.00,COMMERCIAL SUPPLIER 
 23-09-2022,Adults,North London Care (Havering) Ltd_a,Residential Placements - Private Contractors Payment,8050.56,0.00,COMMERCIAL SUPPLIER 
 23-09-2022,Adults,North London Care (Havering) Ltd_a,Residential Placements - Private Contractors Payment,9122.72,0.00,COMMERCIAL SUPPLIER 
 23-09-2022,Adults,North London Care (Havering) Ltd_a,Residential Placements - Private Contractors Payment,7290.84,0.00,COMMERCIAL SUPPLIER 
 23-09-2022,Adults,North London Care (Havering) Ltd_a,Residential Placements - Private Contractors Payment,7759.00,0.00,COMMERCIAL SUPPLIER 
 23-09-2022,Adults,Ranc Care Homes Ltd - Romford Care Centre,Residential Placements - Private Contractors Payment,4800.00,0.00,COMMERCIAL SUPPLIER 
 23-09-2022,Adults,Ranc Care Homes Ltd - Romford Care Centre,Residential Placements - Private Contractors Payment,2780.00,0.00,COMMERCIAL SUPPLIER 
 23-09-2022,Adults,Ranc Care Homes Ltd - Romford Care Centre,Residential Placements - Private Contractors Payment,4271.43,0.00,COMMERCIAL SUPPLIER 
 23-09-2022,Adults,Ranc Care Homes Ltd - Romford Care Centre,Respite Care - Private Contractors Payment,871.71,0.00,COMMERCIAL SUPPLIER 
 23-09-2022,Adults,Ranc Care Homes Ltd - Romford Care Centre,Residential Placements - Private Contractors Payment,5000.00,0.00,COMMERCIAL SUPPLIER 
 23-09-2022,Adults,Ranc Care Homes Ltd - Romford Care Centre,Residential Placements - Private Contractors Payment,4960.00,0.00,COMMERCIAL SUPPLIER 
 23-09-2022,Adults,Ranc Care Homes Ltd - Romford Care Centre,Residential Placements - Private Contractors Payment,4100.00,0.00,COMMERCIAL SUPPLIER 
 23-09-2022,Adults,Ranc Care Homes Ltd - Romford Care Centre,Nursing Homes - Private Contractors Payment,2727.32,0.00,COMMERCIAL SUPPLIER 
 23-09-2022,Adults,Ranc Care Homes Ltd - Romford Care Centre,Residential Placements - Private Contractors Payment,4800.00,0.00,COMMERCIAL SUPPLIER 
